{"text_format":"1","workbook":"xlsx","n_sheets":10,"sheets":["PTD Worksheet","Age 90 Calc","Life Exp","saww info","Password","Pension Dates","First Process Date","Retirement Date","LSA at 25%","PTD%PP Offset"],"not_rendered":{"charts":0,"images":3,"macros":1,"external_links":1,"defined_names":41,"comments":0,"pivot_tables":0},"unopened":[],"bounds":{"document_bytes":16777216,"sheet_cells":100000,"rows_first":2000,"rows_last":500,"rows_between":2000,"halvings":0,"cell_chars":16384,"cell_head_chars":4096},"cells_cut":0,"cells_raw":0,"read":"whole","date_system":"1900"}

{"sheet":"PTD Worksheet","index":0,"n_rows":56,"n_cols":11,"rows_kept":56,"cut":false,"hidden":false,"merged":[[55,2,55,5],[0,6,0,7],[0,1,0,3],[2,0,2,8],[25,0,25,8]]}
["Claim #:",null,null,null,null,"IW Name:",null,null,"Date of Occurrence:",null,{"$f":"J1","v":"00:00:00"}]
[]
["1.  Calculating the weekly workers' compensation amount pursuant to Ohio Revised Code 4123.58 (A).  4 Variables required:"]
[]
[null,null,null,"AWW"]
[null,{"$f":"INDEX('saww info'!C:C,MATCH($K$1,'saww info'!F:F,0))","v":{"$error":"#N/A"}},null,"50% SAWW (minimum PTD from Rate Chart for DOI)"]
[null,{"$f":"(B5*2)/3","v":0},null,"2/3 AWW"]
[null,{"$f":"INDEX('saww info'!D:D,MATCH($K$1,'saww info'!F:F,0))","v":{"$error":"#N/A"}},null,"2/3 SAWW (\"PTD offset\" amount from Rate Chart for DOI)"]
[]
[null,{"$f":"IF(B7>=B8,\"Yes\",\" No\")","v":{"$error":"#N/A"}},"a)","If 2/3 of AWW ",null,{"$f":"B7","v":0},"> 2/3 SAWW",{"$f":"B8","v":{"$error":"#N/A"}},"then WWAC ="]
[null,null,null,"2/3 of SAWW",null,{"$f":"B8","v":{"$error":"#N/A"}}]
[]
[null,{"$f":"IF(AWW<B6,\"Yes\",\"No\")","v":{"$error":"#N/A"}},"b)","If AWW",null,{"$f":"AWW","v":0},"< 50% SAWW",{"$f":"B6","v":{"$error":"#N/A"}},"then WWAC ="]
[null,null,null,"AWW",null,{"$f":"AWW","v":0}]
[]
[null,{"$f":"IF(AND(AWW>=B6, B7<B6),\"Yes\",\"No\")","v":{"$error":"#N/A"}},"c)","If AWW",null,{"$f":"B5","v":0},"> 50%SAWW",{"$f":"B6","v":{"$error":"#N/A"}},","]
[null,null,null,"but 2/3 AWW",null,{"$f":"B7","v":0},"< 50% SAWW",{"$f":"B6","v":{"$error":"#N/A"}},"then WWAC ="]
[null,null,null,"50% SAWW",null,{"$f":"B6","v":{"$error":"#N/A"}}]
[]
[null,{"$f":"IF(AND(B7>B6, B7<B8),\"Yes\",\"No\")","v":{"$error":"#N/A"}},"d)","If 2/3 of AWW",null,{"$f":"B7","v":0},">50% of SAWW",{"$f":"B6","v":{"$error":"#N/A"}},","]
[null,null,null,"but 2/3 AWW",null,{"$f":"B7","v":0},"< 2/3 SAWW",{"$f":"B8","v":{"$error":"#N/A"}},"then WWAC ="]
[null,null,null,"2/3 of AWW",null,{"$f":"B7","v":0}]
[]
[null,"Weekly workers' compensation amount equals:",null,null,null,null,null,null,{"$f":"IF(B10=\"Yes\", F11, IF(B13=\"Yes\", F14,IF(B16=\"Yes\", F18,IF(B20=\"Yes\", F22))))","v":{"$error":"#N/A"}}]
[]
["2.  Determining PTD Rate:  Calculations pursuant to Ohio Revised Code 4123.58(B).  Variables required:"]
[]
[null,{"$f":"WWAC","v":{"$error":"#N/A"}},null,"WWCA"]
[null,{"$f":"H29","v":0},null,"Weekly SSD ",null,null,"Weekly SSD"]
[null,{"$f":"INDEX('saww info'!E:E,MATCH($K$1,'saww info'!F:F,0))","v":{"$error":"#N/A"}},null,"SAWW (maximum PTD from rate chart for date of injury )"]
[null,{"$f":"B7","v":0},null,"2/3 AWW"]
[null,{"$f":"B8","v":{"$error":"#N/A"}},null,"2/3 SAWW"]
[]
[null,{"$f":"IF((B28+SSD)>=B30,\"Yes\",\"No\")","v":{"$error":"#N/A"}},"a)","If WWCA + SSD",null,{"$f":"B28+B29","v":{"$error":"#N/A"}},"> SAWW ",{"$f":"B30","v":{"$error":"#N/A"}},"then PTD rate ="]
[null,null,null,"WWCA",null,{"$f":"B28","v":{"$error":"#N/A"}}]
[]
[null,{"$f":"IF(AND((B28+SSD)<B30, B31<=B32),\"Yes\",\"No\")","v":{"$error":"#N/A"}},"b)","If WWCA + SSD",null,{"$f":"F34","v":{"$error":"#N/A"}},"< SAWW",{"$f":"B30","v":{"$error":"#N/A"}},","]
[null,null,null,"and 2/3 AWW",null,{"$f":"B31","v":0},"< 2/3 SAWW",{"$f":"B32","v":{"$error":"#N/A"}},"then PTD rate ="]
[null,null,null,"WWCA",null,{"$f":"B28","v":{"$error":"#N/A"}}]
[]
[null,{"$f":"IF(AND((B28+SSD)<B30, B31>B32, B31<Max),\"Yes\",\"No\")","v":{"$error":"#N/A"}},"c)","If WWCA + SSD",null,{"$f":"F34","v":{"$error":"#N/A"}},"< SAWW",{"$f":"B30","v":{"$error":"#N/A"}},","]
[null,null,null,"and 2/3 AWW",null,{"$f":"B31","v":0},"> 2/3 SAWW",{"$f":"B32","v":{"$error":"#N/A"}}," but"]
[null,null,null,"< SAWW",null,{"$f":"B30","v":{"$error":"#N/A"}},"then PTD rate ="]
[null,null,null,"2/3 AWW",null,{"$f":"B31","v":0}]
[]
[null,{"$f":"IF(AND((WWCA+SSD)<Max, B31>Max),\"Yes\",\"No\")","v":{"$error":"#N/A"}},"d)","If WWCA + SSD",null,{"$f":"F34","v":{"$error":"#N/A"}},"< SAWW",{"$f":"B30","v":{"$error":"#N/A"}},", but"]
[null,null,null,"2/3 AWW",null,{"$f":"B31","v":0},"> SAWW",{"$f":"B30","v":{"$error":"#N/A"}},"then PTD rate ="]
[null,null,null,"SAWW",null,{"$f":"B30","v":{"$error":"#N/A"}}]
[]
[null,"PTD Rate equals",null,null,null,{"$f":"IF(B34=\"Yes\", F35, IF(B37=\"Yes\", F39,IF(B41=\"Yes\", F44,IF(B46=\"Yes\", F48))))","v":{"$error":"#N/A"}},"(If PTD paid 100% in this claim)"]
[]
[null,"For Split PTD:",null,"Total PTD rate",null,{"$f":"F50","v":{"$error":"#N/A"}},"x % in this claim"]
[]
[null,null,null,"equals PTD rate for this claim as part of split PTD",null,null,null,null,{"$f":"F52*H52","v":{"$error":"#N/A"}}]
[]
[null,"Completed by:",null,null,null,null,"Date:",{"$f":"TODAY()","v":"2024-02-27"}]

{"sheet":"Age 90 Calc","index":1,"n_rows":7,"n_cols":13,"rows_kept":7,"cut":false,"hidden":false,"merged":[[4,6,5,8],[4,4,4,5],[5,4,5,5],[4,1,5,2],[4,3,5,3]]}
[]
[null,null,null,null,null,null,null,null,null,null,null,null,"NON-OD"]
[null,null,null,null,null,null,null,null,null,null,null,null,"OD-LUNG"]
[null,null,null,null,null,null,null,null,null,null,null,null,"OD-NON LUNG"]
[null,"Claimant DOB",null,null,"PTD/DWRF Plan Ending Date",null,{"$f":"IF(B7=11,F7+92,IF(B7=12,F7+62,IF(B7=1,F7+31,F7)))","v":{"$error":"#VALUE!"}},{"$f":"IF(#REF!=11,#REF!+92,IF(#REF!=12,#REF!+62,IF(#REF!=1,#REF!+31,#REF!)))","v":{"$error":"#REF!"}},{"$f":"IF(#REF!=11,#REF!+92,IF(#REF!=12,#REF!+62,IF(#REF!=1,#REF!+31,#REF!)))","v":{"$error":"#REF!"}}]
[null,null,null,null,"(to age 90 adjusted for year end)",null,{"$f":"IF(B5=11,F5+92,IF(B5=12,F5+62,IF(B5=1,F5+31,F5)))","v":"00:00:00"},{"$f":"IF(D5=11,G5+92,IF(D5=12,G5+62,IF(D5=1,G5+31,G5)))","v":{"$error":"#VALUE!"}},{"$f":"IF(E5=11,H5+92,IF(E5=12,H5+62,IF(E5=1,H5+31,H5)))","v":{"$error":"#REF!"}}]
[null,{"$f":"MONTH(D5)","v":1},{"$f":"DAY(D5)","v":0},{"$f":"YEAR(D5)","v":1900},{"$f":"D7+90","v":1990},{"$f":"CONCATENATE(B7,\"/\",C7,\"/\",E7)","v":"1/0/1990"}]

{"sheet":"Life Exp","index":2,"n_rows":90,"n_cols":9,"rows_kept":90,"cut":false,"hidden":true,"merged":[[0,11,3,11],[45,11,46,11],[65,10,67,11],[69,10,69,11]]}
[null,"SURVIVOR (1)",null,"PTD-NON-OD(2)",null,"PTD-OD LUNG (3)",null,"PTD-OD-NON LUNG(4)"]
["AGE","FACTOR","LIFE EXPECT-ANCY IN YEARS","FACTOR","LIFE EXPECT-ANCY IN YEARS","FACTOR","LIFE EXPECT-ANCY IN YEARS","FACTOR","LIFE EXPECT-ANCY IN YEARS"]
[17,1022,50.9,1144,55.8,1110,51.3,1138,55.1]
[18,1043,51.8,1138,54.9,1103,50.4,1132,54.1]
[19,1059,52.4,1132,53.9,1096,49.5,1126,53.2]
[20,1069,52.7,1125,53,1089,48.6,1119,52.3]
[21,1077,52.7,1119,52.1,1082,47.7,1113,51.3]
[22,1082,52.6,1112,51.1,1074,46.8,1106,50.4]
[23,1085,52.4,1105,50.2,1066,45.8,1099,49.5]
[24,1087,52,1098,49.3,1058,44.9,1091,48.5]
[25,1086,51.6,1090,48.3,1049,44,1084,47.6]
[26,1085,51.1,1082,47.4,1041,43.1,1076,46.7]
[27,1083,50.5,1074,46.5,1032,42.2,1068,45.8]
[28,1081,49.9,1066,45.6,1023,41.3,1059,44.8]
[29,1077,49.3,1058,44.6,1013,40.4,1050,43.9]
[30,1073,48.7,1049,43.7,1003,39.5,1041,43]
[31,1069,48,1039,42.8,993,38.6,1032,42.1]
[32,1064,47.3,1030,41.9,982,37.700000000000003,1022,41.2]
[33,1059,46.6,1020,40.9,971,36.799999999999997,1012,40.200000000000003]
[34,1054,45.9,1009,40,959,35.9,1001,39.299999999999997]
[35,1048,45.1,999,39.1,947,35,990,38.4]
[36,1041,44.4,987,38.200000000000003,935,34.1,979,37.4]
[37,1035,43.6,976,37.200000000000003,921,33.200000000000003,967,36.5]
[38,1028,42.9,963,36.299999999999997,908,32.299999999999997,954,35.6]
[39,1021,42.1,951,35.299999999999997,894,31.4,942,34.700000000000003]
[40,1013,41.3,938,34.4,879,30.5,928,33.799999999999997]
[41,1006,40.6,925,33.5,865,29.6,915,32.799999999999997]
[42,998,39.799999999999997,911,32.6,850,28.7,901,31.9]
[43,990,39,898,31.7,835,27.8,887,31]
[44,981,38.200000000000003,884,30.8,820,27,873,30.2]
[45,973,37.4,870,29.9,804,26.1,859,29.3]
[46,964,36.6,855,29.1,789,25.3,844,28.4]
[47,954,35.799999999999997,841,28.2,773,24.5,829,27.5]
[48,944,35,825,27.3,756,23.6,814,26.7]
[49,934,34.200000000000003,809,26.5,739,22.8,798,25.8]
[50,923,33.4,793,25.6,722,22,781,25]
[51,912,32.6,777,24.8,704,21.2,765,24.1]
[52,901,31.8,760,23.9,686,20.399999999999999,748,23.3]
[53,889,31,743,23.1,668,19.600000000000001,731,22.5]
[54,877,30.2,726,22.3,650,18.8,714,21.7]
[55,865,29.3,709,21.5,632,18.100000000000001,696,20.9]
[56,852,28.6,692,20.7,614,17.399999999999999,679,20.100000000000001]
[57,840,27.8,674,19.899999999999999,595,16.600000000000001,661,19.3]
[58,826,27,656,19.2,577,15.9,643,18.600000000000001]
[59,812,26.2,638,18.399999999999999,558,15.2,624,17.8]
[60,798,25.4,620,17.7,539,14.5,606,17.100000000000001]
[61,783,24.6,601,16.899999999999999,520,13.9,588,16.399999999999999]
[62,767,23.8,583,16.2,501,13.2,569,15.7]
[63,751,23,565,15.5,483,12.6,551,15]
[64,734,22.2,546,14.9,464,12,532,14.3]
[65,717,21.3,528,14.2,446,11.4,514,13.7]
[66,699,20.5,511,13.6,429,10.8,497,13.1]
[67,680,19.7,493,13,412,10.3,479,12.5]
[68,661,18.899999999999999,476,12.4,396,9.8000000000000007,462,11.9]
[69,641,18.100000000000001,460,11.8,380,9.3000000000000007,446,11.4]
[70,620,17.3,443,11.3,364,8.8000000000000007,430,10.9]
[71,600,16.5,427,10.8,349,8.4,413,10.3]
[72,579,15.8,411,10.3,334,7.9,397,9.8000000000000007]
[73,557,15,395,9.8000000000000007,319,7.5,381,9.3000000000000007]
[74,535,14.3,379,9.3000000000000007,304,7.1,365,8.9]
[75,513,13.5,363,8.8000000000000007,289,6.7,350,8.4]
[76,493,12.8,347,8.3000000000000007,275,6.3,334,8]
[77,473,12.2,332,7.9,261,5.9,319,7.5]
[78,454,11.5,317,7.5,248,5.6,305,7.1]
[79,434,10.9,303,7.1,235,5.3,291,6.8]
[80,415,10.3,289,6.7,223,5,277,6.4]
[81,396,9.6999999999999993,275,6.3,211,4.7,264,6]
[82,377,9.1999999999999993,262,6,200,4.4000000000000004,251,5.7]
[83,359,8.6999999999999993,249,5.6,189,4.0999999999999996,238,5.3]
[84,341,8.1,235,5.3,177,3.8,225,5]
[85,324,7.7,222,4.9000000000000004,166,3.6,212,4.7]
[86,308,7.2,209,4.5999999999999996,155,3.3,199,4.4000000000000004]
[87,292,6.8,196,4.3,144,3.1,187,4.0999999999999996]
[88,277,6.3,184,4,134,2.8,175,3.8]
[89,262,6,172,3.7,124,2.6,163,3.5]
[90,248,5.6,160,3.4,114,2.4,152,3.2]
[91,234,5.3,149,3.2,104,2.2000000000000002,141,3]
[92,221,4.9000000000000004,138,2.9,96,2,130,2.7]
[93,209,4.5999999999999996,129,2.7,87,1.8,121,2.5]
[94,197,4.3,120,2.5,80,1.6,112,2.2999999999999998]
[95,185,4,112,2.2999999999999998,73,1.5,105,2.2000000000000002]
[96,175,3.8,104,2.2000000000000002,68,1.4,98,2]
[97,164,3.5,98,2,62,1.3,91,1.9]
[98,155,3.3,91,1.9,57,1.1000000000000001,85,1.7]
[99,146,3.1,84,1.7,52,1,78,1.6]
[100,137,2.9,77,1.6,47,0.9,72,1.4]
[]
["(1),(2),(3)&(4) NOTE:  Factors are annuities per dollar of weekly compensation benefit from the attained age indicated."]
[]
["(1),(2),(3),(4) SOURCE:  2010 Mortality Study of Ohio permanent total disability claims, 4.00% interest "]

{"sheet":"saww info","index":3,"n_rows":58,"n_cols":6,"rows_kept":58,"cut":false,"hidden":true,"merged":[]}
["Begin Date","End Date","PTD Min","PTD Max","SAWW"]
["1959-11-02","1963-09-30",40.25,49,49,{"$f":"IF(AND('PTD Worksheet'!$J$1>=A2,'PTD Worksheet'!$J$1<=B2),'PTD Worksheet'!$J$1,FALSE)","v":false}]
["1963-10-01","1967-12-10",40.25,49,49,{"$f":"IF(AND('PTD Worksheet'!$J$1>=A3,'PTD Worksheet'!$J$1<=B3),'PTD Worksheet'!$J$1,FALSE)","v":false}]
["1967-12-11","1971-09-19",45.5,56,56,{"$f":"IF(AND('PTD Worksheet'!$J$1>=A4,'PTD Worksheet'!$J$1<=B4),'PTD Worksheet'!$J$1,FALSE)","v":false}]
["1971-09-20","1972-12-31",49,77,77,{"$f":"IF(AND('PTD Worksheet'!$J$1>=A5,'PTD Worksheet'!$J$1<=B5),'PTD Worksheet'!$J$1,FALSE)","v":false}]
[{"$f":"B5+1","v":"1973-01-01"},"1973-11-15",49,79.31,79.31,{"$f":"IF(AND('PTD Worksheet'!$J$1>=A6,'PTD Worksheet'!$J$1<=B6),'PTD Worksheet'!$J$1,FALSE)","v":false}]
[{"$f":"B6+1","v":"1973-11-16"},"1973-12-31",80,106.67,106.67,{"$f":"IF(AND('PTD Worksheet'!$J$1>=A7,'PTD Worksheet'!$J$1<=B7),'PTD Worksheet'!$J$1,FALSE)","v":false}]
["1974-01-01","1974-12-31",84,112,112,{"$f":"IF(AND('PTD Worksheet'!$J$1>=A8,'PTD Worksheet'!$J$1<=B8),'PTD Worksheet'!$J$1,FALSE)","v":false}]
["1975-01-01","1975-12-31",89.25,119,119,{"$f":"IF(AND('PTD Worksheet'!$J$1>=A9,'PTD Worksheet'!$J$1<=B9),'PTD Worksheet'!$J$1,FALSE)","v":false}]
["1976-01-01","1976-12-31",93,124,{"$f":"C10*2","v":186},{"$f":"IF(AND('PTD Worksheet'!$J$1>=A10,'PTD Worksheet'!$J$1<=B10),'PTD Worksheet'!$J$1,FALSE)","v":false}]
["1977-01-01","1977-12-31",99,{"$f":"E11*2/3","v":132},198,{"$f":"IF(AND('PTD Worksheet'!$J$1>=A11,'PTD Worksheet'!$J$1<=B11),'PTD Worksheet'!$J$1,FALSE)","v":false}]
["1978-01-01",{"$f":"B11+365","v":"1978-12-31"},108,{"$f":"E12*2/3","v":144},216,{"$f":"IF(AND('PTD Worksheet'!$J$1>=A12,'PTD Worksheet'!$J$1<=B12),'PTD Worksheet'!$J$1,FALSE)","v":false}]
["1979-01-01",{"$f":"B12+365","v":"1979-12-31"},120.5,160.66666666666666,241,{"$f":"IF(AND('PTD Worksheet'!$J$1>=A13,'PTD Worksheet'!$J$1<=B13),'PTD Worksheet'!$J$1,FALSE)","v":false}]
["1980-01-01","1980-12-31",129,172,258,{"$f":"IF(AND('PTD Worksheet'!$J$1>=A14,'PTD Worksheet'!$J$1<=B14),'PTD Worksheet'!$J$1,FALSE)","v":false}]
["1981-01-01","1981-12-31",137.5,183.33333333333334,275,{"$f":"IF(AND('PTD Worksheet'!$J$1>=A15,'PTD Worksheet'!$J$1<=B15),'PTD Worksheet'!$J$1,FALSE)","v":false}]
["1982-01-01","1982-12-31",149,198.66666666666666,298,{"$f":"IF(AND('PTD Worksheet'!$J$1>=A16,'PTD Worksheet'!$J$1<=B16),'PTD Worksheet'!$J$1,FALSE)","v":false}]
["1983-01-01","1983-12-31",160.5,214,321,{"$f":"IF(AND('PTD Worksheet'!$J$1>=A17,'PTD Worksheet'!$J$1<=B17),'PTD Worksheet'!$J$1,FALSE)","v":false}]
["1984-01-01","1984-12-31",167.5,223.33333333333334,335,{"$f":"IF(AND('PTD Worksheet'!$J$1>=A18,'PTD Worksheet'!$J$1<=B18),'PTD Worksheet'!$J$1,FALSE)","v":false}]
["1985-01-01","1985-12-31",177,236,354,{"$f":"IF(AND('PTD Worksheet'!$J$1>=A19,'PTD Worksheet'!$J$1<=B19),'PTD Worksheet'!$J$1,FALSE)","v":false}]
["1986-01-01","1986-12-31",182.5,243.33333333333334,365,{"$f":"IF(AND('PTD Worksheet'!$J$1>=A20,'PTD Worksheet'!$J$1<=B20),'PTD Worksheet'!$J$1,FALSE)","v":false}]
["1987-01-01","1987-12-31",188,250.66666666666666,376,{"$f":"IF(AND('PTD Worksheet'!$J$1>=A21,'PTD Worksheet'!$J$1<=B21),'PTD Worksheet'!$J$1,FALSE)","v":false}]
["1988-01-01",{"$f":"B21+366","v":"1988-12-31"},192.5,256.66666666666669,385,{"$f":"IF(AND('PTD Worksheet'!$J$1>=A22,'PTD Worksheet'!$J$1<=B22),'PTD Worksheet'!$J$1,FALSE)","v":false}]
["1989-01-01",{"$f":"B22+365","v":"1989-12-31"},200,266.66666666666669,400,{"$f":"IF(AND('PTD Worksheet'!$J$1>=A23,'PTD Worksheet'!$J$1<=B23),'PTD Worksheet'!$J$1,FALSE)","v":false}]
[{"$f":"B23+1","v":"1990-01-01"},"1990-12-31",209.5,279.33333333333331,419,{"$f":"IF(AND('PTD Worksheet'!$J$1>=A24,'PTD Worksheet'!$J$1<=B24),'PTD Worksheet'!$J$1,FALSE)","v":false}]
[{"$f":"B24+1","v":"1991-01-01"},"1991-12-31",214,285.33333333333331,428,{"$f":"IF(AND('PTD Worksheet'!$J$1>=A25,'PTD Worksheet'!$J$1<=B25),'PTD Worksheet'!$J$1,FALSE)","v":false}]
["1992-01-01",{"$f":"B25+366","v":"1992-12-31"},221.5,295.33333333333331,443,{"$f":"IF(AND('PTD Worksheet'!$J$1>=A26,'PTD Worksheet'!$J$1<=B26),'PTD Worksheet'!$J$1,FALSE)","v":false}]
["1993-01-01",{"$f":"B26+365","v":"1993-12-31"},230,306.66666666666669,460,{"$f":"IF(AND('PTD Worksheet'!$J$1>=A27,'PTD Worksheet'!$J$1<=B27),'PTD Worksheet'!$J$1,FALSE)","v":false}]
["1994-01-01",{"$f":"B27+365","v":"1994-12-31"},241,321.33333333333331,482,{"$f":"IF(AND('PTD Worksheet'!$J$1>=A28,'PTD Worksheet'!$J$1<=B28),'PTD Worksheet'!$J$1,FALSE)","v":false}]
["1995-01-01",{"$f":"B28+365","v":"1995-12-31"},246.5,328.66666666666669,493,{"$f":"IF(AND('PTD Worksheet'!$J$1>=A29,'PTD Worksheet'!$J$1<=B29),'PTD Worksheet'!$J$1,FALSE)","v":false}]
["1996-01-01",{"$f":"B29+366","v":"1996-12-31"},255.5,340.66666666666669,511,{"$f":"IF(AND('PTD Worksheet'!$J$1>=A30,'PTD Worksheet'!$J$1<=B30),'PTD Worksheet'!$J$1,FALSE)","v":false}]
["1997-01-01",{"$f":"B30+365","v":"1997-12-31"},260.5,347.33333333333331,521,{"$f":"IF(AND('PTD Worksheet'!$J$1>=A31,'PTD Worksheet'!$J$1<=B31),'PTD Worksheet'!$J$1,FALSE)","v":false}]
["1998-01-01",{"$f":"B31+365","v":"1998-12-31"},270.5,360.66666666666669,541,{"$f":"IF(AND('PTD Worksheet'!$J$1>=A32,'PTD Worksheet'!$J$1<=B32),'PTD Worksheet'!$J$1,FALSE)","v":false}]
["1999-01-01",{"$f":"B32+365","v":"1999-12-31"},283.5,378,567,{"$f":"IF(AND('PTD Worksheet'!$J$1>=A33,'PTD Worksheet'!$J$1<=B33),'PTD Worksheet'!$J$1,FALSE)","v":false}]
["2000-01-01",{"$f":"B33+366","v":"2000-12-31"},294.5,392.66666666666669,589,{"$f":"IF(AND('PTD Worksheet'!$J$1>=A34,'PTD Worksheet'!$J$1<=B34),'PTD Worksheet'!$J$1,FALSE)","v":false}]
["2001-01-01","2001-12-31",309,412,618,{"$f":"IF(AND('PTD Worksheet'!$J$1>=A35,'PTD Worksheet'!$J$1<=B35),'PTD Worksheet'!$J$1,FALSE)","v":false}]
["2002-01-01","2002-12-31",314,418.66666666666669,628,{"$f":"IF(AND('PTD Worksheet'!$J$1>=A36,'PTD Worksheet'!$J$1<=B36),'PTD Worksheet'!$J$1,FALSE)","v":false}]
["2003-01-01","2003-12-31",322,429.33333333333331,644,{"$f":"IF(AND('PTD Worksheet'!$J$1>=A37,'PTD Worksheet'!$J$1<=B37),'PTD Worksheet'!$J$1,FALSE)","v":false}]
["2004-01-01",{"$f":"B37+366","v":"2004-12-31"},331,441.33333333333331,662,{"$f":"IF(AND('PTD Worksheet'!$J$1>=A38,'PTD Worksheet'!$J$1<=B38),'PTD Worksheet'!$J$1,FALSE)","v":false}]
["2005-01-01","2005-12-31",339,452,678,{"$f":"IF(AND('PTD Worksheet'!$J$1>=A39,'PTD Worksheet'!$J$1<=B39),'PTD Worksheet'!$J$1,FALSE)","v":false}]
["2006-01-01","2006-12-31",352,469.33333333333331,704,{"$f":"IF(AND('PTD Worksheet'!$J$1>=A40,'PTD Worksheet'!$J$1<=B40),'PTD Worksheet'!$J$1,FALSE)","v":false}]
["2007-01-01","2007-12-31",365,486.66666666666669,730,{"$f":"IF(AND('PTD Worksheet'!$J$1>=A41,'PTD Worksheet'!$J$1<=B41),'PTD Worksheet'!$J$1,FALSE)","v":false}]
["2008-01-01",{"$f":"B41+366","v":"2008-12-31"},375.5,500.66666666666669,751,{"$f":"IF(AND('PTD Worksheet'!$J$1>=A42,'PTD Worksheet'!$J$1<=B42),'PTD Worksheet'!$J$1,FALSE)","v":false}]
["2009-01-01","2009-12-31",383.5,511.33333333333331,767,{"$f":"IF(AND('PTD Worksheet'!$J$1>=A43,'PTD Worksheet'!$J$1<=B43),'PTD Worksheet'!$J$1,FALSE)","v":false}]
["2010-01-01","2010-12-31",387.5,516.66666666666663,775,{"$f":"IF(AND('PTD Worksheet'!$J$1>=A44,'PTD Worksheet'!$J$1<=B44),'PTD Worksheet'!$J$1,FALSE)","v":false}]
["2011-01-01","2011-12-31",391.5,522,783,{"$f":"IF(AND('PTD Worksheet'!$J$1>=A45,'PTD Worksheet'!$J$1<=B45),'PTD Worksheet'!$J$1,FALSE)","v":false}]
["2012-01-01",{"$f":"B45+366","v":"2012-12-31"},404.5,539.33333333333337,809,{"$f":"IF(AND('PTD Worksheet'!$J$1>=A46,'PTD Worksheet'!$J$1<=B46),'PTD Worksheet'!$J$1,FALSE)","v":false}]
["2013-01-01","2013-12-31",419,558.66666666666663,838,{"$f":"IF(AND('PTD Worksheet'!$J$1>=A47,'PTD Worksheet'!$J$1<=B47),'PTD Worksheet'!$J$1,FALSE)","v":false}]
["2014-01-01","2014-12-31",424.5,566,849,{"$f":"IF(AND('PTD Worksheet'!$J$1>=A48,'PTD Worksheet'!$J$1<=B48),'PTD Worksheet'!$J$1,FALSE)","v":false}]
["2015-01-01","2015-12-31",431,574.66666666666663,862,{"$f":"IF(AND('PTD Worksheet'!$J$1>=A49,'PTD Worksheet'!$J$1<=B49),'PTD Worksheet'!$J$1,FALSE)","v":false}]
["2016-01-01","2016-12-31",442.5,590,885,{"$f":"IF(AND('PTD Worksheet'!$J$1>=A50,'PTD Worksheet'!$J$1<=B50),'PTD Worksheet'!$J$1,FALSE)","v":false}]
["2017-01-01","2017-12-31",451,601.33333333333337,902,{"$f":"IF(AND('PTD Worksheet'!$J$1>=A51,'PTD Worksheet'!$J$1<=B51),'PTD Worksheet'!$J$1,FALSE)","v":false}]
["2018-01-01","2018-12-31",466,621.33333333333337,932,{"$f":"IF(AND('PTD Worksheet'!$J$1>=A52,'PTD Worksheet'!$J$1<=B52),'PTD Worksheet'!$J$1,FALSE)","v":false}]
["2019-01-01","2019-12-31",475,633.33333333333337,950,{"$f":"IF(AND('PTD Worksheet'!$J$1>=A53,'PTD Worksheet'!$J$1<=B53),'PTD Worksheet'!$J$1,FALSE)","v":false}]
["2020-01-01","2020-12-31",490,653.33333333333337,980,{"$f":"IF(AND('PTD Worksheet'!$J$1>=A54,'PTD Worksheet'!$J$1<=B54),'PTD Worksheet'!$J$1,FALSE)","v":false}]
["2021-01-01","2021-12-31",509.5,679.33333333333337,1019,{"$f":"IF(AND('PTD Worksheet'!$J$1>=A55,'PTD Worksheet'!$J$1<=B55),'PTD Worksheet'!$J$1,FALSE)","v":false}]
["2022-01-01","2022-12-31",542.5,723.33333333333337,1085,{"$f":"IF(AND('PTD Worksheet'!$J$1>=A56,'PTD Worksheet'!$J$1<=B56),'PTD Worksheet'!$J$1,FALSE)","v":false}]
["2023-01-01","2023-12-31",574.5,766,1149,{"$f":"IF(AND('PTD Worksheet'!$J$1>=A57,'PTD Worksheet'!$J$1<=B57),'PTD Worksheet'!$J$1,FALSE)","v":false}]
["2024-01-01","2024-12-31",597.5,796.66666666666663,1195,{"$f":"IF(AND('PTD Worksheet'!$J$1>=A58,'PTD Worksheet'!$J$1<=B58),'PTD Worksheet'!$J$1,FALSE)","v":false}]

{"sheet":"Password","index":4,"n_rows":6,"n_cols":1,"rows_kept":6,"cut":false,"hidden":true,"merged":[]}
["ptdrate"]
["life"]
["process"]
["retire"]
["lsa25"]
["ppptd"]

{"sheet":"Pension Dates","index":5,"n_rows":688,"n_cols":5,"rows_kept":688,"cut":false,"hidden":true,"merged":[]}
["Pension Period Begin Date","Pension Period End Date","First Row Process Date as shown in PowerSuite","Match","Match"]
["2014-09-07","2014-09-20","2014-09-06",{"$f":"IF(AND('First Process Date'!$F$2>='Pension Dates'!A2,'First Process Date'!$F$2<='Pension Dates'!B2),'First Process Date'!$C$2,FALSE)","v":false},{"$f":"IF(AND('First Process Date'!$F$8>='Pension Dates'!A2,'First Process Date'!$F$8<='Pension Dates'!B2),'First Process Date'!$C$8,FALSE)","v":false}]
["2014-09-21","2014-10-04","2014-09-20",{"$f":"IF(AND('First Process Date'!$F$2>='Pension Dates'!A3,'First Process Date'!$F$2<='Pension Dates'!B3),'First Process Date'!$C$2,FALSE)","v":false},{"$f":"IF(AND('First Process Date'!$F$8>='Pension Dates'!A3,'First Process Date'!$F$8<='Pension Dates'!B3),'First Process Date'!$C$8,FALSE)","v":false}]
["2014-10-05","2014-10-18","2014-10-04",{"$f":"IF(AND('First Process Date'!$F$2>='Pension Dates'!A4,'First Process Date'!$F$2<='Pension Dates'!B4),'First Process Date'!$C$2,FALSE)","v":false},{"$f":"IF(AND('First Process Date'!$F$8>='Pension Dates'!A4,'First Process Date'!$F$8<='Pension Dates'!B4),'First Process Date'!$C$8,FALSE)","v":false}]
["2014-10-19","2014-11-01","2014-10-18",{"$f":"IF(AND('First Process Date'!$F$2>='Pension Dates'!A5,'First Process Date'!$F$2<='Pension Dates'!B5),'First Process Date'!$C$2,FALSE)","v":false},{"$f":"IF(AND('First Process Date'!$F$8>='Pension Dates'!A5,'First Process Date'!$F$8<='Pension Dates'!B5),'First Process Date'!$C$8,FALSE)","v":false}]
["2014-11-02","2014-11-15","2014-11-01",{"$f":"IF(AND('First Process Date'!$F$2>='Pension Dates'!A6,'First Process Date'!$F$2<='Pension Dates'!B6),'First Process Date'!$C$2,FALSE)","v":false},{"$f":"IF(AND('First Process Date'!$F$8>='Pension Dates'!A6,'First Process Date'!$F$8<='Pension Dates'!B6),'First Process Date'!$C$8,FALSE)","v":false}]
["2014-11-16","2014-11-29","2014-11-15",{"$f":"IF(AND('First Process Date'!$F$2>='Pension Dates'!A7,'First Process Date'!$F$2<='Pension Dates'!B7),'First Process Date'!$C$2,FALSE)","v":false},{"$f":"IF(AND('First Process Date'!$F$8>='Pension Dates'!A7,'First Process Date'!$F$8<='Pension Dates'!B7),'First Process Date'!$C$8,FALSE)","v":false}]
["2014-11-30","2014-12-13","2014-11-29",{"$f":"IF(AND('First Process Date'!$F$2>='Pension Dates'!A8,'First Process Date'!$F$2<='Pension Dates'!B8),'First Process Date'!$C$2,FALSE)","v":false},{"$f":"IF(AND('First Process Date'!$F$8>='Pension Dates'!A8,'First Process Date'!$F$8<='Pension Dates'!B8),'First Process Date'!$C$8,FALSE)","v":false}]
["2014-12-14","2014-12-27","2014-12-13",{"$f":"IF(AND('First Process Date'!$F$2>='Pension Dates'!A9,'First Process Date'!$F$2<='Pension Dates'!B9),'First Process Date'!$C$2,FALSE)","v":false},{"$f":"IF(AND('First Process Date'!$F$8>='Pension Dates'!A9,'First Process Date'!$F$8<='Pension Dates'!B9),'First Process Date'!$C$8,FALSE)","v":false}]
["2014-12-28","2015-01-10","2014-12-27",{"$f":"IF(AND('First Process Date'!$F$2>='Pension Dates'!A10,'First Process Date'!$F$2<='Pension Dates'!B10),'First Process Date'!$C$2,FALSE)","v":false},{"$f":"IF(AND('First Process Date'!$F$8>='Pension Dates'!A10,'First Process Date'!$F$8<='Pension Dates'!B10),'First Process Date'!$C$8,FALSE)","v":false}]
["2015-01-11","2015-01-24","2015-01-10",{"$f":"IF(AND('First Process Date'!$F$2>='Pension Dates'!A11,'First Process Date'!$F$2<='Pension Dates'!B11),'First Process Date'!$C$2,FALSE)","v":false},{"$f":"IF(AND('First Process Date'!$F$8>='Pension Dates'!A11,'First Process Date'!$F$8<='Pension Dates'!B11),'First Process Date'!$C$8,FALSE)","v":false}]
["2015-01-25","2015-02-07","2015-01-24",{"$f":"IF(AND('First Process Date'!$F$2>='Pension Dates'!A12,'First Process Date'!$F$2<='Pension Dates'!B12),'First Process Date'!$C$2,FALSE)","v":false},{"$f":"IF(AND('First Process Date'!$F$8>='Pension Dates'!A12,'First Process Date'!$F$8<='Pension Dates'!B12),'First Process Date'!$C$8,FALSE)","v":false}]
["2015-02-08","2015-02-21","2015-02-07",{"$f":"IF(AND('First Process Date'!$F$2>='Pension Dates'!A13,'First Process Date'!$F$2<='Pension Dates'!B13),'First Process Date'!$C$2,FALSE)","v":false},{"$f":"IF(AND('First Process Date'!$F$8>='Pension Dates'!A13,'First Process Date'!$F$8<='Pension Dates'!B13),'First Process Date'!$C$8,FALSE)","v":false}]
["2015-02-22","2015-03-07","2015-02-21",{"$f":"IF(AND('First Process Date'!$F$2>='Pension Dates'!A14,'First Process Date'!$F$2<='Pension Dates'!B14),'First Process Date'!$C$2,FALSE)","v":false},{"$f":"IF(AND('First Process Date'!$F$8>='Pension Dates'!A14,'First Process Date'!$F$8<='Pension Dates'!B14),'First Process Date'!$C$8,FALSE)","v":false}]
["2015-03-08","2015-03-21","2015-03-07",{"$f":"IF(AND('First Process Date'!$F$2>='Pension Dates'!A15,'First Process Date'!$F$2<='Pension Dates'!B15),'First Process Date'!$C$2,FALSE)","v":false},{"$f":"IF(AND('First Process Date'!$F$8>='Pension Dates'!A15,'First Process Date'!$F$8<='Pension Dates'!B15),'First Process Date'!$C$8,FALSE)","v":false}]
["2015-03-22","2015-04-04","2015-03-21",{"$f":"IF(AND('First Process Date'!$F$2>='Pension Dates'!A16,'First Process Date'!$F$2<='Pension Dates'!B16),'First Process Date'!$C$2,FALSE)","v":false},{"$f":"IF(AND('First Process Date'!$F$8>='Pension Dates'!A16,'First Process Date'!$F$8<='Pension Dates'!B16),'First Process Date'!$C$8,FALSE)","v":false}]
["2015-04-05","2015-04-18","2015-04-04",{"$f":"IF(AND('First Process Date'!$F$2>='Pension Dates'!A17,'First Process Date'!$F$2<='Pension Dates'!B17),'First Process Date'!$C$2,FALSE)","v":false},{"$f":"IF(AND('First Process Date'!$F$8>='Pension Dates'!A17,'First Process Date'!$F$8<='Pension Dates'!B17),'First Process Date'!$C$8,FALSE)","v":false}]
["2015-04-19","2015-05-02","2015-04-18",{"$f":"IF(AND('First Process Date'!$F$2>='Pension Dates'!A18,'First Process Date'!$F$2<='Pension Dates'!B18),'First Process Date'!$C$2,FALSE)","v":false},{"$f":"IF(AND('First Process Date'!$F$8>='Pension Dates'!A18,'First Process Date'!$F$8<='Pension Dates'!B18),'First Process Date'!$C$8,FALSE)","v":false}]
["2015-05-03","2015-05-16","2015-05-02",{"$f":"IF(AND('First Process Date'!$F$2>='Pension Dates'!A19,'First Process Date'!$F$2<='Pension Dates'!B19),'First Process Date'!$C$2,FALSE)","v":false},{"$f":"IF(AND('First Process Date'!$F$8>='Pension Dates'!A19,'First Process Date'!$F$8<='Pension Dates'!B19),'First Process Date'!$C$8,FALSE)","v":false}]
["2015-05-17","2015-05-30","2015-05-16",{"$f":"IF(AND('First Process Date'!$F$2>='Pension Dates'!A20,'First Process Date'!$F$2<='Pension Dates'!B20),'First Process Date'!$C$2,FALSE)","v":false},{"$f":"IF(AND('First Process Date'!$F$8>='Pension Dates'!A20,'First Process Date'!$F$8<='Pension Dates'!B20),'First Process Date'!$C$8,FALSE)","v":false}]
["2015-05-31","2015-06-13","2015-05-30",{"$f":"IF(AND('First Process Date'!$F$2>='Pension Dates'!A21,'First Process Date'!$F$2<='Pension Dates'!B21),'First Process Date'!$C$2,FALSE)","v":false},{"$f":"IF(AND('First Process Date'!$F$8>='Pension Dates'!A21,'First Process Date'!$F$8<='Pension Dates'!B21),'First Process Date'!$C$8,FALSE)","v":false}]
["2015-06-14","2015-06-27","2015-06-13",{"$f":"IF(AND('First Process Date'!$F$2>='Pension Dates'!A22,'First Process Date'!$F$2<='Pension Dates'!B22),'First Process Date'!$C$2,FALSE)","v":false},{"$f":"IF(AND('First Process Date'!$F$8>='Pension Dates'!A22,'First Process Date'!$F$8<='Pension Dates'!B22),'First Process Date'!$C$8,FALSE)","v":false}]
["2015-06-28","2015-07-11","2015-06-27",{"$f":"IF(AND('First Process Date'!$F$2>='Pension Dates'!A23,'First Process Date'!$F$2<='Pension Dates'!B23),'First Process Date'!$C$2,FALSE)","v":false},{"$f":"IF(AND('First Process Date'!$F$8>='Pension Dates'!A23,'First Process Date'!$F$8<='Pension Dates'!B23),'First Process Date'!$C$8,FALSE)","v":false}]
["2015-07-12","2015-07-25","2015-07-11",{"$f":"IF(AND('First Process Date'!$F$2>='Pension Dates'!A24,'First Process Date'!$F$2<='Pension Dates'!B24),'First Process Date'!$C$2,FALSE)","v":false},{"$f":"IF(AND('First Process Date'!$F$8>='Pension Dates'!A24,'First Process Date'!$F$8<='Pension Dates'!B24),'First Process Date'!$C$8,FALSE)","v":false}]
["2015-07-26","2015-08-08","2015-07-25",{"$f":"IF(AND('First Process Date'!$F$2>='Pension Dates'!A25,'First Process Date'!$F$2<='Pension Dates'!B25),'First Process Date'!$C$2,FALSE)","v":false},{"$f":"IF(AND('First Process Date'!$F$8>='Pension Dates'!A25,'First Process Date'!$F$8<='Pension Dates'!B25),'First Process Date'!$C$8,FALSE)","v":false}]
["2015-08-09","2015-08-22","2015-08-08",{"$f":"IF(AND('First Process Date'!$F$2>='Pension Dates'!A26,'First Process Date'!$F$2<='Pension Dates'!B26),'First Process Date'!$C$2,FALSE)","v":false},{"$f":"IF(AND('First Process Date'!$F$8>='Pension Dates'!A26,'First Process Date'!$F$8<='Pension Dates'!B26),'First Process Date'!$C$8,FALSE)","v":false}]
["2015-08-23","2015-09-05","2015-08-22",{"$f":"IF(AND('First Process Date'!$F$2>='Pension Dates'!A27,'First Process Date'!$F$2<='Pension Dates'!B27),'First Process Date'!$C$2,FALSE)","v":false},{"$f":"IF(AND('First Process Date'!$F$8>='Pension Dates'!A27,'First Process Date'!$F$8<='Pension Dates'!B27),'First Process Date'!$C$8,FALSE)","v":false}]
["2015-09-06","2015-09-19","2015-09-05",{"$f":"IF(AND('First Process Date'!$F$2>='Pension Dates'!A28,'First Process Date'!$F$2<='Pension Dates'!B28),'First Process Date'!$C$2,FALSE)","v":false},{"$f":"IF(AND('First Process Date'!$F$8>='Pension Dates'!A28,'First Process Date'!$F$8<='Pension Dates'!B28),'First Process Date'!$C$8,FALSE)","v":false}]
["2015-09-20","2015-10-03","2015-09-19",{"$f":"IF(AND('First Process Date'!$F$2>='Pension Dates'!A29,'First Process Date'!$F$2<='Pension Dates'!B29),'First Process Date'!$C$2,FALSE)","v":false},{"$f":"IF(AND('First Process Date'!$F$8>='Pension Dates'!A29,'First Process Date'!$F$8<='Pension Dates'!B29),'First Process Date'!$C$8,FALSE)","v":false}]
["2015-10-04","2015-10-17","2015-10-03",{"$f":"IF(AND('First Process Date'!$F$2>='Pension Dates'!A30,'First Process Date'!$F$2<='Pension Dates'!B30),'First Process Date'!$C$2,FALSE)","v":false},{"$f":"IF(AND('First Process Date'!$F$8>='Pension Dates'!A30,'First Process Date'!$F$8<='Pension Dates'!B30),'First Process Date'!$C$8,FALSE)","v":false}]
["2015-10-18","2015-10-31","2015-10-17",{"$f":"IF(AND('First Process Date'!$F$2>='Pension Dates'!A31,'First Process Date'!$F$2<='Pension Dates'!B31),'First Process Date'!$C$2,FALSE)","v":false},{"$f":"IF(AND('First Process Date'!$F$8>='Pension Dates'!A31,'First Process Date'!$F$8<='Pension Dates'!B31),'First Process Date'!$C$8,FALSE)","v":false}]
["2015-11-01","2015-11-14","2015-10-31",{"$f":"IF(AND('First Process Date'!$F$2>='Pension Dates'!A32,'First Process Date'!$F$2<='Pension Dates'!B32),'First Process Date'!$C$2,FALSE)","v":false},{"$f":"IF(AND('First Process Date'!$F$8>='Pension Dates'!A32,'First Process Date'!$F$8<='Pension Dates'!B32),'First Process Date'!$C$8,FALSE)","v":false}]
["2015-11-15","2015-11-28","2015-11-14",{"$f":"IF(AND('First Process Date'!$F$2>='Pension Dates'!A33,'First Process Date'!$F$2<='Pension Dates'!B33),'First Process Date'!$C$2,FALSE)","v":false},{"$f":"IF(AND('First Process Date'!$F$8>='Pension Dates'!A33,'First Process Date'!$F$8<='Pension Dates'!B33),'First Process Date'!$C$8,FALSE)","v":false}]
["2015-11-29","2015-12-12","2015-11-28",{"$f":"IF(AND('First Process Date'!$F$2>='Pension Dates'!A34,'First Process Date'!$F$2<='Pension Dates'!B34),'First Process Date'!$C$2,FALSE)","v":false},{"$f":"IF(AND('First Process Date'!$F$8>='Pension Dates'!A34,'First Process Date'!$F$8<='Pension Dates'!B34),'First Process Date'!$C$8,FALSE)","v":false}]
["2015-12-13","2015-12-26","2015-12-12",{"$f":"IF(AND('First Process Date'!$F$2>='Pension Dates'!A35,'First Process Date'!$F$2<='Pension Dates'!B35),'First Process Date'!$C$2,FALSE)","v":false},{"$f":"IF(AND('First Process Date'!$F$8>='Pension Dates'!A35,'First Process Date'!$F$8<='Pension Dates'!B35),'First Process Date'!$C$8,FALSE)","v":false}]
["2015-12-27","2016-01-09","2015-12-26",{"$f":"IF(AND('First Process Date'!$F$2>='Pension Dates'!A36,'First Process Date'!$F$2<='Pension Dates'!B36),'First Process Date'!$C$2,FALSE)","v":false},{"$f":"IF(AND('First Process Date'!$F$8>='Pension Dates'!A36,'First Process Date'!$F$8<='Pension Dates'!B36),'First Process Date'!$C$8,FALSE)","v":false}]
["2016-01-10","2016-01-23","2016-01-09",{"$f":"IF(AND('First Process Date'!$F$2>='Pension Dates'!A37,'First Process Date'!$F$2<='Pension Dates'!B37),'First Process Date'!$C$2,FALSE)","v":false},{"$f":"IF(AND('First Process Date'!$F$8>='Pension Dates'!A37,'First Process Date'!$F$8<='Pension Dates'!B37),'First Process Date'!$C$8,FALSE)","v":false}]
["2016-01-24","2016-02-06","2016-01-23",{"$f":"IF(AND('First Process Date'!$F$2>='Pension Dates'!A38,'First Process Date'!$F$2<='Pension Dates'!B38),'First Process Date'!$C$2,FALSE)","v":false},{"$f":"IF(AND('First Process Date'!$F$8>='Pension Dates'!A38,'First Process Date'!$F$8<='Pension Dates'!B38),'First Process Date'!$C$8,FALSE)","v":false}]
["2016-02-07","2016-02-20","2016-02-06",{"$f":"IF(AND('First Process Date'!$F$2>='Pension Dates'!A39,'First Process Date'!$F$2<='Pension Dates'!B39),'First Process Date'!$C$2,FALSE)","v":false},{"$f":"IF(AND('First Process Date'!$F$8>='Pension Dates'!A39,'First Process Date'!$F$8<='Pension Dates'!B39),'First Process Date'!$C$8,FALSE)","v":false}]
["2016-02-21","2016-03-05","2016-02-20",{"$f":"IF(AND('First Process Date'!$F$2>='Pension Dates'!A40,'First Process Date'!$F$2<='Pension Dates'!B40),'First Process Date'!$C$2,FALSE)","v":false},{"$f":"IF(AND('First Process Date'!$F$8>='Pension Dates'!A40,'First Process Date'!$F$8<='Pension Dates'!B40),'First Process Date'!$C$8,FALSE)","v":false}]
["2016-03-06","2016-03-19","2016-03-05",{"$f":"IF(AND('First Process Date'!$F$2>='Pension Dates'!A41,'First Process Date'!$F$2<='Pension Dates'!B41),'First Process Date'!$C$2,FALSE)","v":false},{"$f":"IF(AND('First Process Date'!$F$8>='Pension Dates'!A41,'First Process Date'!$F$8<='Pension Dates'!B41),'First Process Date'!$C$8,FALSE)","v":false}]
["2016-03-20","2016-04-02","2016-03-19",{"$f":"IF(AND('First Process Date'!$F$2>='Pension Dates'!A42,'First Process Date'!$F$2<='Pension Dates'!B42),'First Process Date'!$C$2,FALSE)","v":false},{"$f":"IF(AND('First Process Date'!$F$8>='Pension Dates'!A42,'First Process Date'!$F$8<='Pension Dates'!B42),'First Process Date'!$C$8,FALSE)","v":false}]
["2016-04-03","2016-04-16","2016-04-02",{"$f":"IF(AND('First Process Date'!$F$2>='Pension Dates'!A43,'First Process Date'!$F$2<='Pension Dates'!B43),'First Process Date'!$C$2,FALSE)","v":false},{"$f":"IF(AND('First Process Date'!$F$8>='Pension Dates'!A43,'First Process Date'!$F$8<='Pension Dates'!B43),'First Process Date'!$C$8,FALSE)","v":false}]
["2016-04-17","2016-04-30","2016-04-16",{"$f":"IF(AND('First Process Date'!$F$2>='Pension Dates'!A44,'First Process Date'!$F$2<='Pension Dates'!B44),'First Process Date'!$C$2,FALSE)","v":false},{"$f":"IF(AND('First Process Date'!$F$8>='Pension Dates'!A44,'First Process Date'!$F$8<='Pension Dates'!B44),'First Process Date'!$C$8,FALSE)","v":false}]
["2016-05-01","2016-05-14","2016-04-30",{"$f":"IF(AND('First Process Date'!$F$2>='Pension Dates'!A45,'First Process Date'!$F$2<='Pension Dates'!B45),'First Process Date'!$C$2,FALSE)","v":false},{"$f":"IF(AND('First Process Date'!$F$8>='Pension Dates'!A45,'First Process Date'!$F$8<='Pension Dates'!B45),'First Process Date'!$C$8,FALSE)","v":false}]
["2016-05-15","2016-05-28","2016-05-14",{"$f":"IF(AND('First Process Date'!$F$2>='Pension Dates'!A46,'First Process Date'!$F$2<='Pension Dates'!B46),'First Process Date'!$C$2,FALSE)","v":false},{"$f":"IF(AND('First Process Date'!$F$8>='Pension Dates'!A46,'First Process Date'!$F$8<='Pension Dates'!B46),'First Process Date'!$C$8,FALSE)","v":false}]
["2016-05-29","2016-06-11","2016-05-28",{"$f":"IF(AND('First Process Date'!$F$2>='Pension Dates'!A47,'First Process Date'!$F$2<='Pension Dates'!B47),'First Process Date'!$C$2,FALSE)","v":false},{"$f":"IF(AND('First Process Date'!$F$8>='Pension Dates'!A47,'First Process Date'!$F$8<='Pension Dates'!B47),'First Process Date'!$C$8,FALSE)","v":false}]
["2016-06-12","2016-06-25","2016-06-11",{"$f":"IF(AND('First Process Date'!$F$2>='Pension Dates'!A48,'First Process Date'!$F$2<='Pension Dates'!B48),'First Process Date'!$C$2,FALSE)","v":false},{"$f":"IF(AND('First Process Date'!$F$8>='Pension Dates'!A48,'First Process Date'!$F$8<='Pension Dates'!B48),'First Process Date'!$C$8,FALSE)","v":false}]
["2016-06-26","2016-07-09","2016-06-25",{"$f":"IF(AND('First Process Date'!$F$2>='Pension Dates'!A49,'First Process Date'!$F$2<='Pension Dates'!B49),'First Process Date'!$C$2,FALSE)","v":false},{"$f":"IF(AND('First Process Date'!$F$8>='Pension Dates'!A49,'First Process Date'!$F$8<='Pension Dates'!B49),'First Process Date'!$C$8,FALSE)","v":false}]
["2016-07-10","2016-07-23","2016-07-09",{"$f":"IF(AND('First Process Date'!$F$2>='Pension Dates'!A50,'First Process Date'!$F$2<='Pension Dates'!B50),'First Process Date'!$C$2,FALSE)","v":false},{"$f":"IF(AND('First Process Date'!$F$8>='Pension Dates'!A50,'First Process Date'!$F$8<='Pension Dates'!B50),'First Process Date'!$C$8,FALSE)","v":false}]
["2016-07-24","2016-08-06","2016-07-23",{"$f":"IF(AND('First Process Date'!$F$2>='Pension Dates'!A51,'First Process Date'!$F$2<='Pension Dates'!B51),'First Process Date'!$C$2,FALSE)","v":false},{"$f":"IF(AND('First Process Date'!$F$8>='Pension Dates'!A51,'First Process Date'!$F$8<='Pension Dates'!B51),'First Process Date'!$C$8,FALSE)","v":false}]
["2016-08-07","2016-08-20","2016-08-06",{"$f":"IF(AND('First Process Date'!$F$2>='Pension Dates'!A52,'First Process Date'!$F$2<='Pension Dates'!B52),'First Process Date'!$C$2,FALSE)","v":false},{"$f":"IF(AND('First Process Date'!$F$8>='Pension Dates'!A52,'First Process Date'!$F$8<='Pension Dates'!B52),'First Process Date'!$C$8,FALSE)","v":false}]
["2016-08-21","2016-09-03","2016-08-20",{"$f":"IF(AND('First Process Date'!$F$2>='Pension Dates'!A53,'First Process Date'!$F$2<='Pension Dates'!B53),'First Process Date'!$C$2,FALSE)","v":false},{"$f":"IF(AND('First Process Date'!$F$8>='Pension Dates'!A53,'First Process Date'!$F$8<='Pension Dates'!B53),'First Process Date'!$C$8,FALSE)","v":false}]
["2016-09-04","2016-09-17","2016-09-03",{"$f":"IF(AND('First Process Date'!$F$2>='Pension Dates'!A54,'First Process Date'!$F$2<='Pension Dates'!B54),'First Process Date'!$C$2,FALSE)","v":false},{"$f":"IF(AND('First Process Date'!$F$8>='Pension Dates'!A54,'First Process Date'!$F$8<='Pension Dates'!B54),'First Process Date'!$C$8,FALSE)","v":false}]
["2016-09-18","2016-10-01","2016-09-17",{"$f":"IF(AND('First Process Date'!$F$2>='Pension Dates'!A55,'First Process Date'!$F$2<='Pension Dates'!B55),'First Process Date'!$C$2,FALSE)","v":false},{"$f":"IF(AND('First Process Date'!$F$8>='Pension Dates'!A55,'First Process Date'!$F$8<='Pension Dates'!B55),'First Process Date'!$C$8,FALSE)","v":false}]
["2016-10-02","2016-10-15","2016-10-01",{"$f":"IF(AND('First Process Date'!$F$2>='Pension Dates'!A56,'First Process Date'!$F$2<='Pension Dates'!B56),'First Process Date'!$C$2,FALSE)","v":false},{"$f":"IF(AND('First Process Date'!$F$8>='Pension Dates'!A56,'First Process Date'!$F$8<='Pension Dates'!B56),'First Process Date'!$C$8,FALSE)","v":false}]
["2016-10-16","2016-10-29","2016-10-15",{"$f":"IF(AND('First Process Date'!$F$2>='Pension Dates'!A57,'First Process Date'!$F$2<='Pension Dates'!B57),'First Process Date'!$C$2,FALSE)","v":false},{"$f":"IF(AND('First Process Date'!$F$8>='Pension Dates'!A57,'First Process Date'!$F$8<='Pension Dates'!B57),'First Process Date'!$C$8,FALSE)","v":false}]
["2016-10-30","2016-11-12","2016-10-29",{"$f":"IF(AND('First Process Date'!$F$2>='Pension Dates'!A58,'First Process Date'!$F$2<='Pension Dates'!B58),'First Process Date'!$C$2,FALSE)","v":false},{"$f":"IF(AND('First Process Date'!$F$8>='Pension Dates'!A58,'First Process Date'!$F$8<='Pension Dates'!B58),'First Process Date'!$C$8,FALSE)","v":false}]
["2016-11-13","2016-11-26","2016-11-12",{"$f":"IF(AND('First Process Date'!$F$2>='Pension Dates'!A59,'First Process Date'!$F$2<='Pension Dates'!B59),'First Process Date'!$C$2,FALSE)","v":false},{"$f":"IF(AND('First Process Date'!$F$8>='Pension Dates'!A59,'First Process Date'!$F$8<='Pension Dates'!B59),'First Process Date'!$C$8,FALSE)","v":false}]
["2016-11-27","2016-12-10","2016-11-26",{"$f":"IF(AND('First Process Date'!$F$2>='Pension Dates'!A60,'First Process Date'!$F$2<='Pension Dates'!B60),'First Process Date'!$C$2,FALSE)","v":false},{"$f":"IF(AND('First Process Date'!$F$8>='Pension Dates'!A60,'First Process Date'!$F$8<='Pension Dates'!B60),'First Process Date'!$C$8,FALSE)","v":false}]
["2016-12-11","2016-12-24","2016-12-10",{"$f":"IF(AND('First Process Date'!$F$2>='Pension Dates'!A61,'First Process Date'!$F$2<='Pension Dates'!B61),'First Process Date'!$C$2,FALSE)","v":false},{"$f":"IF(AND('First Process Date'!$F$8>='Pension Dates'!A61,'First Process Date'!$F$8<='Pension Dates'!B61),'First Process Date'!$C$8,FALSE)","v":false}]
["2016-12-25","2017-01-07","2016-12-24",{"$f":"IF(AND('First Process Date'!$F$2>='Pension Dates'!A62,'First Process Date'!$F$2<='Pension Dates'!B62),'First Process Date'!$C$2,FALSE)","v":false},{"$f":"IF(AND('First Process Date'!$F$8>='Pension Dates'!A62,'First Process Date'!$F$8<='Pension Dates'!B62),'First Process Date'!$C$8,FALSE)","v":false}]
["2017-01-08","2017-01-21","2017-01-07",{"$f":"IF(AND('First Process Date'!$F$2>='Pension Dates'!A63,'First Process Date'!$F$2<='Pension Dates'!B63),'First Process Date'!$C$2,FALSE)","v":false},{"$f":"IF(AND('First Process Date'!$F$8>='Pension Dates'!A63,'First Process Date'!$F$8<='Pension Dates'!B63),'First Process Date'!$C$8,FALSE)","v":false}]
["2017-01-22","2017-02-04","2017-01-21",{"$f":"IF(AND('First Process Date'!$F$2>='Pension Dates'!A64,'First Process Date'!$F$2<='Pension Dates'!B64),'First Process Date'!$C$2,FALSE)","v":false},{"$f":"IF(AND('First Process Date'!$F$8>='Pension Dates'!A64,'First Process Date'!$F$8<='Pension Dates'!B64),'First Process Date'!$C$8,FALSE)","v":false}]
["2017-02-05","2017-02-18","2017-02-04",{"$f":"IF(AND('First Process Date'!$F$2>='Pension Dates'!A65,'First Process Date'!$F$2<='Pension Dates'!B65),'First Process Date'!$C$2,FALSE)","v":false},{"$f":"IF(AND('First Process Date'!$F$8>='Pension Dates'!A65,'First Process Date'!$F$8<='Pension Dates'!B65),'First Process Date'!$C$8,FALSE)","v":false}]
["2017-02-19","2017-03-04","2017-02-18",{"$f":"IF(AND('First Process Date'!$F$2>='Pension Dates'!A66,'First Process Date'!$F$2<='Pension Dates'!B66),'First Process Date'!$C$2,FALSE)","v":false},{"$f":"IF(AND('First Process Date'!$F$8>='Pension Dates'!A66,'First Process Date'!$F$8<='Pension Dates'!B66),'First Process Date'!$C$8,FALSE)","v":false}]
["2017-03-05","2017-03-18","2017-03-04",{"$f":"IF(AND('First Process Date'!$F$2>='Pension Dates'!A67,'First Process Date'!$F$2<='Pension Dates'!B67),'First Process Date'!$C$2,FALSE)","v":false},{"$f":"IF(AND('First Process Date'!$F$8>='Pension Dates'!A67,'First Process Date'!$F$8<='Pension Dates'!B67),'First Process Date'!$C$8,FALSE)","v":false}]
["2017-03-19","2017-04-01","2017-03-18",{"$f":"IF(AND('First Process Date'!$F$2>='Pension Dates'!A68,'First Process Date'!$F$2<='Pension Dates'!B68),'First Process Date'!$C$2,FALSE)","v":false},{"$f":"IF(AND('First Process Date'!$F$8>='Pension Dates'!A68,'First Process Date'!$F$8<='Pension Dates'!B68),'First Process Date'!$C$8,FALSE)","v":false}]
["2017-04-02","2017-04-15","2017-04-01",{"$f":"IF(AND('First Process Date'!$F$2>='Pension Dates'!A69,'First Process Date'!$F$2<='Pension Dates'!B69),'First Process Date'!$C$2,FALSE)","v":false},{"$f":"IF(AND('First Process Date'!$F$8>='Pension Dates'!A69,'First Process Date'!$F$8<='Pension Dates'!B69),'First Process Date'!$C$8,FALSE)","v":false}]
["2017-04-16","2017-04-29","2017-04-15",{"$f":"IF(AND('First Process Date'!$F$2>='Pension Dates'!A70,'First Process Date'!$F$2<='Pension Dates'!B70),'First Process Date'!$C$2,FALSE)","v":false},{"$f":"IF(AND('First Process Date'!$F$8>='Pension Dates'!A70,'First Process Date'!$F$8<='Pension Dates'!B70),'First Process Date'!$C$8,FALSE)","v":false}]
["2017-04-30","2017-05-13","2017-04-29",{"$f":"IF(AND('First Process Date'!$F$2>='Pension Dates'!A71,'First Process Date'!$F$2<='Pension Dates'!B71),'First Process Date'!$C$2,FALSE)","v":false},{"$f":"IF(AND('First Process Date'!$F$8>='Pension Dates'!A71,'First Process Date'!$F$8<='Pension Dates'!B71),'First Process Date'!$C$8,FALSE)","v":false}]
["2017-05-14","2017-05-27","2017-05-13",{"$f":"IF(AND('First Process Date'!$F$2>='Pension Dates'!A72,'First Process Date'!$F$2<='Pension Dates'!B72),'First Process Date'!$C$2,FALSE)","v":false},{"$f":"IF(AND('First Process Date'!$F$8>='Pension Dates'!A72,'First Process Date'!$F$8<='Pension Dates'!B72),'First Process Date'!$C$8,FALSE)","v":false}]
["2017-05-28","2017-06-10","2017-05-27",{"$f":"IF(AND('First Process Date'!$F$2>='Pension Dates'!A73,'First Process Date'!$F$2<='Pension Dates'!B73),'First Process Date'!$C$2,FALSE)","v":false},{"$f":"IF(AND('First Process Date'!$F$8>='Pension Dates'!A73,'First Process Date'!$F$8<='Pension Dates'!B73),'First Process Date'!$C$8,FALSE)","v":false}]
["2017-06-11","2017-06-24","2017-06-10",{"$f":"IF(AND('First Process Date'!$F$2>='Pension Dates'!A74,'First Process Date'!$F$2<='Pension Dates'!B74),'First Process Date'!$C$2,FALSE)","v":false},{"$f":"IF(AND('First Process Date'!$F$8>='Pension Dates'!A74,'First Process Date'!$F$8<='Pension Dates'!B74),'First Process Date'!$C$8,FALSE)","v":false}]
["2017-06-25","2017-07-08","2017-06-24",{"$f":"IF(AND('First Process Date'!$F$2>='Pension Dates'!A75,'First Process Date'!$F$2<='Pension Dates'!B75),'First Process Date'!$C$2,FALSE)","v":false},{"$f":"IF(AND('First Process Date'!$F$8>='Pension Dates'!A75,'First Process Date'!$F$8<='Pension Dates'!B75),'First Process Date'!$C$8,FALSE)","v":false}]
["2017-07-09","2017-07-22","2017-07-08",{"$f":"IF(AND('First Process Date'!$F$2>='Pension Dates'!A76,'First Process Date'!$F$2<='Pension Dates'!B76),'First Process Date'!$C$2,FALSE)","v":false},{"$f":"IF(AND('First Process Date'!$F$8>='Pension Dates'!A76,'First Process Date'!$F$8<='Pension Dates'!B76),'First Process Date'!$C$8,FALSE)","v":false}]
["2017-07-23","2017-08-05","2017-07-22",{"$f":"IF(AND('First Process Date'!$F$2>='Pension Dates'!A77,'First Process Date'!$F$2<='Pension Dates'!B77),'First Process Date'!$C$2,FALSE)","v":false},{"$f":"IF(AND('First Process Date'!$F$8>='Pension Dates'!A77,'First Process Date'!$F$8<='Pension Dates'!B77),'First Process Date'!$C$8,FALSE)","v":false}]
["2017-08-06","2017-08-19","2017-08-05",{"$f":"IF(AND('First Process Date'!$F$2>='Pension Dates'!A78,'First Process Date'!$F$2<='Pension Dates'!B78),'First Process Date'!$C$2,FALSE)","v":false},{"$f":"IF(AND('First Process Date'!$F$8>='Pension Dates'!A78,'First Process Date'!$F$8<='Pension Dates'!B78),'First Process Date'!$C$8,FALSE)","v":false}]
["2017-08-20","2017-09-02","2017-08-19",{"$f":"IF(AND('First Process Date'!$F$2>='Pension Dates'!A79,'First Process Date'!$F$2<='Pension Dates'!B79),'First Process Date'!$C$2,FALSE)","v":false},{"$f":"IF(AND('First Process Date'!$F$8>='Pension Dates'!A79,'First Process Date'!$F$8<='Pension Dates'!B79),'First Process Date'!$C$8,FALSE)","v":false}]
["2017-09-03","2017-09-16","2017-09-02",{"$f":"IF(AND('First Process Date'!$F$2>='Pension Dates'!A80,'First Process Date'!$F$2<='Pension Dates'!B80),'First Process Date'!$C$2,FALSE)","v":false},{"$f":"IF(AND('First Process Date'!$F$8>='Pension Dates'!A80,'First Process Date'!$F$8<='Pension Dates'!B80),'First Process Date'!$C$8,FALSE)","v":false}]
["2017-09-17","2017-09-30","2017-09-16",{"$f":"IF(AND('First Process Date'!$F$2>='Pension Dates'!A81,'First Process Date'!$F$2<='Pension Dates'!B81),'First Process Date'!$C$2,FALSE)","v":false},{"$f":"IF(AND('First Process Date'!$F$8>='Pension Dates'!A81,'First Process Date'!$F$8<='Pension Dates'!B81),'First Process Date'!$C$8,FALSE)","v":false}]
["2017-10-01","2017-10-14","2017-09-30",{"$f":"IF(AND('First Process Date'!$F$2>='Pension Dates'!A82,'First Process Date'!$F$2<='Pension Dates'!B82),'First Process Date'!$C$2,FALSE)","v":false},{"$f":"IF(AND('First Process Date'!$F$8>='Pension Dates'!A82,'First Process Date'!$F$8<='Pension Dates'!B82),'First Process Date'!$C$8,FALSE)","v":false}]
["2017-10-15","2017-10-28","2017-10-14",{"$f":"IF(AND('First Process Date'!$F$2>='Pension Dates'!A83,'First Process Date'!$F$2<='Pension Dates'!B83),'First Process Date'!$C$2,FALSE)","v":false},{"$f":"IF(AND('First Process Date'!$F$8>='Pension Dates'!A83,'First Process Date'!$F$8<='Pension Dates'!B83),'First Process Date'!$C$8,FALSE)","v":false}]
["2017-10-29","2017-11-11","2017-10-28",{"$f":"IF(AND('First Process Date'!$F$2>='Pension Dates'!A84,'First Process Date'!$F$2<='Pension Dates'!B84),'First Process Date'!$C$2,FALSE)","v":false},{"$f":"IF(AND('First Process Date'!$F$8>='Pension Dates'!A84,'First Process Date'!$F$8<='Pension Dates'!B84),'First Process Date'!$C$8,FALSE)","v":false}]
["2017-11-12","2017-11-25","2017-11-11",{"$f":"IF(AND('First Process Date'!$F$2>='Pension Dates'!A85,'First Process Date'!$F$2<='Pension Dates'!B85),'First Process Date'!$C$2,FALSE)","v":false},{"$f":"IF(AND('First Process Date'!$F$8>='Pension Dates'!A85,'First Process Date'!$F$8<='Pension Dates'!B85),'First Process Date'!$C$8,FALSE)","v":false}]
["2017-11-26","2017-12-09","2017-11-25",{"$f":"IF(AND('First Process Date'!$F$2>='Pension Dates'!A86,'First Process Date'!$F$2<='Pension Dates'!B86),'First Process Date'!$C$2,FALSE)","v":false},{"$f":"IF(AND('First Process Date'!$F$8>='Pension Dates'!A86,'First Process Date'!$F$8<='Pension Dates'!B86),'First Process Date'!$C$8,FALSE)","v":false}]
["2017-12-10","2017-12-23","2017-12-09",{"$f":"IF(AND('First Process Date'!$F$2>='Pension Dates'!A87,'First Process Date'!$F$2<='Pension Dates'!B87),'First Process Date'!$C$2,FALSE)","v":false},{"$f":"IF(AND('First Process Date'!$F$8>='Pension Dates'!A87,'First Process Date'!$F$8<='Pension Dates'!B87),'First Process Date'!$C$8,FALSE)","v":false}]
["2017-12-24","2018-01-06","2017-12-23",{"$f":"IF(AND('First Process Date'!$F$2>='Pension Dates'!A88,'First Process Date'!$F$2<='Pension Dates'!B88),'First Process Date'!$C$2,FALSE)","v":false},{"$f":"IF(AND('First Process Date'!$F$8>='Pension Dates'!A88,'First Process Date'!$F$8<='Pension Dates'!B88),'First Process Date'!$C$8,FALSE)","v":false}]
["2018-01-07","2018-01-20","2018-01-06",{"$f":"IF(AND('First Process Date'!$F$2>='Pension Dates'!A89,'First Process Date'!$F$2<='Pension Dates'!B89),'First Process Date'!$C$2,FALSE)","v":false},{"$f":"IF(AND('First Process Date'!$F$8>='Pension Dates'!A89,'First Process Date'!$F$8<='Pension Dates'!B89),'First Process Date'!$C$8,FALSE)","v":false}]
["2018-01-21","2018-02-03","2018-01-20",{"$f":"IF(AND('First Process Date'!$F$2>='Pension Dates'!A90,'First Process Date'!$F$2<='Pension Dates'!B90),'First Process Date'!$C$2,FALSE)","v":false},{"$f":"IF(AND('First Process Date'!$F$8>='Pension Dates'!A90,'First Process Date'!$F$8<='Pension Dates'!B90),'First Process Date'!$C$8,FALSE)","v":false}]
["2018-02-04","2018-02-17","2018-02-03",{"$f":"IF(AND('First Process Date'!$F$2>='Pension Dates'!A91,'First Process Date'!$F$2<='Pension Dates'!B91),'First Process Date'!$C$2,FALSE)","v":false},{"$f":"IF(AND('First Process Date'!$F$8>='Pension Dates'!A91,'First Process Date'!$F$8<='Pension Dates'!B91),'First Process Date'!$C$8,FALSE)","v":false}]
["2018-02-18","2018-03-03","2018-02-17",{"$f":"IF(AND('First Process Date'!$F$2>='Pension Dates'!A92,'First Process Date'!$F$2<='Pension Dates'!B92),'First Process Date'!$C$2,FALSE)","v":false},{"$f":"IF(AND('First Process Date'!$F$8>='Pension Dates'!A92,'First Process Date'!$F$8<='Pension Dates'!B92),'First Process Date'!$C$8,FALSE)","v":false}]
["2018-03-04","2018-03-17","2018-03-03",{"$f":"IF(AND('First Process Date'!$F$2>='Pension Dates'!A93,'First Process Date'!$F$2<='Pension Dates'!B93),'First Process Date'!$C$2,FALSE)","v":false},{"$f":"IF(AND('First Process Date'!$F$8>='Pension Dates'!A93,'First Process Date'!$F$8<='Pension Dates'!B93),'First Process Date'!$C$8,FALSE)","v":false}]
["2018-03-18","2018-03-31","2018-03-17",{"$f":"IF(AND('First Process Date'!$F$2>='Pension Dates'!A94,'First Process Date'!$F$2<='Pension Dates'!B94),'First Process Date'!$C$2,FALSE)","v":false},{"$f":"IF(AND('First Process Date'!$F$8>='Pension Dates'!A94,'First Process Date'!$F$8<='Pension Dates'!B94),'First Process Date'!$C$8,FALSE)","v":false}]
["2018-04-01","2018-04-14","2018-03-31",{"$f":"IF(AND('First Process Date'!$F$2>='Pension Dates'!A95,'First Process Date'!$F$2<='Pension Dates'!B95),'First Process Date'!$C$2,FALSE)","v":false},{"$f":"IF(AND('First Process Date'!$F$8>='Pension Dates'!A95,'First Process Date'!$F$8<='Pension Dates'!B95),'First Process Date'!$C$8,FALSE)","v":false}]
["2018-04-15","2018-04-28","2018-04-14",{"$f":"IF(AND('First Process Date'!$F$2>='Pension Dates'!A96,'First Process Date'!$F$2<='Pension Dates'!B96),'First Process Date'!$C$2,FALSE)","v":false},{"$f":"IF(AND('First Process Date'!$F$8>='Pension Dates'!A96,'First Process Date'!$F$8<='Pension Dates'!B96),'First Process Date'!$C$8,FALSE)","v":false}]
["2018-04-29","2018-05-12","2018-04-28",{"$f":"IF(AND('First Process Date'!$F$2>='Pension Dates'!A97,'First Process Date'!$F$2<='Pension Dates'!B97),'First Process Date'!$C$2,FALSE)","v":false},{"$f":"IF(AND('First Process Date'!$F$8>='Pension Dates'!A97,'First Process Date'!$F$8<='Pension Dates'!B97),'First Process Date'!$C$8,FALSE)","v":false}]
["2018-05-13","2018-05-26","2018-05-12",{"$f":"IF(AND('First Process Date'!$F$2>='Pension Dates'!A98,'First Process Date'!$F$2<='Pension Dates'!B98),'First Process Date'!$C$2,FALSE)","v":false},{"$f":"IF(AND('First Process Date'!$F$8>='Pension Dates'!A98,'First Process Date'!$F$8<='Pension Dates'!B98),'First Process Date'!$C$8,FALSE)","v":false}]
["2018-05-27","2018-06-09","2018-05-26",{"$f":"IF(AND('First Process Date'!$F$2>='Pension Dates'!A99,'First Process Date'!$F$2<='Pension Dates'!B99),'First Process Date'!$C$2,FALSE)","v":false},{"$f":"IF(AND('First Process Date'!$F$8>='Pension Dates'!A99,'First Process Date'!$F$8<='Pension Dates'!B99),'First Process Date'!$C$8,FALSE)","v":false}]
["2018-06-10","2018-06-23","2018-06-09",{"$f":"IF(AND('First Process Date'!$F$2>='Pension Dates'!A100,'First Process Date'!$F$2<='Pension Dates'!B100),'First Process Date'!$C$2,FALSE)","v":false},{"$f":"IF(AND('First Process Date'!$F$8>='Pension Dates'!A100,'First Process Date'!$F$8<='Pension Dates'!B100),'First Process Date'!$C$8,FALSE)","v":false}]
["2018-06-24","2018-07-07","2018-06-23",{"$f":"IF(AND('First Process Date'!$F$2>='Pension Dates'!A101,'First Process Date'!$F$2<='Pension Dates'!B101),'First Process Date'!$C$2,FALSE)","v":false},{"$f":"IF(AND('First Process Date'!$F$8>='Pension Dates'!A101,'First Process Date'!$F$8<='Pension Dates'!B101),'First Process Date'!$C$8,FALSE)","v":false}]
["2018-07-08","2018-07-21","2018-07-07",{"$f":"IF(AND('First Process Date'!$F$2>='Pension Dates'!A102,'First Process Date'!$F$2<='Pension Dates'!B102),'First Process Date'!$C$2,FALSE)","v":false},{"$f":"IF(AND('First Process Date'!$F$8>='Pension Dates'!A102,'First Process Date'!$F$8<='Pension Dates'!B102),'First Process Date'!$C$8,FALSE)","v":false}]
["2018-07-22","2018-08-04","2018-07-21",{"$f":"IF(AND('First Process Date'!$F$2>='Pension Dates'!A103,'First Process Date'!$F$2<='Pension Dates'!B103),'First Process Date'!$C$2,FALSE)","v":false},{"$f":"IF(AND('First Process Date'!$F$8>='Pension Dates'!A103,'First Process Date'!$F$8<='Pension Dates'!B103),'First Process Date'!$C$8,FALSE)","v":false}]
["2018-08-05","2018-08-18","2018-08-04",{"$f":"IF(AND('First Process Date'!$F$2>='Pension Dates'!A104,'First Process Date'!$F$2<='Pension Dates'!B104),'First Process Date'!$C$2,FALSE)","v":false},{"$f":"IF(AND('First Process Date'!$F$8>='Pension Dates'!A104,'First Process Date'!$F$8<='Pension Dates'!B104),'First Process Date'!$C$8,FALSE)","v":false}]
["2018-08-19","2018-09-01","2018-08-18",{"$f":"IF(AND('First Process Date'!$F$2>='Pension Dates'!A105,'First Process Date'!$F$2<='Pension Dates'!B105),'First Process Date'!$C$2,FALSE)","v":false},{"$f":"IF(AND('First Process Date'!$F$8>='Pension Dates'!A105,'First Process Date'!$F$8<='Pension Dates'!B105),'First Process Date'!$C$8,FALSE)","v":false}]
["2018-09-02","2018-09-15","2018-09-01",{"$f":"IF(AND('First Process Date'!$F$2>='Pension Dates'!A106,'First Process Date'!$F$2<='Pension Dates'!B106),'First Process Date'!$C$2,FALSE)","v":false},{"$f":"IF(AND('First Process Date'!$F$8>='Pension Dates'!A106,'First Process Date'!$F$8<='Pension Dates'!B106),'First Process Date'!$C$8,FALSE)","v":false}]
["2018-09-16","2018-09-29","2018-09-15",{"$f":"IF(AND('First Process Date'!$F$2>='Pension Dates'!A107,'First Process Date'!$F$2<='Pension Dates'!B107),'First Process Date'!$C$2,FALSE)","v":false},{"$f":"IF(AND('First Process Date'!$F$8>='Pension Dates'!A107,'First Process Date'!$F$8<='Pension Dates'!B107),'First Process Date'!$C$8,FALSE)","v":false}]
["2018-09-30","2018-10-13","2018-09-29",{"$f":"IF(AND('First Process Date'!$F$2>='Pension Dates'!A108,'First Process Date'!$F$2<='Pension Dates'!B108),'First Process Date'!$C$2,FALSE)","v":false},{"$f":"IF(AND('First Process Date'!$F$8>='Pension Dates'!A108,'First Process Date'!$F$8<='Pension Dates'!B108),'First Process Date'!$C$8,FALSE)","v":false}]
["2018-10-14","2018-10-27","2018-10-13",{"$f":"IF(AND('First Process Date'!$F$2>='Pension Dates'!A109,'First Process Date'!$F$2<='Pension Dates'!B109),'First Process Date'!$C$2,FALSE)","v":false},{"$f":"IF(AND('First Process Date'!$F$8>='Pension Dates'!A109,'First Process Date'!$F$8<='Pension Dates'!B109),'First Process Date'!$C$8,FALSE)","v":false}]
["2018-10-28","2018-11-10","2018-10-27",{"$f":"IF(AND('First Process Date'!$F$2>='Pension Dates'!A110,'First Process Date'!$F$2<='Pension Dates'!B110),'First Process Date'!$C$2,FALSE)","v":false},{"$f":"IF(AND('First Process Date'!$F$8>='Pension Dates'!A110,'First Process Date'!$F$8<='Pension Dates'!B110),'First Process Date'!$C$8,FALSE)","v":false}]
["2018-11-11","2018-11-24","2018-11-10",{"$f":"IF(AND('First Process Date'!$F$2>='Pension Dates'!A111,'First Process Date'!$F$2<='Pension Dates'!B111),'First Process Date'!$C$2,FALSE)","v":false},{"$f":"IF(AND('First Process Date'!$F$8>='Pension Dates'!A111,'First Process Date'!$F$8<='Pension Dates'!B111),'First Process Date'!$C$8,FALSE)","v":false}]
["2018-11-25","2018-12-08","2018-11-24",{"$f":"IF(AND('First Process Date'!$F$2>='Pension Dates'!A112,'First Process Date'!$F$2<='Pension Dates'!B112),'First Process Date'!$C$2,FALSE)","v":false},{"$f":"IF(AND('First Process Date'!$F$8>='Pension Dates'!A112,'First Process Date'!$F$8<='Pension Dates'!B112),'First Process Date'!$C$8,FALSE)","v":false}]
["2018-12-09","2018-12-22","2018-12-08",{"$f":"IF(AND('First Process Date'!$F$2>='Pension Dates'!A113,'First Process Date'!$F$2<='Pension Dates'!B113),'First Process Date'!$C$2,FALSE)","v":false},{"$f":"IF(AND('First Process Date'!$F$8>='Pension Dates'!A113,'First Process Date'!$F$8<='Pension Dates'!B113),'First Process Date'!$C$8,FALSE)","v":false}]
["2018-12-23","2019-01-05","2018-12-22",{"$f":"IF(AND('First Process Date'!$F$2>='Pension Dates'!A114,'First Process Date'!$F$2<='Pension Dates'!B114),'First Process Date'!$C$2,FALSE)","v":false},{"$f":"IF(AND('First Process Date'!$F$8>='Pension Dates'!A114,'First Process Date'!$F$8<='Pension Dates'!B114),'First Process Date'!$C$8,FALSE)","v":false}]
["2019-01-06","2019-01-19","2019-01-05",{"$f":"IF(AND('First Process Date'!$F$2>='Pension Dates'!A115,'First Process Date'!$F$2<='Pension Dates'!B115),'First Process Date'!$C$2,FALSE)","v":false},{"$f":"IF(AND('First Process Date'!$F$8>='Pension Dates'!A115,'First Process Date'!$F$8<='Pension Dates'!B115),'First Process Date'!$C$8,FALSE)","v":false}]
["2019-01-20","2019-02-02","2019-01-19",{"$f":"IF(AND('First Process Date'!$F$2>='Pension Dates'!A116,'First Process Date'!$F$2<='Pension Dates'!B116),'First Process Date'!$C$2,FALSE)","v":false},{"$f":"IF(AND('First Process Date'!$F$8>='Pension Dates'!A116,'First Process Date'!$F$8<='Pension Dates'!B116),'First Process Date'!$C$8,FALSE)","v":false}]
["2019-02-03","2019-02-16","2019-02-02",{"$f":"IF(AND('First Process Date'!$F$2>='Pension Dates'!A117,'First Process Date'!$F$2<='Pension Dates'!B117),'First Process Date'!$C$2,FALSE)","v":false},{"$f":"IF(AND('First Process Date'!$F$8>='Pension Dates'!A117,'First Process Date'!$F$8<='Pension Dates'!B117),'First Process Date'!$C$8,FALSE)","v":false}]
["2019-02-17","2019-03-02","2019-02-16",{"$f":"IF(AND('First Process Date'!$F$2>='Pension Dates'!A118,'First Process Date'!$F$2<='Pension Dates'!B118),'First Process Date'!$C$2,FALSE)","v":false},{"$f":"IF(AND('First Process Date'!$F$8>='Pension Dates'!A118,'First Process Date'!$F$8<='Pension Dates'!B118),'First Process Date'!$C$8,FALSE)","v":false}]
["2019-03-03","2019-03-16","2019-03-02",{"$f":"IF(AND('First Process Date'!$F$2>='Pension Dates'!A119,'First Process Date'!$F$2<='Pension Dates'!B119),'First Process Date'!$C$2,FALSE)","v":false},{"$f":"IF(AND('First Process Date'!$F$8>='Pension Dates'!A119,'First Process Date'!$F$8<='Pension Dates'!B119),'First Process Date'!$C$8,FALSE)","v":false}]
["2019-03-17","2019-03-30","2019-03-16",{"$f":"IF(AND('First Process Date'!$F$2>='Pension Dates'!A120,'First Process Date'!$F$2<='Pension Dates'!B120),'First Process Date'!$C$2,FALSE)","v":false},{"$f":"IF(AND('First Process Date'!$F$8>='Pension Dates'!A120,'First Process Date'!$F$8<='Pension Dates'!B120),'First Process Date'!$C$8,FALSE)","v":false}]
["2019-03-31","2019-04-13","2019-03-30",{"$f":"IF(AND('First Process Date'!$F$2>='Pension Dates'!A121,'First Process Date'!$F$2<='Pension Dates'!B121),'First Process Date'!$C$2,FALSE)","v":false},{"$f":"IF(AND('First Process Date'!$F$8>='Pension Dates'!A121,'First Process Date'!$F$8<='Pension Dates'!B121),'First Process Date'!$C$8,FALSE)","v":false}]
["2019-04-14","2019-04-27","2019-04-13",{"$f":"IF(AND('First Process Date'!$F$2>='Pension Dates'!A122,'First Process Date'!$F$2<='Pension Dates'!B122),'First Process Date'!$C$2,FALSE)","v":false},{"$f":"IF(AND('First Process Date'!$F$8>='Pension Dates'!A122,'First Process Date'!$F$8<='Pension Dates'!B122),'First Process Date'!$C$8,FALSE)","v":false}]
["2019-04-28","2019-05-11","2019-04-27",{"$f":"IF(AND('First Process Date'!$F$2>='Pension Dates'!A123,'First Process Date'!$F$2<='Pension Dates'!B123),'First Process Date'!$C$2,FALSE)","v":false},{"$f":"IF(AND('First Process Date'!$F$8>='Pension Dates'!A123,'First Process Date'!$F$8<='Pension Dates'!B123),'First Process Date'!$C$8,FALSE)","v":false}]
["2019-05-12","2019-05-25","2019-05-11",{"$f":"IF(AND('First Process Date'!$F$2>='Pension Dates'!A124,'First Process Date'!$F$2<='Pension Dates'!B124),'First Process Date'!$C$2,FALSE)","v":false},{"$f":"IF(AND('First Process Date'!$F$8>='Pension Dates'!A124,'First Process Date'!$F$8<='Pension Dates'!B124),'First Process Date'!$C$8,FALSE)","v":false}]
["2019-05-26","2019-06-08","2019-05-25",{"$f":"IF(AND('First Process Date'!$F$2>='Pension Dates'!A125,'First Process Date'!$F$2<='Pension Dates'!B125),'First Process Date'!$C$2,FALSE)","v":false},{"$f":"IF(AND('First Process Date'!$F$8>='Pension Dates'!A125,'First Process Date'!$F$8<='Pension Dates'!B125),'First Process Date'!$C$8,FALSE)","v":false}]
["2019-06-09","2019-06-22","2019-06-08",{"$f":"IF(AND('First Process Date'!$F$2>='Pension Dates'!A126,'First Process Date'!$F$2<='Pension Dates'!B126),'First Process Date'!$C$2,FALSE)","v":false},{"$f":"IF(AND('First Process Date'!$F$8>='Pension Dates'!A126,'First Process Date'!$F$8<='Pension Dates'!B126),'First Process Date'!$C$8,FALSE)","v":false}]
["2019-06-23","2019-07-06","2019-06-22",{"$f":"IF(AND('First Process Date'!$F$2>='Pension Dates'!A127,'First Process Date'!$F$2<='Pension Dates'!B127),'First Process Date'!$C$2,FALSE)","v":false},{"$f":"IF(AND('First Process Date'!$F$8>='Pension Dates'!A127,'First Process Date'!$F$8<='Pension Dates'!B127),'First Process Date'!$C$8,FALSE)","v":false}]
["2019-07-07","2019-07-20","2019-07-06",{"$f":"IF(AND('First Process Date'!$F$2>='Pension Dates'!A128,'First Process Date'!$F$2<='Pension Dates'!B128),'First Process Date'!$C$2,FALSE)","v":false},{"$f":"IF(AND('First Process Date'!$F$8>='Pension Dates'!A128,'First Process Date'!$F$8<='Pension Dates'!B128),'First Process Date'!$C$8,FALSE)","v":false}]
["2019-07-21","2019-08-03","2019-07-20",{"$f":"IF(AND('First Process Date'!$F$2>='Pension Dates'!A129,'First Process Date'!$F$2<='Pension Dates'!B129),'First Process Date'!$C$2,FALSE)","v":false},{"$f":"IF(AND('First Process Date'!$F$8>='Pension Dates'!A129,'First Process Date'!$F$8<='Pension Dates'!B129),'First Process Date'!$C$8,FALSE)","v":false}]
["2019-08-04","2019-08-17","2019-08-03",{"$f":"IF(AND('First Process Date'!$F$2>='Pension Dates'!A130,'First Process Date'!$F$2<='Pension Dates'!B130),'First Process Date'!$C$2,FALSE)","v":false},{"$f":"IF(AND('First Process Date'!$F$8>='Pension Dates'!A130,'First Process Date'!$F$8<='Pension Dates'!B130),'First Process Date'!$C$8,FALSE)","v":false}]
["2019-08-18","2019-08-31","2019-08-17",{"$f":"IF(AND('First Process Date'!$F$2>='Pension Dates'!A131,'First Process Date'!$F$2<='Pension Dates'!B131),'First Process Date'!$C$2,FALSE)","v":false},{"$f":"IF(AND('First Process Date'!$F$8>='Pension Dates'!A131,'First Process Date'!$F$8<='Pension Dates'!B131),'First Process Date'!$C$8,FALSE)","v":false}]
["2019-09-01","2019-09-14","2019-08-31",{"$f":"IF(AND('First Process Date'!$F$2>='Pension Dates'!A132,'First Process Date'!$F$2<='Pension Dates'!B132),'First Process Date'!$C$2,FALSE)","v":false},{"$f":"IF(AND('First Process Date'!$F$8>='Pension Dates'!A132,'First Process Date'!$F$8<='Pension Dates'!B132),'First Process Date'!$C$8,FALSE)","v":false}]
["2019-09-15","2019-09-28","2019-09-14",{"$f":"IF(AND('First Process Date'!$F$2>='Pension Dates'!A133,'First Process Date'!$F$2<='Pension Dates'!B133),'First Process Date'!$C$2,FALSE)","v":false},{"$f":"IF(AND('First Process Date'!$F$8>='Pension Dates'!A133,'First Process Date'!$F$8<='Pension Dates'!B133),'First Process Date'!$C$8,FALSE)","v":false}]
["2019-09-29","2019-10-12","2019-09-28",{"$f":"IF(AND('First Process Date'!$F$2>='Pension Dates'!A134,'First Process Date'!$F$2<='Pension Dates'!B134),'First Process Date'!$C$2,FALSE)","v":false},{"$f":"IF(AND('First Process Date'!$F$8>='Pension Dates'!A134,'First Process Date'!$F$8<='Pension Dates'!B134),'First Process Date'!$C$8,FALSE)","v":false}]
["2019-10-13","2019-10-26","2019-10-12",{"$f":"IF(AND('First Process Date'!$F$2>='Pension Dates'!A135,'First Process Date'!$F$2<='Pension Dates'!B135),'First Process Date'!$C$2,FALSE)","v":false},{"$f":"IF(AND('First Process Date'!$F$8>='Pension Dates'!A135,'First Process Date'!$F$8<='Pension Dates'!B135),'First Process Date'!$C$8,FALSE)","v":false}]
["2019-10-27","2019-11-09","2019-10-26",{"$f":"IF(AND('First Process Date'!$F$2>='Pension Dates'!A136,'First Process Date'!$F$2<='Pension Dates'!B136),'First Process Date'!$C$2,FALSE)","v":false},{"$f":"IF(AND('First Process Date'!$F$8>='Pension Dates'!A136,'First Process Date'!$F$8<='Pension Dates'!B136),'First Process Date'!$C$8,FALSE)","v":false}]
["2019-11-10","2019-11-23","2019-11-09",{"$f":"IF(AND('First Process Date'!$F$2>='Pension Dates'!A137,'First Process Date'!$F$2<='Pension Dates'!B137),'First Process Date'!$C$2,FALSE)","v":false},{"$f":"IF(AND('First Process Date'!$F$8>='Pension Dates'!A137,'First Process Date'!$F$8<='Pension Dates'!B137),'First Process Date'!$C$8,FALSE)","v":false}]
["2019-11-24","2019-12-07","2019-11-23",{"$f":"IF(AND('First Process Date'!$F$2>='Pension Dates'!A138,'First Process Date'!$F$2<='Pension Dates'!B138),'First Process Date'!$C$2,FALSE)","v":false},{"$f":"IF(AND('First Process Date'!$F$8>='Pension Dates'!A138,'First Process Date'!$F$8<='Pension Dates'!B138),'First Process Date'!$C$8,FALSE)","v":false}]
["2019-12-08","2019-12-21","2019-12-07",{"$f":"IF(AND('First Process Date'!$F$2>='Pension Dates'!A139,'First Process Date'!$F$2<='Pension Dates'!B139),'First Process Date'!$C$2,FALSE)","v":false},{"$f":"IF(AND('First Process Date'!$F$8>='Pension Dates'!A139,'First Process Date'!$F$8<='Pension Dates'!B139),'First Process Date'!$C$8,FALSE)","v":false}]
["2019-12-22","2020-01-04","2019-12-21",{"$f":"IF(AND('First Process Date'!$F$2>='Pension Dates'!A140,'First Process Date'!$F$2<='Pension Dates'!B140),'First Process Date'!$C$2,FALSE)","v":false},{"$f":"IF(AND('First Process Date'!$F$8>='Pension Dates'!A140,'First Process Date'!$F$8<='Pension Dates'!B140),'First Process Date'!$C$8,FALSE)","v":false}]
["2020-01-05","2020-01-18","2020-01-04",{"$f":"IF(AND('First Process Date'!$F$2>='Pension Dates'!A141,'First Process Date'!$F$2<='Pension Dates'!B141),'First Process Date'!$C$2,FALSE)","v":false},{"$f":"IF(AND('First Process Date'!$F$8>='Pension Dates'!A141,'First Process Date'!$F$8<='Pension Dates'!B141),'First Process Date'!$C$8,FALSE)","v":false}]
["2020-01-19","2020-02-01","2020-01-18",{"$f":"IF(AND('First Process Date'!$F$2>='Pension Dates'!A142,'First Process Date'!$F$2<='Pension Dates'!B142),'First Process Date'!$C$2,FALSE)","v":false},{"$f":"IF(AND('First Process Date'!$F$8>='Pension Dates'!A142,'First Process Date'!$F$8<='Pension Dates'!B142),'First Process Date'!$C$8,FALSE)","v":false}]
["2020-02-02","2020-02-15","2020-02-01",{"$f":"IF(AND('First Process Date'!$F$2>='Pension Dates'!A143,'First Process Date'!$F$2<='Pension Dates'!B143),'First Process Date'!$C$2,FALSE)","v":false},{"$f":"IF(AND('First Process Date'!$F$8>='Pension Dates'!A143,'First Process Date'!$F$8<='Pension Dates'!B143),'First Process Date'!$C$8,FALSE)","v":false}]
["2020-02-16","2020-02-29","2020-02-15",{"$f":"IF(AND('First Process Date'!$F$2>='Pension Dates'!A144,'First Process Date'!$F$2<='Pension Dates'!B144),'First Process Date'!$C$2,FALSE)","v":false},{"$f":"IF(AND('First Process Date'!$F$8>='Pension Dates'!A144,'First Process Date'!$F$8<='Pension Dates'!B144),'First Process Date'!$C$8,FALSE)","v":false}]
["2020-03-01","2020-03-14","2020-02-29",{"$f":"IF(AND('First Process Date'!$F$2>='Pension Dates'!A145,'First Process Date'!$F$2<='Pension Dates'!B145),'First Process Date'!$C$2,FALSE)","v":false},{"$f":"IF(AND('First Process Date'!$F$8>='Pension Dates'!A145,'First Process Date'!$F$8<='Pension Dates'!B145),'First Process Date'!$C$8,FALSE)","v":false}]
["2020-03-15","2020-03-28","2020-03-14",{"$f":"IF(AND('First Process Date'!$F$2>='Pension Dates'!A146,'First Process Date'!$F$2<='Pension Dates'!B146),'First Process Date'!$C$2,FALSE)","v":false},{"$f":"IF(AND('First Process Date'!$F$8>='Pension Dates'!A146,'First Process Date'!$F$8<='Pension Dates'!B146),'First Process Date'!$C$8,FALSE)","v":false}]
["2020-03-29","2020-04-11","2020-03-28",{"$f":"IF(AND('First Process Date'!$F$2>='Pension Dates'!A147,'First Process Date'!$F$2<='Pension Dates'!B147),'First Process Date'!$C$2,FALSE)","v":false},{"$f":"IF(AND('First Process Date'!$F$8>='Pension Dates'!A147,'First Process Date'!$F$8<='Pension Dates'!B147),'First Process Date'!$C$8,FALSE)","v":false}]
["2020-04-12","2020-04-25","2020-04-11",{"$f":"IF(AND('First Process Date'!$F$2>='Pension Dates'!A148,'First Process Date'!$F$2<='Pension Dates'!B148),'First Process Date'!$C$2,FALSE)","v":false},{"$f":"IF(AND('First Process Date'!$F$8>='Pension Dates'!A148,'First Process Date'!$F$8<='Pension Dates'!B148),'First Process Date'!$C$8,FALSE)","v":false}]
["2020-04-26","2020-05-09","2020-04-25",{"$f":"IF(AND('First Process Date'!$F$2>='Pension Dates'!A149,'First Process Date'!$F$2<='Pension Dates'!B149),'First Process Date'!$C$2,FALSE)","v":false},{"$f":"IF(AND('First Process Date'!$F$8>='Pension Dates'!A149,'First Process Date'!$F$8<='Pension Dates'!B149),'First Process Date'!$C$8,FALSE)","v":false}]
["2020-05-10","2020-05-23","2020-05-09",{"$f":"IF(AND('First Process Date'!$F$2>='Pension Dates'!A150,'First Process Date'!$F$2<='Pension Dates'!B150),'First Process Date'!$C$2,FALSE)","v":false},{"$f":"IF(AND('First Process Date'!$F$8>='Pension Dates'!A150,'First Process Date'!$F$8<='Pension Dates'!B150),'First Process Date'!$C$8,FALSE)","v":false}]
["2020-05-24","2020-06-06","2020-05-23",{"$f":"IF(AND('First Process Date'!$F$2>='Pension Dates'!A151,'First Process Date'!$F$2<='Pension Dates'!B151),'First Process Date'!$C$2,FALSE)","v":false},{"$f":"IF(AND('First Process Date'!$F$8>='Pension Dates'!A151,'First Process Date'!$F$8<='Pension Dates'!B151),'First Process Date'!$C$8,FALSE)","v":false}]
["2020-06-07","2020-06-20","2020-06-06",{"$f":"IF(AND('First Process Date'!$F$2>='Pension Dates'!A152,'First Process Date'!$F$2<='Pension Dates'!B152),'First Process Date'!$C$2,FALSE)","v":false},{"$f":"IF(AND('First Process Date'!$F$8>='Pension Dates'!A152,'First Process Date'!$F$8<='Pension Dates'!B152),'First Process Date'!$C$8,FALSE)","v":false}]
["2020-06-21","2020-07-04","2020-06-20",{"$f":"IF(AND('First Process Date'!$F$2>='Pension Dates'!A153,'First Process Date'!$F$2<='Pension Dates'!B153),'First Process Date'!$C$2,FALSE)","v":false},{"$f":"IF(AND('First Process Date'!$F$8>='Pension Dates'!A153,'First Process Date'!$F$8<='Pension Dates'!B153),'First Process Date'!$C$8,FALSE)","v":false}]
["2020-07-05","2020-07-18","2020-07-04",{"$f":"IF(AND('First Process Date'!$F$2>='Pension Dates'!A154,'First Process Date'!$F$2<='Pension Dates'!B154),'First Process Date'!$C$2,FALSE)","v":false},{"$f":"IF(AND('First Process Date'!$F$8>='Pension Dates'!A154,'First Process Date'!$F$8<='Pension Dates'!B154),'First Process Date'!$C$8,FALSE)","v":false}]
["2020-07-19","2020-08-01","2020-07-18",{"$f":"IF(AND('First Process Date'!$F$2>='Pension Dates'!A155,'First Process Date'!$F$2<='Pension Dates'!B155),'First Process Date'!$C$2,FALSE)","v":false},{"$f":"IF(AND('First Process Date'!$F$8>='Pension Dates'!A155,'First Process Date'!$F$8<='Pension Dates'!B155),'First Process Date'!$C$8,FALSE)","v":false}]
["2020-08-02","2020-08-15","2020-08-01",{"$f":"IF(AND('First Process Date'!$F$2>='Pension Dates'!A156,'First Process Date'!$F$2<='Pension Dates'!B156),'First Process Date'!$C$2,FALSE)","v":false},{"$f":"IF(AND('First Process Date'!$F$8>='Pension Dates'!A156,'First Process Date'!$F$8<='Pension Dates'!B156),'First Process Date'!$C$8,FALSE)","v":false}]
["2020-08-16","2020-08-29","2020-08-15",{"$f":"IF(AND('First Process Date'!$F$2>='Pension Dates'!A157,'First Process Date'!$F$2<='Pension Dates'!B157),'First Process Date'!$C$2,FALSE)","v":false},{"$f":"IF(AND('First Process Date'!$F$8>='Pension Dates'!A157,'First Process Date'!$F$8<='Pension Dates'!B157),'First Process Date'!$C$8,FALSE)","v":false}]
["2020-08-30","2020-09-12","2020-08-29",{"$f":"IF(AND('First Process Date'!$F$2>='Pension Dates'!A158,'First Process Date'!$F$2<='Pension Dates'!B158),'First Process Date'!$C$2,FALSE)","v":false},{"$f":"IF(AND('First Process Date'!$F$8>='Pension Dates'!A158,'First Process Date'!$F$8<='Pension Dates'!B158),'First Process Date'!$C$8,FALSE)","v":false}]
["2020-09-13","2020-09-26","2020-09-12",{"$f":"IF(AND('First Process Date'!$F$2>='Pension Dates'!A159,'First Process Date'!$F$2<='Pension Dates'!B159),'First Process Date'!$C$2,FALSE)","v":false},{"$f":"IF(AND('First Process Date'!$F$8>='Pension Dates'!A159,'First Process Date'!$F$8<='Pension Dates'!B159),'First Process Date'!$C$8,FALSE)","v":false}]
["2020-09-27","2020-10-10","2020-09-26",{"$f":"IF(AND('First Process Date'!$F$2>='Pension Dates'!A160,'First Process Date'!$F$2<='Pension Dates'!B160),'First Process Date'!$C$2,FALSE)","v":false},{"$f":"IF(AND('First Process Date'!$F$8>='Pension Dates'!A160,'First Process Date'!$F$8<='Pension Dates'!B160),'First Process Date'!$C$8,FALSE)","v":false}]
["2020-10-11","2020-10-24","2020-10-10",{"$f":"IF(AND('First Process Date'!$F$2>='Pension Dates'!A161,'First Process Date'!$F$2<='Pension Dates'!B161),'First Process Date'!$C$2,FALSE)","v":false},{"$f":"IF(AND('First Process Date'!$F$8>='Pension Dates'!A161,'First Process Date'!$F$8<='Pension Dates'!B161),'First Process Date'!$C$8,FALSE)","v":false}]
["2020-10-25","2020-11-07","2020-10-24",{"$f":"IF(AND('First Process Date'!$F$2>='Pension Dates'!A162,'First Process Date'!$F$2<='Pension Dates'!B162),'First Process Date'!$C$2,FALSE)","v":false},{"$f":"IF(AND('First Process Date'!$F$8>='Pension Dates'!A162,'First Process Date'!$F$8<='Pension Dates'!B162),'First Process Date'!$C$8,FALSE)","v":false}]
["2020-11-08","2020-11-21","2020-11-07",{"$f":"IF(AND('First Process Date'!$F$2>='Pension Dates'!A163,'First Process Date'!$F$2<='Pension Dates'!B163),'First Process Date'!$C$2,FALSE)","v":false},{"$f":"IF(AND('First Process Date'!$F$8>='Pension Dates'!A163,'First Process Date'!$F$8<='Pension Dates'!B163),'First Process Date'!$C$8,FALSE)","v":false}]
["2020-11-22","2020-12-05","2020-11-21",{"$f":"IF(AND('First Process Date'!$F$2>='Pension Dates'!A164,'First Process Date'!$F$2<='Pension Dates'!B164),'First Process Date'!$C$2,FALSE)","v":false},{"$f":"IF(AND('First Process Date'!$F$8>='Pension Dates'!A164,'First Process Date'!$F$8<='Pension Dates'!B164),'First Process Date'!$C$8,FALSE)","v":false}]
["2020-12-06","2020-12-19","2020-12-05",{"$f":"IF(AND('First Process Date'!$F$2>='Pension Dates'!A165,'First Process Date'!$F$2<='Pension Dates'!B165),'First Process Date'!$C$2,FALSE)","v":false},{"$f":"IF(AND('First Process Date'!$F$8>='Pension Dates'!A165,'First Process Date'!$F$8<='Pension Dates'!B165),'First Process Date'!$C$8,FALSE)","v":false}]
["2020-12-20","2021-01-02","2020-12-19",{"$f":"IF(AND('First Process Date'!$F$2>='Pension Dates'!A166,'First Process Date'!$F$2<='Pension Dates'!B166),'First Process Date'!$C$2,FALSE)","v":false},{"$f":"IF(AND('First Process Date'!$F$8>='Pension Dates'!A166,'First Process Date'!$F$8<='Pension Dates'!B166),'First Process Date'!$C$8,FALSE)","v":false}]
["2021-01-03","2021-01-16","2021-01-02",{"$f":"IF(AND('First Process Date'!$F$2>='Pension Dates'!A167,'First Process Date'!$F$2<='Pension Dates'!B167),'First Process Date'!$C$2,FALSE)","v":false},{"$f":"IF(AND('First Process Date'!$F$8>='Pension Dates'!A167,'First Process Date'!$F$8<='Pension Dates'!B167),'First Process Date'!$C$8,FALSE)","v":false}]
["2021-01-17","2021-01-30","2021-01-16",{"$f":"IF(AND('First Process Date'!$F$2>='Pension Dates'!A168,'First Process Date'!$F$2<='Pension Dates'!B168),'First Process Date'!$C$2,FALSE)","v":false},{"$f":"IF(AND('First Process Date'!$F$8>='Pension Dates'!A168,'First Process Date'!$F$8<='Pension Dates'!B168),'First Process Date'!$C$8,FALSE)","v":false}]
["2021-01-31","2021-02-13","2021-01-30",{"$f":"IF(AND('First Process Date'!$F$2>='Pension Dates'!A169,'First Process Date'!$F$2<='Pension Dates'!B169),'First Process Date'!$C$2,FALSE)","v":false},{"$f":"IF(AND('First Process Date'!$F$8>='Pension Dates'!A169,'First Process Date'!$F$8<='Pension Dates'!B169),'First Process Date'!$C$8,FALSE)","v":false}]
["2021-02-14","2021-02-27","2021-02-13",{"$f":"IF(AND('First Process Date'!$F$2>='Pension Dates'!A170,'First Process Date'!$F$2<='Pension Dates'!B170),'First Process Date'!$C$2,FALSE)","v":false},{"$f":"IF(AND('First Process Date'!$F$8>='Pension Dates'!A170,'First Process Date'!$F$8<='Pension Dates'!B170),'First Process Date'!$C$8,FALSE)","v":false}]
["2021-02-28","2021-03-13","2021-02-27",{"$f":"IF(AND('First Process Date'!$F$2>='Pension Dates'!A171,'First Process Date'!$F$2<='Pension Dates'!B171),'First Process Date'!$C$2,FALSE)","v":false},{"$f":"IF(AND('First Process Date'!$F$8>='Pension Dates'!A171,'First Process Date'!$F$8<='Pension Dates'!B171),'First Process Date'!$C$8,FALSE)","v":false}]
["2021-03-14","2021-03-27","2021-03-13",{"$f":"IF(AND('First Process Date'!$F$2>='Pension Dates'!A172,'First Process Date'!$F$2<='Pension Dates'!B172),'First Process Date'!$C$2,FALSE)","v":false},{"$f":"IF(AND('First Process Date'!$F$8>='Pension Dates'!A172,'First Process Date'!$F$8<='Pension Dates'!B172),'First Process Date'!$C$8,FALSE)","v":false}]
["2021-03-28","2021-04-10","2021-03-27",{"$f":"IF(AND('First Process Date'!$F$2>='Pension Dates'!A173,'First Process Date'!$F$2<='Pension Dates'!B173),'First Process Date'!$C$2,FALSE)","v":false},{"$f":"IF(AND('First Process Date'!$F$8>='Pension Dates'!A173,'First Process Date'!$F$8<='Pension Dates'!B173),'First Process Date'!$C$8,FALSE)","v":false}]
["2021-04-11","2021-04-24","2021-04-10",{"$f":"IF(AND('First Process Date'!$F$2>='Pension Dates'!A174,'First Process Date'!$F$2<='Pension Dates'!B174),'First Process Date'!$C$2,FALSE)","v":false},{"$f":"IF(AND('First Process Date'!$F$8>='Pension Dates'!A174,'First Process Date'!$F$8<='Pension Dates'!B174),'First Process Date'!$C$8,FALSE)","v":false}]
["2021-04-25","2021-05-08","2021-04-24",{"$f":"IF(AND('First Process Date'!$F$2>='Pension Dates'!A175,'First Process Date'!$F$2<='Pension Dates'!B175),'First Process Date'!$C$2,FALSE)","v":false},{"$f":"IF(AND('First Process Date'!$F$8>='Pension Dates'!A175,'First Process Date'!$F$8<='Pension Dates'!B175),'First Process Date'!$C$8,FALSE)","v":false}]
["2021-05-09","2021-05-22","2021-05-08",{"$f":"IF(AND('First Process Date'!$F$2>='Pension Dates'!A176,'First Process Date'!$F$2<='Pension Dates'!B176),'First Process Date'!$C$2,FALSE)","v":false},{"$f":"IF(AND('First Process Date'!$F$8>='Pension Dates'!A176,'First Process Date'!$F$8<='Pension Dates'!B176),'First Process Date'!$C$8,FALSE)","v":false}]
["2021-05-23","2021-06-05","2021-05-22",{"$f":"IF(AND('First Process Date'!$F$2>='Pension Dates'!A177,'First Process Date'!$F$2<='Pension Dates'!B177),'First Process Date'!$C$2,FALSE)","v":false},{"$f":"IF(AND('First Process Date'!$F$8>='Pension Dates'!A177,'First Process Date'!$F$8<='Pension Dates'!B177),'First Process Date'!$C$8,FALSE)","v":false}]
["2021-06-06","2021-06-19","2021-06-05",{"$f":"IF(AND('First Process Date'!$F$2>='Pension Dates'!A178,'First Process Date'!$F$2<='Pension Dates'!B178),'First Process Date'!$C$2,FALSE)","v":false},{"$f":"IF(AND('First Process Date'!$F$8>='Pension Dates'!A178,'First Process Date'!$F$8<='Pension Dates'!B178),'First Process Date'!$C$8,FALSE)","v":false}]
["2021-06-20","2021-07-03","2021-06-19",{"$f":"IF(AND('First Process Date'!$F$2>='Pension Dates'!A179,'First Process Date'!$F$2<='Pension Dates'!B179),'First Process Date'!$C$2,FALSE)","v":false},{"$f":"IF(AND('First Process Date'!$F$8>='Pension Dates'!A179,'First Process Date'!$F$8<='Pension Dates'!B179),'First Process Date'!$C$8,FALSE)","v":false}]
["2021-07-04","2021-07-17","2021-07-03",{"$f":"IF(AND('First Process Date'!$F$2>='Pension Dates'!A180,'First Process Date'!$F$2<='Pension Dates'!B180),'First Process Date'!$C$2,FALSE)","v":false},{"$f":"IF(AND('First Process Date'!$F$8>='Pension Dates'!A180,'First Process Date'!$F$8<='Pension Dates'!B180),'First Process Date'!$C$8,FALSE)","v":false}]
["2021-07-18","2021-07-31","2021-07-17",{"$f":"IF(AND('First Process Date'!$F$2>='Pension Dates'!A181,'First Process Date'!$F$2<='Pension Dates'!B181),'First Process Date'!$C$2,FALSE)","v":false},{"$f":"IF(AND('First Process Date'!$F$8>='Pension Dates'!A181,'First Process Date'!$F$8<='Pension Dates'!B181),'First Process Date'!$C$8,FALSE)","v":false}]
["2021-08-01","2021-08-14","2021-07-31",{"$f":"IF(AND('First Process Date'!$F$2>='Pension Dates'!A182,'First Process Date'!$F$2<='Pension Dates'!B182),'First Process Date'!$C$2,FALSE)","v":false},{"$f":"IF(AND('First Process Date'!$F$8>='Pension Dates'!A182,'First Process Date'!$F$8<='Pension Dates'!B182),'First Process Date'!$C$8,FALSE)","v":false}]
["2021-08-15","2021-08-28","2021-08-14",{"$f":"IF(AND('First Process Date'!$F$2>='Pension Dates'!A183,'First Process Date'!$F$2<='Pension Dates'!B183),'First Process Date'!$C$2,FALSE)","v":false},{"$f":"IF(AND('First Process Date'!$F$8>='Pension Dates'!A183,'First Process Date'!$F$8<='Pension Dates'!B183),'First Process Date'!$C$8,FALSE)","v":false}]
["2021-08-29","2021-09-11","2021-08-28",{"$f":"IF(AND('First Process Date'!$F$2>='Pension Dates'!A184,'First Process Date'!$F$2<='Pension Dates'!B184),'First Process Date'!$C$2,FALSE)","v":false},{"$f":"IF(AND('First Process Date'!$F$8>='Pension Dates'!A184,'First Process Date'!$F$8<='Pension Dates'!B184),'First Process Date'!$C$8,FALSE)","v":false}]
["2021-09-12","2021-09-25","2021-09-11",{"$f":"IF(AND('First Process Date'!$F$2>='Pension Dates'!A185,'First Process Date'!$F$2<='Pension Dates'!B185),'First Process Date'!$C$2,FALSE)","v":false},{"$f":"IF(AND('First Process Date'!$F$8>='Pension Dates'!A185,'First Process Date'!$F$8<='Pension Dates'!B185),'First Process Date'!$C$8,FALSE)","v":false}]
["2021-09-26","2021-10-09","2021-09-25",{"$f":"IF(AND('First Process Date'!$F$2>='Pension Dates'!A186,'First Process Date'!$F$2<='Pension Dates'!B186),'First Process Date'!$C$2,FALSE)","v":false},{"$f":"IF(AND('First Process Date'!$F$8>='Pension Dates'!A186,'First Process Date'!$F$8<='Pension Dates'!B186),'First Process Date'!$C$8,FALSE)","v":false}]
["2021-10-10","2021-10-23","2021-10-09",{"$f":"IF(AND('First Process Date'!$F$2>='Pension Dates'!A187,'First Process Date'!$F$2<='Pension Dates'!B187),'First Process Date'!$C$2,FALSE)","v":false},{"$f":"IF(AND('First Process Date'!$F$8>='Pension Dates'!A187,'First Process Date'!$F$8<='Pension Dates'!B187),'First Process Date'!$C$8,FALSE)","v":false}]
["2021-10-24","2021-11-06","2021-10-23",{"$f":"IF(AND('First Process Date'!$F$2>='Pension Dates'!A188,'First Process Date'!$F$2<='Pension Dates'!B188),'First Process Date'!$C$2,FALSE)","v":false},{"$f":"IF(AND('First Process Date'!$F$8>='Pension Dates'!A188,'First Process Date'!$F$8<='Pension Dates'!B188),'First Process Date'!$C$8,FALSE)","v":false}]
["2021-11-07","2021-11-20","2021-11-06",{"$f":"IF(AND('First Process Date'!$F$2>='Pension Dates'!A189,'First Process Date'!$F$2<='Pension Dates'!B189),'First Process Date'!$C$2,FALSE)","v":false},{"$f":"IF(AND('First Process Date'!$F$8>='Pension Dates'!A189,'First Process Date'!$F$8<='Pension Dates'!B189),'First Process Date'!$C$8,FALSE)","v":false}]
["2021-11-21","2021-12-04","2021-11-20",{"$f":"IF(AND('First Process Date'!$F$2>='Pension Dates'!A190,'First Process Date'!$F$2<='Pension Dates'!B190),'First Process Date'!$C$2,FALSE)","v":false},{"$f":"IF(AND('First Process Date'!$F$8>='Pension Dates'!A190,'First Process Date'!$F$8<='Pension Dates'!B190),'First Process Date'!$C$8,FALSE)","v":false}]
["2021-12-05","2021-12-18","2021-12-04",{"$f":"IF(AND('First Process Date'!$F$2>='Pension Dates'!A191,'First Process Date'!$F$2<='Pension Dates'!B191),'First Process Date'!$C$2,FALSE)","v":false},{"$f":"IF(AND('First Process Date'!$F$8>='Pension Dates'!A191,'First Process Date'!$F$8<='Pension Dates'!B191),'First Process Date'!$C$8,FALSE)","v":false}]
["2021-12-19","2022-01-01","2021-12-18",{"$f":"IF(AND('First Process Date'!$F$2>='Pension Dates'!A192,'First Process Date'!$F$2<='Pension Dates'!B192),'First Process Date'!$C$2,FALSE)","v":false},{"$f":"IF(AND('First Process Date'!$F$8>='Pension Dates'!A192,'First Process Date'!$F$8<='Pension Dates'!B192),'First Process Date'!$C$8,FALSE)","v":false}]
["2022-01-02","2022-01-15","2022-01-01",{"$f":"IF(AND('First Process Date'!$F$2>='Pension Dates'!A193,'First Process Date'!$F$2<='Pension Dates'!B193),'First Process Date'!$C$2,FALSE)","v":false},{"$f":"IF(AND('First Process Date'!$F$8>='Pension Dates'!A193,'First Process Date'!$F$8<='Pension Dates'!B193),'First Process Date'!$C$8,FALSE)","v":false}]
["2022-01-16","2022-01-29","2022-01-15",{"$f":"IF(AND('First Process Date'!$F$2>='Pension Dates'!A194,'First Process Date'!$F$2<='Pension Dates'!B194),'First Process Date'!$C$2,FALSE)","v":false},{"$f":"IF(AND('First Process Date'!$F$8>='Pension Dates'!A194,'First Process Date'!$F$8<='Pension Dates'!B194),'First Process Date'!$C$8,FALSE)","v":false}]
["2022-01-30","2022-02-12","2022-01-29",{"$f":"IF(AND('First Process Date'!$F$2>='Pension Dates'!A195,'First Process Date'!$F$2<='Pension Dates'!B195),'First Process Date'!$C$2,FALSE)","v":false},{"$f":"IF(AND('First Process Date'!$F$8>='Pension Dates'!A195,'First Process Date'!$F$8<='Pension Dates'!B195),'First Process Date'!$C$8,FALSE)","v":false}]
["2022-02-13","2022-02-26","2022-02-12",{"$f":"IF(AND('First Process Date'!$F$2>='Pension Dates'!A196,'First Process Date'!$F$2<='Pension Dates'!B196),'First Process Date'!$C$2,FALSE)","v":false},{"$f":"IF(AND('First Process Date'!$F$8>='Pension Dates'!A196,'First Process Date'!$F$8<='Pension Dates'!B196),'First Process Date'!$C$8,FALSE)","v":false}]
["2022-02-27","2022-03-12","2022-02-26",{"$f":"IF(AND('First Process Date'!$F$2>='Pension Dates'!A197,'First Process Date'!$F$2<='Pension Dates'!B197),'First Process Date'!$C$2,FALSE)","v":false},{"$f":"IF(AND('First Process Date'!$F$8>='Pension Dates'!A197,'First Process Date'!$F$8<='Pension Dates'!B197),'First Process Date'!$C$8,FALSE)","v":false}]
["2022-03-13","2022-03-26","2022-03-12",{"$f":"IF(AND('First Process Date'!$F$2>='Pension Dates'!A198,'First Process Date'!$F$2<='Pension Dates'!B198),'First Process Date'!$C$2,FALSE)","v":false},{"$f":"IF(AND('First Process Date'!$F$8>='Pension Dates'!A198,'First Process Date'!$F$8<='Pension Dates'!B198),'First Process Date'!$C$8,FALSE)","v":false}]
["2022-03-27","2022-04-09","2022-03-26",{"$f":"IF(AND('First Process Date'!$F$2>='Pension Dates'!A199,'First Process Date'!$F$2<='Pension Dates'!B199),'First Process Date'!$C$2,FALSE)","v":false},{"$f":"IF(AND('First Process Date'!$F$8>='Pension Dates'!A199,'First Process Date'!$F$8<='Pension Dates'!B199),'First Process Date'!$C$8,FALSE)","v":false}]
["2022-04-10","2022-04-23","2022-04-09",{"$f":"IF(AND('First Process Date'!$F$2>='Pension Dates'!A200,'First Process Date'!$F$2<='Pension Dates'!B200),'First Process Date'!$C$2,FALSE)","v":false},{"$f":"IF(AND('First Process Date'!$F$8>='Pension Dates'!A200,'First Process Date'!$F$8<='Pension Dates'!B200),'First Process Date'!$C$8,FALSE)","v":false}]
["2022-04-24","2022-05-07","2022-04-23",{"$f":"IF(AND('First Process Date'!$F$2>='Pension Dates'!A201,'First Process Date'!$F$2<='Pension Dates'!B201),'First Process Date'!$C$2,FALSE)","v":false},{"$f":"IF(AND('First Process Date'!$F$8>='Pension Dates'!A201,'First Process Date'!$F$8<='Pension Dates'!B201),'First Process Date'!$C$8,FALSE)","v":false}]
["2022-05-08","2022-05-21","2022-05-07",{"$f":"IF(AND('First Process Date'!$F$2>='Pension Dates'!A202,'First Process Date'!$F$2<='Pension Dates'!B202),'First Process Date'!$C$2,FALSE)","v":false},{"$f":"IF(AND('First Process Date'!$F$8>='Pension Dates'!A202,'First Process Date'!$F$8<='Pension Dates'!B202),'First Process Date'!$C$8,FALSE)","v":false}]
["2022-05-22","2022-06-04","2022-05-21",{"$f":"IF(AND('First Process Date'!$F$2>='Pension Dates'!A203,'First Process Date'!$F$2<='Pension Dates'!B203),'First Process Date'!$C$2,FALSE)","v":false},{"$f":"IF(AND('First Process Date'!$F$8>='Pension Dates'!A203,'First Process Date'!$F$8<='Pension Dates'!B203),'First Process Date'!$C$8,FALSE)","v":false}]
["2022-06-05","2022-06-18","2022-06-04",{"$f":"IF(AND('First Process Date'!$F$2>='Pension Dates'!A204,'First Process Date'!$F$2<='Pension Dates'!B204),'First Process Date'!$C$2,FALSE)","v":false},{"$f":"IF(AND('First Process Date'!$F$8>='Pension Dates'!A204,'First Process Date'!$F$8<='Pension Dates'!B204),'First Process Date'!$C$8,FALSE)","v":false}]
["2022-06-19","2022-07-02","2022-06-18",{"$f":"IF(AND('First Process Date'!$F$2>='Pension Dates'!A205,'First Process Date'!$F$2<='Pension Dates'!B205),'First Process Date'!$C$2,FALSE)","v":false},{"$f":"IF(AND('First Process Date'!$F$8>='Pension Dates'!A205,'First Process Date'!$F$8<='Pension Dates'!B205),'First Process Date'!$C$8,FALSE)","v":false}]
["2022-07-03","2022-07-16","2022-07-02",{"$f":"IF(AND('First Process Date'!$F$2>='Pension Dates'!A206,'First Process Date'!$F$2<='Pension Dates'!B206),'First Process Date'!$C$2,FALSE)","v":false},{"$f":"IF(AND('First Process Date'!$F$8>='Pension Dates'!A206,'First Process Date'!$F$8<='Pension Dates'!B206),'First Process Date'!$C$8,FALSE)","v":false}]
["2022-07-17","2022-07-30","2022-07-16",{"$f":"IF(AND('First Process Date'!$F$2>='Pension Dates'!A207,'First Process Date'!$F$2<='Pension Dates'!B207),'First Process Date'!$C$2,FALSE)","v":false},{"$f":"IF(AND('First Process Date'!$F$8>='Pension Dates'!A207,'First Process Date'!$F$8<='Pension Dates'!B207),'First Process Date'!$C$8,FALSE)","v":false}]
["2022-07-31","2022-08-13","2022-07-30",{"$f":"IF(AND('First Process Date'!$F$2>='Pension Dates'!A208,'First Process Date'!$F$2<='Pension Dates'!B208),'First Process Date'!$C$2,FALSE)","v":false},{"$f":"IF(AND('First Process Date'!$F$8>='Pension Dates'!A208,'First Process Date'!$F$8<='Pension Dates'!B208),'First Process Date'!$C$8,FALSE)","v":false}]
["2022-08-14","2022-08-27","2022-08-13",{"$f":"IF(AND('First Process Date'!$F$2>='Pension Dates'!A209,'First Process Date'!$F$2<='Pension Dates'!B209),'First Process Date'!$C$2,FALSE)","v":false},{"$f":"IF(AND('First Process Date'!$F$8>='Pension Dates'!A209,'First Process Date'!$F$8<='Pension Dates'!B209),'First Process Date'!$C$8,FALSE)","v":false}]
["2022-08-28","2022-09-10","2022-08-27",{"$f":"IF(AND('First Process Date'!$F$2>='Pension Dates'!A210,'First Process Date'!$F$2<='Pension Dates'!B210),'First Process Date'!$C$2,FALSE)","v":false},{"$f":"IF(AND('First Process Date'!$F$8>='Pension Dates'!A210,'First Process Date'!$F$8<='Pension Dates'!B210),'First Process Date'!$C$8,FALSE)","v":false}]
["2022-09-11","2022-09-24","2022-09-10",{"$f":"IF(AND('First Process Date'!$F$2>='Pension Dates'!A211,'First Process Date'!$F$2<='Pension Dates'!B211),'First Process Date'!$C$2,FALSE)","v":false},{"$f":"IF(AND('First Process Date'!$F$8>='Pension Dates'!A211,'First Process Date'!$F$8<='Pension Dates'!B211),'First Process Date'!$C$8,FALSE)","v":false}]
["2022-09-25","2022-10-08","2022-09-24",{"$f":"IF(AND('First Process Date'!$F$2>='Pension Dates'!A212,'First Process Date'!$F$2<='Pension Dates'!B212),'First Process Date'!$C$2,FALSE)","v":false},{"$f":"IF(AND('First Process Date'!$F$8>='Pension Dates'!A212,'First Process Date'!$F$8<='Pension Dates'!B212),'First Process Date'!$C$8,FALSE)","v":false}]
["2022-10-09","2022-10-22","2022-10-08",{"$f":"IF(AND('First Process Date'!$F$2>='Pension Dates'!A213,'First Process Date'!$F$2<='Pension Dates'!B213),'First Process Date'!$C$2,FALSE)","v":false},{"$f":"IF(AND('First Process Date'!$F$8>='Pension Dates'!A213,'First Process Date'!$F$8<='Pension Dates'!B213),'First Process Date'!$C$8,FALSE)","v":false}]
["2022-10-23","2022-11-05","2022-10-22",{"$f":"IF(AND('First Process Date'!$F$2>='Pension Dates'!A214,'First Process Date'!$F$2<='Pension Dates'!B214),'First Process Date'!$C$2,FALSE)","v":false},{"$f":"IF(AND('First Process Date'!$F$8>='Pension Dates'!A214,'First Process Date'!$F$8<='Pension Dates'!B214),'First Process Date'!$C$8,FALSE)","v":false}]
["2022-11-06","2022-11-19","2022-11-05",{"$f":"IF(AND('First Process Date'!$F$2>='Pension Dates'!A215,'First Process Date'!$F$2<='Pension Dates'!B215),'First Process Date'!$C$2,FALSE)","v":false},{"$f":"IF(AND('First Process Date'!$F$8>='Pension Dates'!A215,'First Process Date'!$F$8<='Pension Dates'!B215),'First Process Date'!$C$8,FALSE)","v":false}]
["2022-11-20","2022-12-03","2022-11-19",{"$f":"IF(AND('First Process Date'!$F$2>='Pension Dates'!A216,'First Process Date'!$F$2<='Pension Dates'!B216),'First Process Date'!$C$2,FALSE)","v":false},{"$f":"IF(AND('First Process Date'!$F$8>='Pension Dates'!A216,'First Process Date'!$F$8<='Pension Dates'!B216),'First Process Date'!$C$8,FALSE)","v":false}]
["2022-12-04","2022-12-17","2022-12-03",{"$f":"IF(AND('First Process Date'!$F$2>='Pension Dates'!A217,'First Process Date'!$F$2<='Pension Dates'!B217),'First Process Date'!$C$2,FALSE)","v":false},{"$f":"IF(AND('First Process Date'!$F$8>='Pension Dates'!A217,'First Process Date'!$F$8<='Pension Dates'!B217),'First Process Date'!$C$8,FALSE)","v":false}]
["2022-12-18","2022-12-31","2022-12-17",{"$f":"IF(AND('First Process Date'!$F$2>='Pension Dates'!A218,'First Process Date'!$F$2<='Pension Dates'!B218),'First Process Date'!$C$2,FALSE)","v":false},{"$f":"IF(AND('First Process Date'!$F$8>='Pension Dates'!A218,'First Process Date'!$F$8<='Pension Dates'!B218),'First Process Date'!$C$8,FALSE)","v":false}]
["2023-01-01","2023-01-14","2022-12-31",{"$f":"IF(AND('First Process Date'!$F$2>='Pension Dates'!A219,'First Process Date'!$F$2<='Pension Dates'!B219),'First Process Date'!$C$2,FALSE)","v":false},{"$f":"IF(AND('First Process Date'!$F$8>='Pension Dates'!A219,'First Process Date'!$F$8<='Pension Dates'!B219),'First Process Date'!$C$8,FALSE)","v":false}]
["2023-01-15","2023-01-28","2023-01-14",{"$f":"IF(AND('First Process Date'!$F$2>='Pension Dates'!A220,'First Process Date'!$F$2<='Pension Dates'!B220),'First Process Date'!$C$2,FALSE)","v":false},{"$f":"IF(AND('First Process Date'!$F$8>='Pension Dates'!A220,'First Process Date'!$F$8<='Pension Dates'!B220),'First Process Date'!$C$8,FALSE)","v":false}]
["2023-01-29","2023-02-11","2023-01-28",{"$f":"IF(AND('First Process Date'!$F$2>='Pension Dates'!A221,'First Process Date'!$F$2<='Pension Dates'!B221),'First Process Date'!$C$2,FALSE)","v":false},{"$f":"IF(AND('First Process Date'!$F$8>='Pension Dates'!A221,'First Process Date'!$F$8<='Pension Dates'!B221),'First Process Date'!$C$8,FALSE)","v":false}]
["2023-02-12","2023-02-25","2023-02-11",{"$f":"IF(AND('First Process Date'!$F$2>='Pension Dates'!A222,'First Process Date'!$F$2<='Pension Dates'!B222),'First Process Date'!$C$2,FALSE)","v":false},{"$f":"IF(AND('First Process Date'!$F$8>='Pension Dates'!A222,'First Process Date'!$F$8<='Pension Dates'!B222),'First Process Date'!$C$8,FALSE)","v":false}]
["2023-02-26","2023-03-11","2023-02-25",{"$f":"IF(AND('First Process Date'!$F$2>='Pension Dates'!A223,'First Process Date'!$F$2<='Pension Dates'!B223),'First Process Date'!$C$2,FALSE)","v":false},{"$f":"IF(AND('First Process Date'!$F$8>='Pension Dates'!A223,'First Process Date'!$F$8<='Pension Dates'!B223),'First Process Date'!$C$8,FALSE)","v":false}]
["2023-03-12","2023-03-25","2023-03-11",{"$f":"IF(AND('First Process Date'!$F$2>='Pension Dates'!A224,'First Process Date'!$F$2<='Pension Dates'!B224),'First Process Date'!$C$2,FALSE)","v":false},{"$f":"IF(AND('First Process Date'!$F$8>='Pension Dates'!A224,'First Process Date'!$F$8<='Pension Dates'!B224),'First Process Date'!$C$8,FALSE)","v":false}]
["2023-03-26","2023-04-08","2023-03-25",{"$f":"IF(AND('First Process Date'!$F$2>='Pension Dates'!A225,'First Process Date'!$F$2<='Pension Dates'!B225),'First Process Date'!$C$2,FALSE)","v":false},{"$f":"IF(AND('First Process Date'!$F$8>='Pension Dates'!A225,'First Process Date'!$F$8<='Pension Dates'!B225),'First Process Date'!$C$8,FALSE)","v":false}]
["2023-04-09","2023-04-22","2023-04-08",{"$f":"IF(AND('First Process Date'!$F$2>='Pension Dates'!A226,'First Process Date'!$F$2<='Pension Dates'!B226),'First Process Date'!$C$2,FALSE)","v":false},{"$f":"IF(AND('First Process Date'!$F$8>='Pension Dates'!A226,'First Process Date'!$F$8<='Pension Dates'!B226),'First Process Date'!$C$8,FALSE)","v":false}]
["2023-04-23","2023-05-06","2023-04-22",{"$f":"IF(AND('First Process Date'!$F$2>='Pension Dates'!A227,'First Process Date'!$F$2<='Pension Dates'!B227),'First Process Date'!$C$2,FALSE)","v":false},{"$f":"IF(AND('First Process Date'!$F$8>='Pension Dates'!A227,'First Process Date'!$F$8<='Pension Dates'!B227),'First Process Date'!$C$8,FALSE)","v":false}]
["2023-05-07","2023-05-20","2023-05-06",{"$f":"IF(AND('First Process Date'!$F$2>='Pension Dates'!A228,'First Process Date'!$F$2<='Pension Dates'!B228),'First Process Date'!$C$2,FALSE)","v":false},{"$f":"IF(AND('First Process Date'!$F$8>='Pension Dates'!A228,'First Process Date'!$F$8<='Pension Dates'!B228),'First Process Date'!$C$8,FALSE)","v":false}]
["2023-05-21","2023-06-03","2023-05-20",{"$f":"IF(AND('First Process Date'!$F$2>='Pension Dates'!A229,'First Process Date'!$F$2<='Pension Dates'!B229),'First Process Date'!$C$2,FALSE)","v":false},{"$f":"IF(AND('First Process Date'!$F$8>='Pension Dates'!A229,'First Process Date'!$F$8<='Pension Dates'!B229),'First Process Date'!$C$8,FALSE)","v":false}]
["2023-06-04","2023-06-17","2023-06-03",{"$f":"IF(AND('First Process Date'!$F$2>='Pension Dates'!A230,'First Process Date'!$F$2<='Pension Dates'!B230),'First Process Date'!$C$2,FALSE)","v":false},{"$f":"IF(AND('First Process Date'!$F$8>='Pension Dates'!A230,'First Process Date'!$F$8<='Pension Dates'!B230),'First Process Date'!$C$8,FALSE)","v":false}]
["2023-06-18","2023-07-01","2023-06-17",{"$f":"IF(AND('First Process Date'!$F$2>='Pension Dates'!A231,'First Process Date'!$F$2<='Pension Dates'!B231),'First Process Date'!$C$2,FALSE)","v":false},{"$f":"IF(AND('First Process Date'!$F$8>='Pension Dates'!A231,'First Process Date'!$F$8<='Pension Dates'!B231),'First Process Date'!$C$8,FALSE)","v":false}]
["2023-07-02","2023-07-15","2023-07-01",{"$f":"IF(AND('First Process Date'!$F$2>='Pension Dates'!A232,'First Process Date'!$F$2<='Pension Dates'!B232),'First Process Date'!$C$2,FALSE)","v":false},{"$f":"IF(AND('First Process Date'!$F$8>='Pension Dates'!A232,'First Process Date'!$F$8<='Pension Dates'!B232),'First Process Date'!$C$8,FALSE)","v":false}]
["2023-07-16","2023-07-29","2023-07-15",{"$f":"IF(AND('First Process Date'!$F$2>='Pension Dates'!A233,'First Process Date'!$F$2<='Pension Dates'!B233),'First Process Date'!$C$2,FALSE)","v":false},{"$f":"IF(AND('First Process Date'!$F$8>='Pension Dates'!A233,'First Process Date'!$F$8<='Pension Dates'!B233),'First Process Date'!$C$8,FALSE)","v":false}]
["2023-07-30","2023-08-12","2023-07-29",{"$f":"IF(AND('First Process Date'!$F$2>='Pension Dates'!A234,'First Process Date'!$F$2<='Pension Dates'!B234),'First Process Date'!$C$2,FALSE)","v":false},{"$f":"IF(AND('First Process Date'!$F$8>='Pension Dates'!A234,'First Process Date'!$F$8<='Pension Dates'!B234),'First Process Date'!$C$8,FALSE)","v":false}]
["2023-08-13","2023-08-26","2023-08-12",{"$f":"IF(AND('First Process Date'!$F$2>='Pension Dates'!A235,'First Process Date'!$F$2<='Pension Dates'!B235),'First Process Date'!$C$2,FALSE)","v":false},{"$f":"IF(AND('First Process Date'!$F$8>='Pension Dates'!A235,'First Process Date'!$F$8<='Pension Dates'!B235),'First Process Date'!$C$8,FALSE)","v":false}]
["2023-08-27","2023-09-09","2023-08-26",{"$f":"IF(AND('First Process Date'!$F$2>='Pension Dates'!A236,'First Process Date'!$F$2<='Pension Dates'!B236),'First Process Date'!$C$2,FALSE)","v":false},{"$f":"IF(AND('First Process Date'!$F$8>='Pension Dates'!A236,'First Process Date'!$F$8<='Pension Dates'!B236),'First Process Date'!$C$8,FALSE)","v":false}]
["2023-09-10","2023-09-23","2023-09-09",{"$f":"IF(AND('First Process Date'!$F$2>='Pension Dates'!A237,'First Process Date'!$F$2<='Pension Dates'!B237),'First Process Date'!$C$2,FALSE)","v":false},{"$f":"IF(AND('First Process Date'!$F$8>='Pension Dates'!A237,'First Process Date'!$F$8<='Pension Dates'!B237),'First Process Date'!$C$8,FALSE)","v":false}]
["2023-09-24","2023-10-07","2023-09-23",{"$f":"IF(AND('First Process Date'!$F$2>='Pension Dates'!A238,'First Process Date'!$F$2<='Pension Dates'!B238),'First Process Date'!$C$2,FALSE)","v":false},{"$f":"IF(AND('First Process Date'!$F$8>='Pension Dates'!A238,'First Process Date'!$F$8<='Pension Dates'!B238),'First Process Date'!$C$8,FALSE)","v":false}]
["2023-10-08","2023-10-21","2023-10-07",{"$f":"IF(AND('First Process Date'!$F$2>='Pension Dates'!A239,'First Process Date'!$F$2<='Pension Dates'!B239),'First Process Date'!$C$2,FALSE)","v":false},{"$f":"IF(AND('First Process Date'!$F$8>='Pension Dates'!A239,'First Process Date'!$F$8<='Pension Dates'!B239),'First Process Date'!$C$8,FALSE)","v":false}]
["2023-10-22","2023-11-04","2023-10-21",{"$f":"IF(AND('First Process Date'!$F$2>='Pension Dates'!A240,'First Process Date'!$F$2<='Pension Dates'!B240),'First Process Date'!$C$2,FALSE)","v":false},{"$f":"IF(AND('First Process Date'!$F$8>='Pension Dates'!A240,'First Process Date'!$F$8<='Pension Dates'!B240),'First Process Date'!$C$8,FALSE)","v":false}]
["2023-11-05","2023-11-18","2023-11-04",{"$f":"IF(AND('First Process Date'!$F$2>='Pension Dates'!A241,'First Process Date'!$F$2<='Pension Dates'!B241),'First Process Date'!$C$2,FALSE)","v":false},{"$f":"IF(AND('First Process Date'!$F$8>='Pension Dates'!A241,'First Process Date'!$F$8<='Pension Dates'!B241),'First Process Date'!$C$8,FALSE)","v":false}]
["2023-11-19","2023-12-02","2023-11-18",{"$f":"IF(AND('First Process Date'!$F$2>='Pension Dates'!A242,'First Process Date'!$F$2<='Pension Dates'!B242),'First Process Date'!$C$2,FALSE)","v":false},{"$f":"IF(AND('First Process Date'!$F$8>='Pension Dates'!A242,'First Process Date'!$F$8<='Pension Dates'!B242),'First Process Date'!$C$8,FALSE)","v":false}]
["2023-12-03","2023-12-16","2023-12-02",{"$f":"IF(AND('First Process Date'!$F$2>='Pension Dates'!A243,'First Process Date'!$F$2<='Pension Dates'!B243),'First Process Date'!$C$2,FALSE)","v":false},{"$f":"IF(AND('First Process Date'!$F$8>='Pension Dates'!A243,'First Process Date'!$F$8<='Pension Dates'!B243),'First Process Date'!$C$8,FALSE)","v":false}]
["2023-12-17","2023-12-30","2023-12-16",{"$f":"IF(AND('First Process Date'!$F$2>='Pension Dates'!A244,'First Process Date'!$F$2<='Pension Dates'!B244),'First Process Date'!$C$2,FALSE)","v":false},{"$f":"IF(AND('First Process Date'!$F$8>='Pension Dates'!A244,'First Process Date'!$F$8<='Pension Dates'!B244),'First Process Date'!$C$8,FALSE)","v":false}]
["2023-12-31","2024-01-13","2023-12-30",{"$f":"IF(AND('First Process Date'!$F$2>='Pension Dates'!A245,'First Process Date'!$F$2<='Pension Dates'!B245),'First Process Date'!$C$2,FALSE)","v":false},{"$f":"IF(AND('First Process Date'!$F$8>='Pension Dates'!A245,'First Process Date'!$F$8<='Pension Dates'!B245),'First Process Date'!$C$8,FALSE)","v":false}]
["2024-01-14","2024-01-27","2024-01-13",{"$f":"IF(AND('First Process Date'!$F$2>='Pension Dates'!A246,'First Process Date'!$F$2<='Pension Dates'!B246),'First Process Date'!$C$2,FALSE)","v":false},{"$f":"IF(AND('First Process Date'!$F$8>='Pension Dates'!A246,'First Process Date'!$F$8<='Pension Dates'!B246),'First Process Date'!$C$8,FALSE)","v":false}]
["2024-01-28","2024-02-10","2024-01-27",{"$f":"IF(AND('First Process Date'!$F$2>='Pension Dates'!A247,'First Process Date'!$F$2<='Pension Dates'!B247),'First Process Date'!$C$2,FALSE)","v":false},{"$f":"IF(AND('First Process Date'!$F$8>='Pension Dates'!A247,'First Process Date'!$F$8<='Pension Dates'!B247),'First Process Date'!$C$8,FALSE)","v":false}]
["2024-02-11","2024-02-24","2024-02-10",{"$f":"IF(AND('First Process Date'!$F$2>='Pension Dates'!A248,'First Process Date'!$F$2<='Pension Dates'!B248),'First Process Date'!$C$2,FALSE)","v":false},{"$f":"IF(AND('First Process Date'!$F$8>='Pension Dates'!A248,'First Process Date'!$F$8<='Pension Dates'!B248),'First Process Date'!$C$8,FALSE)","v":false}]
["2024-02-25","2024-03-09","2024-02-24",{"$f":"IF(AND('First Process Date'!$F$2>='Pension Dates'!A249,'First Process Date'!$F$2<='Pension Dates'!B249),'First Process Date'!$C$2,FALSE)","v":45349},{"$f":"IF(AND('First Process Date'!$F$8>='Pension Dates'!A249,'First Process Date'!$F$8<='Pension Dates'!B249),'First Process Date'!$C$8,FALSE)","v":false}]
["2024-03-10","2024-03-23","2024-03-09",{"$f":"IF(AND('First Process Date'!$F$2>='Pension Dates'!A250,'First Process Date'!$F$2<='Pension Dates'!B250),'First Process Date'!$C$2,FALSE)","v":false},{"$f":"IF(AND('First Process Date'!$F$8>='Pension Dates'!A250,'First Process Date'!$F$8<='Pension Dates'!B250),'First Process Date'!$C$8,FALSE)","v":false}]
["2024-03-24","2024-04-06","2024-03-23",{"$f":"IF(AND('First Process Date'!$F$2>='Pension Dates'!A251,'First Process Date'!$F$2<='Pension Dates'!B251),'First Process Date'!$C$2,FALSE)","v":false},{"$f":"IF(AND('First Process Date'!$F$8>='Pension Dates'!A251,'First Process Date'!$F$8<='Pension Dates'!B251),'First Process Date'!$C$8,FALSE)","v":false}]
["2024-04-07","2024-04-20","2024-04-06",{"$f":"IF(AND('First Process Date'!$F$2>='Pension Dates'!A252,'First Process Date'!$F$2<='Pension Dates'!B252),'First Process Date'!$C$2,FALSE)","v":false},{"$f":"IF(AND('First Process Date'!$F$8>='Pension Dates'!A252,'First Process Date'!$F$8<='Pension Dates'!B252),'First Process Date'!$C$8,FALSE)","v":false}]
["2024-04-21","2024-05-04","2024-04-20",{"$f":"IF(AND('First Process Date'!$F$2>='Pension Dates'!A253,'First Process Date'!$F$2<='Pension Dates'!B253),'First Process Date'!$C$2,FALSE)","v":false},{"$f":"IF(AND('First Process Date'!$F$8>='Pension Dates'!A253,'First Process Date'!$F$8<='Pension Dates'!B253),'First Process Date'!$C$8,FALSE)","v":false}]
["2024-05-05","2024-05-18","2024-05-04",{"$f":"IF(AND('First Process Date'!$F$2>='Pension Dates'!A254,'First Process Date'!$F$2<='Pension Dates'!B254),'First Process Date'!$C$2,FALSE)","v":false},{"$f":"IF(AND('First Process Date'!$F$8>='Pension Dates'!A254,'First Process Date'!$F$8<='Pension Dates'!B254),'First Process Date'!$C$8,FALSE)","v":false}]
["2024-05-19","2024-06-01","2024-05-18",{"$f":"IF(AND('First Process Date'!$F$2>='Pension Dates'!A255,'First Process Date'!$F$2<='Pension Dates'!B255),'First Process Date'!$C$2,FALSE)","v":false},{"$f":"IF(AND('First Process Date'!$F$8>='Pension Dates'!A255,'First Process Date'!$F$8<='Pension Dates'!B255),'First Process Date'!$C$8,FALSE)","v":false}]
["2024-06-02","2024-06-15","2024-06-01",{"$f":"IF(AND('First Process Date'!$F$2>='Pension Dates'!A256,'First Process Date'!$F$2<='Pension Dates'!B256),'First Process Date'!$C$2,FALSE)","v":false},{"$f":"IF(AND('First Process Date'!$F$8>='Pension Dates'!A256,'First Process Date'!$F$8<='Pension Dates'!B256),'First Process Date'!$C$8,FALSE)","v":false}]
["2024-06-16","2024-06-29","2024-06-15",{"$f":"IF(AND('First Process Date'!$F$2>='Pension Dates'!A257,'First Process Date'!$F$2<='Pension Dates'!B257),'First Process Date'!$C$2,FALSE)","v":false},{"$f":"IF(AND('First Process Date'!$F$8>='Pension Dates'!A257,'First Process Date'!$F$8<='Pension Dates'!B257),'First Process Date'!$C$8,FALSE)","v":false}]
["2024-06-30","2024-07-13","2024-06-29",{"$f":"IF(AND('First Process Date'!$F$2>='Pension Dates'!A258,'First Process Date'!$F$2<='Pension Dates'!B258),'First Process Date'!$C$2,FALSE)","v":false},{"$f":"IF(AND('First Process Date'!$F$8>='Pension Dates'!A258,'First Process Date'!$F$8<='Pension Dates'!B258),'First Process Date'!$C$8,FALSE)","v":false}]
["2024-07-14","2024-07-27","2024-07-13",{"$f":"IF(AND('First Process Date'!$F$2>='Pension Dates'!A259,'First Process Date'!$F$2<='Pension Dates'!B259),'First Process Date'!$C$2,FALSE)","v":false},{"$f":"IF(AND('First Process Date'!$F$8>='Pension Dates'!A259,'First Process Date'!$F$8<='Pension Dates'!B259),'First Process Date'!$C$8,FALSE)","v":false}]
["2024-07-28","2024-08-10","2024-07-27",{"$f":"IF(AND('First Process Date'!$F$2>='Pension Dates'!A260,'First Process Date'!$F$2<='Pension Dates'!B260),'First Process Date'!$C$2,FALSE)","v":false},{"$f":"IF(AND('First Process Date'!$F$8>='Pension Dates'!A260,'First Process Date'!$F$8<='Pension Dates'!B260),'First Process Date'!$C$8,FALSE)","v":false}]
["2024-08-11","2024-08-24","2024-08-10",{"$f":"IF(AND('First Process Date'!$F$2>='Pension Dates'!A261,'First Process Date'!$F$2<='Pension Dates'!B261),'First Process Date'!$C$2,FALSE)","v":false},{"$f":"IF(AND('First Process Date'!$F$8>='Pension Dates'!A261,'First Process Date'!$F$8<='Pension Dates'!B261),'First Process Date'!$C$8,FALSE)","v":false}]
["2024-08-25","2024-09-07","2024-08-24",{"$f":"IF(AND('First Process Date'!$F$2>='Pension Dates'!A262,'First Process Date'!$F$2<='Pension Dates'!B262),'First Process Date'!$C$2,FALSE)","v":false},{"$f":"IF(AND('First Process Date'!$F$8>='Pension Dates'!A262,'First Process Date'!$F$8<='Pension Dates'!B262),'First Process Date'!$C$8,FALSE)","v":false}]
["2024-09-08","2024-09-21","2024-09-07",{"$f":"IF(AND('First Process Date'!$F$2>='Pension Dates'!A263,'First Process Date'!$F$2<='Pension Dates'!B263),'First Process Date'!$C$2,FALSE)","v":false},{"$f":"IF(AND('First Process Date'!$F$8>='Pension Dates'!A263,'First Process Date'!$F$8<='Pension Dates'!B263),'First Process Date'!$C$8,FALSE)","v":false}]
["2024-09-22","2024-10-05","2024-09-21",{"$f":"IF(AND('First Process Date'!$F$2>='Pension Dates'!A264,'First Process Date'!$F$2<='Pension Dates'!B264),'First Process Date'!$C$2,FALSE)","v":false},{"$f":"IF(AND('First Process Date'!$F$8>='Pension Dates'!A264,'First Process Date'!$F$8<='Pension Dates'!B264),'First Process Date'!$C$8,FALSE)","v":false}]
["2024-10-06","2024-10-19","2024-10-05",{"$f":"IF(AND('First Process Date'!$F$2>='Pension Dates'!A265,'First Process Date'!$F$2<='Pension Dates'!B265),'First Process Date'!$C$2,FALSE)","v":false},{"$f":"IF(AND('First Process Date'!$F$8>='Pension Dates'!A265,'First Process Date'!$F$8<='Pension Dates'!B265),'First Process Date'!$C$8,FALSE)","v":false}]
["2024-10-20","2024-11-02","2024-10-19",{"$f":"IF(AND('First Process Date'!$F$2>='Pension Dates'!A266,'First Process Date'!$F$2<='Pension Dates'!B266),'First Process Date'!$C$2,FALSE)","v":false},{"$f":"IF(AND('First Process Date'!$F$8>='Pension Dates'!A266,'First Process Date'!$F$8<='Pension Dates'!B266),'First Process Date'!$C$8,FALSE)","v":false}]
["2024-11-03","2024-11-16","2024-11-02",{"$f":"IF(AND('First Process Date'!$F$2>='Pension Dates'!A267,'First Process Date'!$F$2<='Pension Dates'!B267),'First Process Date'!$C$2,FALSE)","v":false},{"$f":"IF(AND('First Process Date'!$F$8>='Pension Dates'!A267,'First Process Date'!$F$8<='Pension Dates'!B267),'First Process Date'!$C$8,FALSE)","v":false}]
["2024-11-17","2024-11-30","2024-11-16",{"$f":"IF(AND('First Process Date'!$F$2>='Pension Dates'!A268,'First Process Date'!$F$2<='Pension Dates'!B268),'First Process Date'!$C$2,FALSE)","v":false},{"$f":"IF(AND('First Process Date'!$F$8>='Pension Dates'!A268,'First Process Date'!$F$8<='Pension Dates'!B268),'First Process Date'!$C$8,FALSE)","v":false}]
["2024-12-01","2024-12-14","2024-11-30",{"$f":"IF(AND('First Process Date'!$F$2>='Pension Dates'!A269,'First Process Date'!$F$2<='Pension Dates'!B269),'First Process Date'!$C$2,FALSE)","v":false},{"$f":"IF(AND('First Process Date'!$F$8>='Pension Dates'!A269,'First Process Date'!$F$8<='Pension Dates'!B269),'First Process Date'!$C$8,FALSE)","v":false}]
["2024-12-15","2024-12-28","2024-12-14",{"$f":"IF(AND('First Process Date'!$F$2>='Pension Dates'!A270,'First Process Date'!$F$2<='Pension Dates'!B270),'First Process Date'!$C$2,FALSE)","v":false},{"$f":"IF(AND('First Process Date'!$F$8>='Pension Dates'!A270,'First Process Date'!$F$8<='Pension Dates'!B270),'First Process Date'!$C$8,FALSE)","v":false}]
["2024-12-29","2025-01-11","2024-12-28",{"$f":"IF(AND('First Process Date'!$F$2>='Pension Dates'!A271,'First Process Date'!$F$2<='Pension Dates'!B271),'First Process Date'!$C$2,FALSE)","v":false},{"$f":"IF(AND('First Process Date'!$F$8>='Pension Dates'!A271,'First Process Date'!$F$8<='Pension Dates'!B271),'First Process Date'!$C$8,FALSE)","v":false}]
["2025-01-12","2025-01-25","2025-01-11",{"$f":"IF(AND('First Process Date'!$F$2>='Pension Dates'!A272,'First Process Date'!$F$2<='Pension Dates'!B272),'First Process Date'!$C$2,FALSE)","v":false},{"$f":"IF(AND('First Process Date'!$F$8>='Pension Dates'!A272,'First Process Date'!$F$8<='Pension Dates'!B272),'First Process Date'!$C$8,FALSE)","v":false}]
["2025-01-26","2025-02-08","2025-01-25",{"$f":"IF(AND('First Process Date'!$F$2>='Pension Dates'!A273,'First Process Date'!$F$2<='Pension Dates'!B273),'First Process Date'!$C$2,FALSE)","v":false},{"$f":"IF(AND('First Process Date'!$F$8>='Pension Dates'!A273,'First Process Date'!$F$8<='Pension Dates'!B273),'First Process Date'!$C$8,FALSE)","v":false}]
["2025-02-09","2025-02-22","2025-02-08",{"$f":"IF(AND('First Process Date'!$F$2>='Pension Dates'!A274,'First Process Date'!$F$2<='Pension Dates'!B274),'First Process Date'!$C$2,FALSE)","v":false},{"$f":"IF(AND('First Process Date'!$F$8>='Pension Dates'!A274,'First Process Date'!$F$8<='Pension Dates'!B274),'First Process Date'!$C$8,FALSE)","v":false}]
["2025-02-23","2025-03-08","2025-02-22",{"$f":"IF(AND('First Process Date'!$F$2>='Pension Dates'!A275,'First Process Date'!$F$2<='Pension Dates'!B275),'First Process Date'!$C$2,FALSE)","v":false},{"$f":"IF(AND('First Process Date'!$F$8>='Pension Dates'!A275,'First Process Date'!$F$8<='Pension Dates'!B275),'First Process Date'!$C$8,FALSE)","v":false}]
["2025-03-09","2025-03-22","2025-03-08",{"$f":"IF(AND('First Process Date'!$F$2>='Pension Dates'!A276,'First Process Date'!$F$2<='Pension Dates'!B276),'First Process Date'!$C$2,FALSE)","v":false},{"$f":"IF(AND('First Process Date'!$F$8>='Pension Dates'!A276,'First Process Date'!$F$8<='Pension Dates'!B276),'First Process Date'!$C$8,FALSE)","v":false}]
["2025-03-23","2025-04-05","2025-03-22",{"$f":"IF(AND('First Process Date'!$F$2>='Pension Dates'!A277,'First Process Date'!$F$2<='Pension Dates'!B277),'First Process Date'!$C$2,FALSE)","v":false},{"$f":"IF(AND('First Process Date'!$F$8>='Pension Dates'!A277,'First Process Date'!$F$8<='Pension Dates'!B277),'First Process Date'!$C$8,FALSE)","v":false}]
["2025-04-06","2025-04-19","2025-04-05",{"$f":"IF(AND('First Process Date'!$F$2>='Pension Dates'!A278,'First Process Date'!$F$2<='Pension Dates'!B278),'First Process Date'!$C$2,FALSE)","v":false},{"$f":"IF(AND('First Process Date'!$F$8>='Pension Dates'!A278,'First Process Date'!$F$8<='Pension Dates'!B278),'First Process Date'!$C$8,FALSE)","v":false}]
["2025-04-20","2025-05-03","2025-04-19",{"$f":"IF(AND('First Process Date'!$F$2>='Pension Dates'!A279,'First Process Date'!$F$2<='Pension Dates'!B279),'First Process Date'!$C$2,FALSE)","v":false},{"$f":"IF(AND('First Process Date'!$F$8>='Pension Dates'!A279,'First Process Date'!$F$8<='Pension Dates'!B279),'First Process Date'!$C$8,FALSE)","v":false}]
["2025-05-04","2025-05-17","2025-05-03",{"$f":"IF(AND('First Process Date'!$F$2>='Pension Dates'!A280,'First Process Date'!$F$2<='Pension Dates'!B280),'First Process Date'!$C$2,FALSE)","v":false},{"$f":"IF(AND('First Process Date'!$F$8>='Pension Dates'!A280,'First Process Date'!$F$8<='Pension Dates'!B280),'First Process Date'!$C$8,FALSE)","v":false}]
["2025-05-18","2025-05-31","2025-05-17",{"$f":"IF(AND('First Process Date'!$F$2>='Pension Dates'!A281,'First Process Date'!$F$2<='Pension Dates'!B281),'First Process Date'!$C$2,FALSE)","v":false},{"$f":"IF(AND('First Process Date'!$F$8>='Pension Dates'!A281,'First Process Date'!$F$8<='Pension Dates'!B281),'First Process Date'!$C$8,FALSE)","v":false}]
["2025-06-01","2025-06-14","2025-05-31",{"$f":"IF(AND('First Process Date'!$F$2>='Pension Dates'!A282,'First Process Date'!$F$2<='Pension Dates'!B282),'First Process Date'!$C$2,FALSE)","v":false},{"$f":"IF(AND('First Process Date'!$F$8>='Pension Dates'!A282,'First Process Date'!$F$8<='Pension Dates'!B282),'First Process Date'!$C$8,FALSE)","v":false}]
["2025-06-15","2025-06-28","2025-06-14",{"$f":"IF(AND('First Process Date'!$F$2>='Pension Dates'!A283,'First Process Date'!$F$2<='Pension Dates'!B283),'First Process Date'!$C$2,FALSE)","v":false},{"$f":"IF(AND('First Process Date'!$F$8>='Pension Dates'!A283,'First Process Date'!$F$8<='Pension Dates'!B283),'First Process Date'!$C$8,FALSE)","v":false}]
["2025-06-29","2025-07-12","2025-06-28",{"$f":"IF(AND('First Process Date'!$F$2>='Pension Dates'!A284,'First Process Date'!$F$2<='Pension Dates'!B284),'First Process Date'!$C$2,FALSE)","v":false},{"$f":"IF(AND('First Process Date'!$F$8>='Pension Dates'!A284,'First Process Date'!$F$8<='Pension Dates'!B284),'First Process Date'!$C$8,FALSE)","v":false}]
["2025-07-13","2025-07-26","2025-07-12",{"$f":"IF(AND('First Process Date'!$F$2>='Pension Dates'!A285,'First Process Date'!$F$2<='Pension Dates'!B285),'First Process Date'!$C$2,FALSE)","v":false},{"$f":"IF(AND('First Process Date'!$F$8>='Pension Dates'!A285,'First Process Date'!$F$8<='Pension Dates'!B285),'First Process Date'!$C$8,FALSE)","v":false}]
["2025-07-27","2025-08-09","2025-07-26",{"$f":"IF(AND('First Process Date'!$F$2>='Pension Dates'!A286,'First Process Date'!$F$2<='Pension Dates'!B286),'First Process Date'!$C$2,FALSE)","v":false},{"$f":"IF(AND('First Process Date'!$F$8>='Pension Dates'!A286,'First Process Date'!$F$8<='Pension Dates'!B286),'First Process Date'!$C$8,FALSE)","v":false}]
["2025-08-10","2025-08-23","2025-08-09",{"$f":"IF(AND('First Process Date'!$F$2>='Pension Dates'!A287,'First Process Date'!$F$2<='Pension Dates'!B287),'First Process Date'!$C$2,FALSE)","v":false},{"$f":"IF(AND('First Process Date'!$F$8>='Pension Dates'!A287,'First Process Date'!$F$8<='Pension Dates'!B287),'First Process Date'!$C$8,FALSE)","v":false}]
["2025-08-24","2025-09-06","2025-08-23",{"$f":"IF(AND('First Process Date'!$F$2>='Pension Dates'!A288,'First Process Date'!$F$2<='Pension Dates'!B288),'First Process Date'!$C$2,FALSE)","v":false},{"$f":"IF(AND('First Process Date'!$F$8>='Pension Dates'!A288,'First Process Date'!$F$8<='Pension Dates'!B288),'First Process Date'!$C$8,FALSE)","v":false}]
["2025-09-07","2025-09-20","2025-09-06",{"$f":"IF(AND('First Process Date'!$F$2>='Pension Dates'!A289,'First Process Date'!$F$2<='Pension Dates'!B289),'First Process Date'!$C$2,FALSE)","v":false},{"$f":"IF(AND('First Process Date'!$F$8>='Pension Dates'!A289,'First Process Date'!$F$8<='Pension Dates'!B289),'First Process Date'!$C$8,FALSE)","v":false}]
["2025-09-21","2025-10-04","2025-09-20",{"$f":"IF(AND('First Process Date'!$F$2>='Pension Dates'!A290,'First Process Date'!$F$2<='Pension Dates'!B290),'First Process Date'!$C$2,FALSE)","v":false},{"$f":"IF(AND('First Process Date'!$F$8>='Pension Dates'!A290,'First Process Date'!$F$8<='Pension Dates'!B290),'First Process Date'!$C$8,FALSE)","v":false}]
["2025-10-05","2025-10-18","2025-10-04",{"$f":"IF(AND('First Process Date'!$F$2>='Pension Dates'!A291,'First Process Date'!$F$2<='Pension Dates'!B291),'First Process Date'!$C$2,FALSE)","v":false},{"$f":"IF(AND('First Process Date'!$F$8>='Pension Dates'!A291,'First Process Date'!$F$8<='Pension Dates'!B291),'First Process Date'!$C$8,FALSE)","v":false}]
["2025-10-19","2025-11-01","2025-10-18",{"$f":"IF(AND('First Process Date'!$F$2>='Pension Dates'!A292,'First Process Date'!$F$2<='Pension Dates'!B292),'First Process Date'!$C$2,FALSE)","v":false},{"$f":"IF(AND('First Process Date'!$F$8>='Pension Dates'!A292,'First Process Date'!$F$8<='Pension Dates'!B292),'First Process Date'!$C$8,FALSE)","v":false}]
["2025-11-02","2025-11-15","2025-11-01",{"$f":"IF(AND('First Process Date'!$F$2>='Pension Dates'!A293,'First Process Date'!$F$2<='Pension Dates'!B293),'First Process Date'!$C$2,FALSE)","v":false},{"$f":"IF(AND('First Process Date'!$F$8>='Pension Dates'!A293,'First Process Date'!$F$8<='Pension Dates'!B293),'First Process Date'!$C$8,FALSE)","v":false}]
["2025-11-16","2025-11-29","2025-11-15",{"$f":"IF(AND('First Process Date'!$F$2>='Pension Dates'!A294,'First Process Date'!$F$2<='Pension Dates'!B294),'First Process Date'!$C$2,FALSE)","v":false},{"$f":"IF(AND('First Process Date'!$F$8>='Pension Dates'!A294,'First Process Date'!$F$8<='Pension Dates'!B294),'First Process Date'!$C$8,FALSE)","v":false}]
["2025-11-30","2025-12-13","2025-11-29",{"$f":"IF(AND('First Process Date'!$F$2>='Pension Dates'!A295,'First Process Date'!$F$2<='Pension Dates'!B295),'First Process Date'!$C$2,FALSE)","v":false},{"$f":"IF(AND('First Process Date'!$F$8>='Pension Dates'!A295,'First Process Date'!$F$8<='Pension Dates'!B295),'First Process Date'!$C$8,FALSE)","v":false}]
["2025-12-14","2025-12-27","2025-12-13",{"$f":"IF(AND('First Process Date'!$F$2>='Pension Dates'!A296,'First Process Date'!$F$2<='Pension Dates'!B296),'First Process Date'!$C$2,FALSE)","v":false},{"$f":"IF(AND('First Process Date'!$F$8>='Pension Dates'!A296,'First Process Date'!$F$8<='Pension Dates'!B296),'First Process Date'!$C$8,FALSE)","v":false}]
["2025-12-28","2026-01-10","2025-12-27",{"$f":"IF(AND('First Process Date'!$F$2>='Pension Dates'!A297,'First Process Date'!$F$2<='Pension Dates'!B297),'First Process Date'!$C$2,FALSE)","v":false},{"$f":"IF(AND('First Process Date'!$F$8>='Pension Dates'!A297,'First Process Date'!$F$8<='Pension Dates'!B297),'First Process Date'!$C$8,FALSE)","v":false}]
["2026-01-11","2026-01-24","2026-01-10",{"$f":"IF(AND('First Process Date'!$F$2>='Pension Dates'!A298,'First Process Date'!$F$2<='Pension Dates'!B298),'First Process Date'!$C$2,FALSE)","v":false},{"$f":"IF(AND('First Process Date'!$F$8>='Pension Dates'!A298,'First Process Date'!$F$8<='Pension Dates'!B298),'First Process Date'!$C$8,FALSE)","v":false}]
["2026-01-25","2026-02-07","2026-01-24",{"$f":"IF(AND('First Process Date'!$F$2>='Pension Dates'!A299,'First Process Date'!$F$2<='Pension Dates'!B299),'First Process Date'!$C$2,FALSE)","v":false},{"$f":"IF(AND('First Process Date'!$F$8>='Pension Dates'!A299,'First Process Date'!$F$8<='Pension Dates'!B299),'First Process Date'!$C$8,FALSE)","v":false}]
["2026-02-08","2026-02-21","2026-02-07",{"$f":"IF(AND('First Process Date'!$F$2>='Pension Dates'!A300,'First Process Date'!$F$2<='Pension Dates'!B300),'First Process Date'!$C$2,FALSE)","v":false},{"$f":"IF(AND('First Process Date'!$F$8>='Pension Dates'!A300,'First Process Date'!$F$8<='Pension Dates'!B300),'First Process Date'!$C$8,FALSE)","v":false}]
["2026-02-22","2026-03-07","2026-02-21",{"$f":"IF(AND('First Process Date'!$F$2>='Pension Dates'!A301,'First Process Date'!$F$2<='Pension Dates'!B301),'First Process Date'!$C$2,FALSE)","v":false},{"$f":"IF(AND('First Process Date'!$F$8>='Pension Dates'!A301,'First Process Date'!$F$8<='Pension Dates'!B301),'First Process Date'!$C$8,FALSE)","v":false}]
["2026-03-08","2026-03-21","2026-03-07",{"$f":"IF(AND('First Process Date'!$F$2>='Pension Dates'!A302,'First Process Date'!$F$2<='Pension Dates'!B302),'First Process Date'!$C$2,FALSE)","v":false},{"$f":"IF(AND('First Process Date'!$F$8>='Pension Dates'!A302,'First Process Date'!$F$8<='Pension Dates'!B302),'First Process Date'!$C$8,FALSE)","v":false}]
["2026-03-22","2026-04-04","2026-03-21",{"$f":"IF(AND('First Process Date'!$F$2>='Pension Dates'!A303,'First Process Date'!$F$2<='Pension Dates'!B303),'First Process Date'!$C$2,FALSE)","v":false},{"$f":"IF(AND('First Process Date'!$F$8>='Pension Dates'!A303,'First Process Date'!$F$8<='Pension Dates'!B303),'First Process Date'!$C$8,FALSE)","v":false}]
["2026-04-05","2026-04-18","2026-04-04",{"$f":"IF(AND('First Process Date'!$F$2>='Pension Dates'!A304,'First Process Date'!$F$2<='Pension Dates'!B304),'First Process Date'!$C$2,FALSE)","v":false},{"$f":"IF(AND('First Process Date'!$F$8>='Pension Dates'!A304,'First Process Date'!$F$8<='Pension Dates'!B304),'First Process Date'!$C$8,FALSE)","v":false}]
["2026-04-19","2026-05-02","2026-04-18",{"$f":"IF(AND('First Process Date'!$F$2>='Pension Dates'!A305,'First Process Date'!$F$2<='Pension Dates'!B305),'First Process Date'!$C$2,FALSE)","v":false},{"$f":"IF(AND('First Process Date'!$F$8>='Pension Dates'!A305,'First Process Date'!$F$8<='Pension Dates'!B305),'First Process Date'!$C$8,FALSE)","v":false}]
["2026-05-03","2026-05-16","2026-05-02",{"$f":"IF(AND('First Process Date'!$F$2>='Pension Dates'!A306,'First Process Date'!$F$2<='Pension Dates'!B306),'First Process Date'!$C$2,FALSE)","v":false},{"$f":"IF(AND('First Process Date'!$F$8>='Pension Dates'!A306,'First Process Date'!$F$8<='Pension Dates'!B306),'First Process Date'!$C$8,FALSE)","v":false}]
["2026-05-17","2026-05-30","2026-05-16",{"$f":"IF(AND('First Process Date'!$F$2>='Pension Dates'!A307,'First Process Date'!$F$2<='Pension Dates'!B307),'First Process Date'!$C$2,FALSE)","v":false},{"$f":"IF(AND('First Process Date'!$F$8>='Pension Dates'!A307,'First Process Date'!$F$8<='Pension Dates'!B307),'First Process Date'!$C$8,FALSE)","v":false}]
["2026-05-31","2026-06-13","2026-05-30",{"$f":"IF(AND('First Process Date'!$F$2>='Pension Dates'!A308,'First Process Date'!$F$2<='Pension Dates'!B308),'First Process Date'!$C$2,FALSE)","v":false},{"$f":"IF(AND('First Process Date'!$F$8>='Pension Dates'!A308,'First Process Date'!$F$8<='Pension Dates'!B308),'First Process Date'!$C$8,FALSE)","v":false}]
["2026-06-14","2026-06-27","2026-06-13",{"$f":"IF(AND('First Process Date'!$F$2>='Pension Dates'!A309,'First Process Date'!$F$2<='Pension Dates'!B309),'First Process Date'!$C$2,FALSE)","v":false},{"$f":"IF(AND('First Process Date'!$F$8>='Pension Dates'!A309,'First Process Date'!$F$8<='Pension Dates'!B309),'First Process Date'!$C$8,FALSE)","v":false}]
["2026-06-28","2026-07-11","2026-06-27",{"$f":"IF(AND('First Process Date'!$F$2>='Pension Dates'!A310,'First Process Date'!$F$2<='Pension Dates'!B310),'First Process Date'!$C$2,FALSE)","v":false},{"$f":"IF(AND('First Process Date'!$F$8>='Pension Dates'!A310,'First Process Date'!$F$8<='Pension Dates'!B310),'First Process Date'!$C$8,FALSE)","v":false}]
["2026-07-12","2026-07-25","2026-07-11",{"$f":"IF(AND('First Process Date'!$F$2>='Pension Dates'!A311,'First Process Date'!$F$2<='Pension Dates'!B311),'First Process Date'!$C$2,FALSE)","v":false},{"$f":"IF(AND('First Process Date'!$F$8>='Pension Dates'!A311,'First Process Date'!$F$8<='Pension Dates'!B311),'First Process Date'!$C$8,FALSE)","v":false}]
["2026-07-26","2026-08-08","2026-07-25",{"$f":"IF(AND('First Process Date'!$F$2>='Pension Dates'!A312,'First Process Date'!$F$2<='Pension Dates'!B312),'First Process Date'!$C$2,FALSE)","v":false},{"$f":"IF(AND('First Process Date'!$F$8>='Pension Dates'!A312,'First Process Date'!$F$8<='Pension Dates'!B312),'First Process Date'!$C$8,FALSE)","v":false}]
["2026-08-09","2026-08-22","2026-08-08",{"$f":"IF(AND('First Process Date'!$F$2>='Pension Dates'!A313,'First Process Date'!$F$2<='Pension Dates'!B313),'First Process Date'!$C$2,FALSE)","v":false},{"$f":"IF(AND('First Process Date'!$F$8>='Pension Dates'!A313,'First Process Date'!$F$8<='Pension Dates'!B313),'First Process Date'!$C$8,FALSE)","v":false}]
["2026-08-23","2026-09-05","2026-08-22",{"$f":"IF(AND('First Process Date'!$F$2>='Pension Dates'!A314,'First Process Date'!$F$2<='Pension Dates'!B314),'First Process Date'!$C$2,FALSE)","v":false},{"$f":"IF(AND('First Process Date'!$F$8>='Pension Dates'!A314,'First Process Date'!$F$8<='Pension Dates'!B314),'First Process Date'!$C$8,FALSE)","v":false}]
["2026-09-06","2026-09-19","2026-09-05",{"$f":"IF(AND('First Process Date'!$F$2>='Pension Dates'!A315,'First Process Date'!$F$2<='Pension Dates'!B315),'First Process Date'!$C$2,FALSE)","v":false},{"$f":"IF(AND('First Process Date'!$F$8>='Pension Dates'!A315,'First Process Date'!$F$8<='Pension Dates'!B315),'First Process Date'!$C$8,FALSE)","v":false}]
["2026-09-20","2026-10-03","2026-09-19",{"$f":"IF(AND('First Process Date'!$F$2>='Pension Dates'!A316,'First Process Date'!$F$2<='Pension Dates'!B316),'First Process Date'!$C$2,FALSE)","v":false},{"$f":"IF(AND('First Process Date'!$F$8>='Pension Dates'!A316,'First Process Date'!$F$8<='Pension Dates'!B316),'First Process Date'!$C$8,FALSE)","v":false}]
["2026-10-04","2026-10-17","2026-10-03",{"$f":"IF(AND('First Process Date'!$F$2>='Pension Dates'!A317,'First Process Date'!$F$2<='Pension Dates'!B317),'First Process Date'!$C$2,FALSE)","v":false},{"$f":"IF(AND('First Process Date'!$F$8>='Pension Dates'!A317,'First Process Date'!$F$8<='Pension Dates'!B317),'First Process Date'!$C$8,FALSE)","v":false}]
["2026-10-18","2026-10-31","2026-10-17",{"$f":"IF(AND('First Process Date'!$F$2>='Pension Dates'!A318,'First Process Date'!$F$2<='Pension Dates'!B318),'First Process Date'!$C$2,FALSE)","v":false},{"$f":"IF(AND('First Process Date'!$F$8>='Pension Dates'!A318,'First Process Date'!$F$8<='Pension Dates'!B318),'First Process Date'!$C$8,FALSE)","v":false}]
["2026-11-01","2026-11-14","2026-10-31",{"$f":"IF(AND('First Process Date'!$F$2>='Pension Dates'!A319,'First Process Date'!$F$2<='Pension Dates'!B319),'First Process Date'!$C$2,FALSE)","v":false},{"$f":"IF(AND('First Process Date'!$F$8>='Pension Dates'!A319,'First Process Date'!$F$8<='Pension Dates'!B319),'First Process Date'!$C$8,FALSE)","v":false}]
["2026-11-15","2026-11-28","2026-11-14",{"$f":"IF(AND('First Process Date'!$F$2>='Pension Dates'!A320,'First Process Date'!$F$2<='Pension Dates'!B320),'First Process Date'!$C$2,FALSE)","v":false},{"$f":"IF(AND('First Process Date'!$F$8>='Pension Dates'!A320,'First Process Date'!$F$8<='Pension Dates'!B320),'First Process Date'!$C$8,FALSE)","v":false}]
["2026-11-29","2026-12-12","2026-11-28",{"$f":"IF(AND('First Process Date'!$F$2>='Pension Dates'!A321,'First Process Date'!$F$2<='Pension Dates'!B321),'First Process Date'!$C$2,FALSE)","v":false},{"$f":"IF(AND('First Process Date'!$F$8>='Pension Dates'!A321,'First Process Date'!$F$8<='Pension Dates'!B321),'First Process Date'!$C$8,FALSE)","v":false}]
["2026-12-13","2026-12-26","2026-12-12",{"$f":"IF(AND('First Process Date'!$F$2>='Pension Dates'!A322,'First Process Date'!$F$2<='Pension Dates'!B322),'First Process Date'!$C$2,FALSE)","v":false},{"$f":"IF(AND('First Process Date'!$F$8>='Pension Dates'!A322,'First Process Date'!$F$8<='Pension Dates'!B322),'First Process Date'!$C$8,FALSE)","v":false}]
["2026-12-27","2027-01-09","2026-12-26",{"$f":"IF(AND('First Process Date'!$F$2>='Pension Dates'!A323,'First Process Date'!$F$2<='Pension Dates'!B323),'First Process Date'!$C$2,FALSE)","v":false},{"$f":"IF(AND('First Process Date'!$F$8>='Pension Dates'!A323,'First Process Date'!$F$8<='Pension Dates'!B323),'First Process Date'!$C$8,FALSE)","v":false}]
["2027-01-10","2027-01-23","2027-01-09",{"$f":"IF(AND('First Process Date'!$F$2>='Pension Dates'!A324,'First Process Date'!$F$2<='Pension Dates'!B324),'First Process Date'!$C$2,FALSE)","v":false},{"$f":"IF(AND('First Process Date'!$F$8>='Pension Dates'!A324,'First Process Date'!$F$8<='Pension Dates'!B324),'First Process Date'!$C$8,FALSE)","v":false}]
["2027-01-24","2027-02-06","2027-01-23",{"$f":"IF(AND('First Process Date'!$F$2>='Pension Dates'!A325,'First Process Date'!$F$2<='Pension Dates'!B325),'First Process Date'!$C$2,FALSE)","v":false},{"$f":"IF(AND('First Process Date'!$F$8>='Pension Dates'!A325,'First Process Date'!$F$8<='Pension Dates'!B325),'First Process Date'!$C$8,FALSE)","v":false}]
["2027-02-07","2027-02-20","2027-02-06",{"$f":"IF(AND('First Process Date'!$F$2>='Pension Dates'!A326,'First Process Date'!$F$2<='Pension Dates'!B326),'First Process Date'!$C$2,FALSE)","v":false},{"$f":"IF(AND('First Process Date'!$F$8>='Pension Dates'!A326,'First Process Date'!$F$8<='Pension Dates'!B326),'First Process Date'!$C$8,FALSE)","v":false}]
["2027-02-21","2027-03-06","2027-02-20",{"$f":"IF(AND('First Process Date'!$F$2>='Pension Dates'!A327,'First Process Date'!$F$2<='Pension Dates'!B327),'First Process Date'!$C$2,FALSE)","v":false},{"$f":"IF(AND('First Process Date'!$F$8>='Pension Dates'!A327,'First Process Date'!$F$8<='Pension Dates'!B327),'First Process Date'!$C$8,FALSE)","v":false}]
["2027-03-07","2027-03-20","2027-03-06",{"$f":"IF(AND('First Process Date'!$F$2>='Pension Dates'!A328,'First Process Date'!$F$2<='Pension Dates'!B328),'First Process Date'!$C$2,FALSE)","v":false},{"$f":"IF(AND('First Process Date'!$F$8>='Pension Dates'!A328,'First Process Date'!$F$8<='Pension Dates'!B328),'First Process Date'!$C$8,FALSE)","v":false}]
["2027-03-21","2027-04-03","2027-03-20",{"$f":"IF(AND('First Process Date'!$F$2>='Pension Dates'!A329,'First Process Date'!$F$2<='Pension Dates'!B329),'First Process Date'!$C$2,FALSE)","v":false},{"$f":"IF(AND('First Process Date'!$F$8>='Pension Dates'!A329,'First Process Date'!$F$8<='Pension Dates'!B329),'First Process Date'!$C$8,FALSE)","v":false}]
["2027-04-04","2027-04-17","2027-04-03",{"$f":"IF(AND('First Process Date'!$F$2>='Pension Dates'!A330,'First Process Date'!$F$2<='Pension Dates'!B330),'First Process Date'!$C$2,FALSE)","v":false},{"$f":"IF(AND('First Process Date'!$F$8>='Pension Dates'!A330,'First Process Date'!$F$8<='Pension Dates'!B330),'First Process Date'!$C$8,FALSE)","v":false}]
["2027-04-18","2027-05-01","2027-04-17",{"$f":"IF(AND('First Process Date'!$F$2>='Pension Dates'!A331,'First Process Date'!$F$2<='Pension Dates'!B331),'First Process Date'!$C$2,FALSE)","v":false},{"$f":"IF(AND('First Process Date'!$F$8>='Pension Dates'!A331,'First Process Date'!$F$8<='Pension Dates'!B331),'First Process Date'!$C$8,FALSE)","v":false}]
["2027-05-02","2027-05-15","2027-05-01",{"$f":"IF(AND('First Process Date'!$F$2>='Pension Dates'!A332,'First Process Date'!$F$2<='Pension Dates'!B332),'First Process Date'!$C$2,FALSE)","v":false},{"$f":"IF(AND('First Process Date'!$F$8>='Pension Dates'!A332,'First Process Date'!$F$8<='Pension Dates'!B332),'First Process Date'!$C$8,FALSE)","v":false}]
["2027-05-16","2027-05-29","2027-05-15",{"$f":"IF(AND('First Process Date'!$F$2>='Pension Dates'!A333,'First Process Date'!$F$2<='Pension Dates'!B333),'First Process Date'!$C$2,FALSE)","v":false},{"$f":"IF(AND('First Process Date'!$F$8>='Pension Dates'!A333,'First Process Date'!$F$8<='Pension Dates'!B333),'First Process Date'!$C$8,FALSE)","v":false}]
["2027-05-30","2027-06-12","2027-05-29",{"$f":"IF(AND('First Process Date'!$F$2>='Pension Dates'!A334,'First Process Date'!$F$2<='Pension Dates'!B334),'First Process Date'!$C$2,FALSE)","v":false},{"$f":"IF(AND('First Process Date'!$F$8>='Pension Dates'!A334,'First Process Date'!$F$8<='Pension Dates'!B334),'First Process Date'!$C$8,FALSE)","v":false}]
["2027-06-13","2027-06-26","2027-06-12",{"$f":"IF(AND('First Process Date'!$F$2>='Pension Dates'!A335,'First Process Date'!$F$2<='Pension Dates'!B335),'First Process Date'!$C$2,FALSE)","v":false},{"$f":"IF(AND('First Process Date'!$F$8>='Pension Dates'!A335,'First Process Date'!$F$8<='Pension Dates'!B335),'First Process Date'!$C$8,FALSE)","v":false}]
["2027-06-27","2027-07-10","2027-06-26",{"$f":"IF(AND('First Process Date'!$F$2>='Pension Dates'!A336,'First Process Date'!$F$2<='Pension Dates'!B336),'First Process Date'!$C$2,FALSE)","v":false},{"$f":"IF(AND('First Process Date'!$F$8>='Pension Dates'!A336,'First Process Date'!$F$8<='Pension Dates'!B336),'First Process Date'!$C$8,FALSE)","v":false}]
["2027-07-11","2027-07-24","2027-07-10",{"$f":"IF(AND('First Process Date'!$F$2>='Pension Dates'!A337,'First Process Date'!$F$2<='Pension Dates'!B337),'First Process Date'!$C$2,FALSE)","v":false},{"$f":"IF(AND('First Process Date'!$F$8>='Pension Dates'!A337,'First Process Date'!$F$8<='Pension Dates'!B337),'First Process Date'!$C$8,FALSE)","v":false}]
["2027-07-25","2027-08-07","2027-07-24",{"$f":"IF(AND('First Process Date'!$F$2>='Pension Dates'!A338,'First Process Date'!$F$2<='Pension Dates'!B338),'First Process Date'!$C$2,FALSE)","v":false},{"$f":"IF(AND('First Process Date'!$F$8>='Pension Dates'!A338,'First Process Date'!$F$8<='Pension Dates'!B338),'First Process Date'!$C$8,FALSE)","v":false}]
["2027-08-08","2027-08-21","2027-08-07",{"$f":"IF(AND('First Process Date'!$F$2>='Pension Dates'!A339,'First Process Date'!$F$2<='Pension Dates'!B339),'First Process Date'!$C$2,FALSE)","v":false},{"$f":"IF(AND('First Process Date'!$F$8>='Pension Dates'!A339,'First Process Date'!$F$8<='Pension Dates'!B339),'First Process Date'!$C$8,FALSE)","v":false}]
["2027-08-22","2027-09-04","2027-08-21",{"$f":"IF(AND('First Process Date'!$F$2>='Pension Dates'!A340,'First Process Date'!$F$2<='Pension Dates'!B340),'First Process Date'!$C$2,FALSE)","v":false},{"$f":"IF(AND('First Process Date'!$F$8>='Pension Dates'!A340,'First Process Date'!$F$8<='Pension Dates'!B340),'First Process Date'!$C$8,FALSE)","v":false}]
["2027-09-05","2027-09-18","2027-09-04",{"$f":"IF(AND('First Process Date'!$F$2>='Pension Dates'!A341,'First Process Date'!$F$2<='Pension Dates'!B341),'First Process Date'!$C$2,FALSE)","v":false},{"$f":"IF(AND('First Process Date'!$F$8>='Pension Dates'!A341,'First Process Date'!$F$8<='Pension Dates'!B341),'First Process Date'!$C$8,FALSE)","v":false}]
["2027-09-19","2027-10-02","2027-09-18",{"$f":"IF(AND('First Process Date'!$F$2>='Pension Dates'!A342,'First Process Date'!$F$2<='Pension Dates'!B342),'First Process Date'!$C$2,FALSE)","v":false},{"$f":"IF(AND('First Process Date'!$F$8>='Pension Dates'!A342,'First Process Date'!$F$8<='Pension Dates'!B342),'First Process Date'!$C$8,FALSE)","v":false}]
["2027-10-03","2027-10-16","2027-10-02",{"$f":"IF(AND('First Process Date'!$F$2>='Pension Dates'!A343,'First Process Date'!$F$2<='Pension Dates'!B343),'First Process Date'!$C$2,FALSE)","v":false},{"$f":"IF(AND('First Process Date'!$F$8>='Pension Dates'!A343,'First Process Date'!$F$8<='Pension Dates'!B343),'First Process Date'!$C$8,FALSE)","v":false}]
["2027-10-17","2027-10-30","2027-10-16",{"$f":"IF(AND('First Process Date'!$F$2>='Pension Dates'!A344,'First Process Date'!$F$2<='Pension Dates'!B344),'First Process Date'!$C$2,FALSE)","v":false},{"$f":"IF(AND('First Process Date'!$F$8>='Pension Dates'!A344,'First Process Date'!$F$8<='Pension Dates'!B344),'First Process Date'!$C$8,FALSE)","v":false}]
["2027-10-31","2027-11-13","2027-10-30",{"$f":"IF(AND('First Process Date'!$F$2>='Pension Dates'!A345,'First Process Date'!$F$2<='Pension Dates'!B345),'First Process Date'!$C$2,FALSE)","v":false},{"$f":"IF(AND('First Process Date'!$F$8>='Pension Dates'!A345,'First Process Date'!$F$8<='Pension Dates'!B345),'First Process Date'!$C$8,FALSE)","v":false}]
["2027-11-14","2027-11-27","2027-11-13",{"$f":"IF(AND('First Process Date'!$F$2>='Pension Dates'!A346,'First Process Date'!$F$2<='Pension Dates'!B346),'First Process Date'!$C$2,FALSE)","v":false},{"$f":"IF(AND('First Process Date'!$F$8>='Pension Dates'!A346,'First Process Date'!$F$8<='Pension Dates'!B346),'First Process Date'!$C$8,FALSE)","v":false}]
["2027-11-28","2027-12-11","2027-11-27",{"$f":"IF(AND('First Process Date'!$F$2>='Pension Dates'!A347,'First Process Date'!$F$2<='Pension Dates'!B347),'First Process Date'!$C$2,FALSE)","v":false},{"$f":"IF(AND('First Process Date'!$F$8>='Pension Dates'!A347,'First Process Date'!$F$8<='Pension Dates'!B347),'First Process Date'!$C$8,FALSE)","v":false}]
["2027-12-12","2027-12-25","2027-12-11",{"$f":"IF(AND('First Process Date'!$F$2>='Pension Dates'!A348,'First Process Date'!$F$2<='Pension Dates'!B348),'First Process Date'!$C$2,FALSE)","v":false},{"$f":"IF(AND('First Process Date'!$F$8>='Pension Dates'!A348,'First Process Date'!$F$8<='Pension Dates'!B348),'First Process Date'!$C$8,FALSE)","v":false}]
["2027-12-26","2028-01-08","2027-12-25",{"$f":"IF(AND('First Process Date'!$F$2>='Pension Dates'!A349,'First Process Date'!$F$2<='Pension Dates'!B349),'First Process Date'!$C$2,FALSE)","v":false},{"$f":"IF(AND('First Process Date'!$F$8>='Pension Dates'!A349,'First Process Date'!$F$8<='Pension Dates'!B349),'First Process Date'!$C$8,FALSE)","v":false}]
["2028-01-09","2028-01-22","2028-01-08",{"$f":"IF(AND('First Process Date'!$F$2>='Pension Dates'!A350,'First Process Date'!$F$2<='Pension Dates'!B350),'First Process Date'!$C$2,FALSE)","v":false},{"$f":"IF(AND('First Process Date'!$F$8>='Pension Dates'!A350,'First Process Date'!$F$8<='Pension Dates'!B350),'First Process Date'!$C$8,FALSE)","v":false}]
["2028-01-23","2028-02-05","2028-01-22",{"$f":"IF(AND('First Process Date'!$F$2>='Pension Dates'!A351,'First Process Date'!$F$2<='Pension Dates'!B351),'First Process Date'!$C$2,FALSE)","v":false},{"$f":"IF(AND('First Process Date'!$F$8>='Pension Dates'!A351,'First Process Date'!$F$8<='Pension Dates'!B351),'First Process Date'!$C$8,FALSE)","v":false}]
["2028-02-06","2028-02-19","2028-02-05",{"$f":"IF(AND('First Process Date'!$F$2>='Pension Dates'!A352,'First Process Date'!$F$2<='Pension Dates'!B352),'First Process Date'!$C$2,FALSE)","v":false},{"$f":"IF(AND('First Process Date'!$F$8>='Pension Dates'!A352,'First Process Date'!$F$8<='Pension Dates'!B352),'First Process Date'!$C$8,FALSE)","v":false}]
["2028-02-20","2028-03-04","2028-02-19",{"$f":"IF(AND('First Process Date'!$F$2>='Pension Dates'!A353,'First Process Date'!$F$2<='Pension Dates'!B353),'First Process Date'!$C$2,FALSE)","v":false},{"$f":"IF(AND('First Process Date'!$F$8>='Pension Dates'!A353,'First Process Date'!$F$8<='Pension Dates'!B353),'First Process Date'!$C$8,FALSE)","v":false}]
["2028-03-05","2028-03-18","2028-03-04",{"$f":"IF(AND('First Process Date'!$F$2>='Pension Dates'!A354,'First Process Date'!$F$2<='Pension Dates'!B354),'First Process Date'!$C$2,FALSE)","v":false},{"$f":"IF(AND('First Process Date'!$F$8>='Pension Dates'!A354,'First Process Date'!$F$8<='Pension Dates'!B354),'First Process Date'!$C$8,FALSE)","v":false}]
["2028-03-19","2028-04-01","2028-03-18",{"$f":"IF(AND('First Process Date'!$F$2>='Pension Dates'!A355,'First Process Date'!$F$2<='Pension Dates'!B355),'First Process Date'!$C$2,FALSE)","v":false},{"$f":"IF(AND('First Process Date'!$F$8>='Pension Dates'!A355,'First Process Date'!$F$8<='Pension Dates'!B355),'First Process Date'!$C$8,FALSE)","v":false}]
["2028-04-02","2028-04-15","2028-04-01",{"$f":"IF(AND('First Process Date'!$F$2>='Pension Dates'!A356,'First Process Date'!$F$2<='Pension Dates'!B356),'First Process Date'!$C$2,FALSE)","v":false},{"$f":"IF(AND('First Process Date'!$F$8>='Pension Dates'!A356,'First Process Date'!$F$8<='Pension Dates'!B356),'First Process Date'!$C$8,FALSE)","v":false}]
["2028-04-16","2028-04-29","2028-04-15",{"$f":"IF(AND('First Process Date'!$F$2>='Pension Dates'!A357,'First Process Date'!$F$2<='Pension Dates'!B357),'First Process Date'!$C$2,FALSE)","v":false},{"$f":"IF(AND('First Process Date'!$F$8>='Pension Dates'!A357,'First Process Date'!$F$8<='Pension Dates'!B357),'First Process Date'!$C$8,FALSE)","v":false}]
["2028-04-30","2028-05-13","2028-04-29",{"$f":"IF(AND('First Process Date'!$F$2>='Pension Dates'!A358,'First Process Date'!$F$2<='Pension Dates'!B358),'First Process Date'!$C$2,FALSE)","v":false},{"$f":"IF(AND('First Process Date'!$F$8>='Pension Dates'!A358,'First Process Date'!$F$8<='Pension Dates'!B358),'First Process Date'!$C$8,FALSE)","v":false}]
["2028-05-14","2028-05-27","2028-05-13",{"$f":"IF(AND('First Process Date'!$F$2>='Pension Dates'!A359,'First Process Date'!$F$2<='Pension Dates'!B359),'First Process Date'!$C$2,FALSE)","v":false},{"$f":"IF(AND('First Process Date'!$F$8>='Pension Dates'!A359,'First Process Date'!$F$8<='Pension Dates'!B359),'First Process Date'!$C$8,FALSE)","v":false}]
["2028-05-28","2028-06-10","2028-05-27",{"$f":"IF(AND('First Process Date'!$F$2>='Pension Dates'!A360,'First Process Date'!$F$2<='Pension Dates'!B360),'First Process Date'!$C$2,FALSE)","v":false},{"$f":"IF(AND('First Process Date'!$F$8>='Pension Dates'!A360,'First Process Date'!$F$8<='Pension Dates'!B360),'First Process Date'!$C$8,FALSE)","v":false}]
["2028-06-11","2028-06-24","2028-06-10",{"$f":"IF(AND('First Process Date'!$F$2>='Pension Dates'!A361,'First Process Date'!$F$2<='Pension Dates'!B361),'First Process Date'!$C$2,FALSE)","v":false},{"$f":"IF(AND('First Process Date'!$F$8>='Pension Dates'!A361,'First Process Date'!$F$8<='Pension Dates'!B361),'First Process Date'!$C$8,FALSE)","v":false}]
["2028-06-25","2028-07-08","2028-06-24",{"$f":"IF(AND('First Process Date'!$F$2>='Pension Dates'!A362,'First Process Date'!$F$2<='Pension Dates'!B362),'First Process Date'!$C$2,FALSE)","v":false},{"$f":"IF(AND('First Process Date'!$F$8>='Pension Dates'!A362,'First Process Date'!$F$8<='Pension Dates'!B362),'First Process Date'!$C$8,FALSE)","v":false}]
["2028-07-09","2028-07-22","2028-07-08",{"$f":"IF(AND('First Process Date'!$F$2>='Pension Dates'!A363,'First Process Date'!$F$2<='Pension Dates'!B363),'First Process Date'!$C$2,FALSE)","v":false},{"$f":"IF(AND('First Process Date'!$F$8>='Pension Dates'!A363,'First Process Date'!$F$8<='Pension Dates'!B363),'First Process Date'!$C$8,FALSE)","v":false}]
["2028-07-23","2028-08-05","2028-07-22",{"$f":"IF(AND('First Process Date'!$F$2>='Pension Dates'!A364,'First Process Date'!$F$2<='Pension Dates'!B364),'First Process Date'!$C$2,FALSE)","v":false},{"$f":"IF(AND('First Process Date'!$F$8>='Pension Dates'!A364,'First Process Date'!$F$8<='Pension Dates'!B364),'First Process Date'!$C$8,FALSE)","v":false}]
["2028-08-06","2028-08-19","2028-08-05",{"$f":"IF(AND('First Process Date'!$F$2>='Pension Dates'!A365,'First Process Date'!$F$2<='Pension Dates'!B365),'First Process Date'!$C$2,FALSE)","v":false},{"$f":"IF(AND('First Process Date'!$F$8>='Pension Dates'!A365,'First Process Date'!$F$8<='Pension Dates'!B365),'First Process Date'!$C$8,FALSE)","v":false}]
["2028-08-20","2028-09-02","2028-08-19",{"$f":"IF(AND('First Process Date'!$F$2>='Pension Dates'!A366,'First Process Date'!$F$2<='Pension Dates'!B366),'First Process Date'!$C$2,FALSE)","v":false},{"$f":"IF(AND('First Process Date'!$F$8>='Pension Dates'!A366,'First Process Date'!$F$8<='Pension Dates'!B366),'First Process Date'!$C$8,FALSE)","v":false}]
["2028-09-03","2028-09-16","2028-09-02",{"$f":"IF(AND('First Process Date'!$F$2>='Pension Dates'!A367,'First Process Date'!$F$2<='Pension Dates'!B367),'First Process Date'!$C$2,FALSE)","v":false},{"$f":"IF(AND('First Process Date'!$F$8>='Pension Dates'!A367,'First Process Date'!$F$8<='Pension Dates'!B367),'First Process Date'!$C$8,FALSE)","v":false}]
["2028-09-17","2028-09-30","2028-09-16",{"$f":"IF(AND('First Process Date'!$F$2>='Pension Dates'!A368,'First Process Date'!$F$2<='Pension Dates'!B368),'First Process Date'!$C$2,FALSE)","v":false},{"$f":"IF(AND('First Process Date'!$F$8>='Pension Dates'!A368,'First Process Date'!$F$8<='Pension Dates'!B368),'First Process Date'!$C$8,FALSE)","v":false}]
["2028-10-01","2028-10-14","2028-09-30",{"$f":"IF(AND('First Process Date'!$F$2>='Pension Dates'!A369,'First Process Date'!$F$2<='Pension Dates'!B369),'First Process Date'!$C$2,FALSE)","v":false},{"$f":"IF(AND('First Process Date'!$F$8>='Pension Dates'!A369,'First Process Date'!$F$8<='Pension Dates'!B369),'First Process Date'!$C$8,FALSE)","v":false}]
["2028-10-15","2028-10-28","2028-10-14",{"$f":"IF(AND('First Process Date'!$F$2>='Pension Dates'!A370,'First Process Date'!$F$2<='Pension Dates'!B370),'First Process Date'!$C$2,FALSE)","v":false},{"$f":"IF(AND('First Process Date'!$F$8>='Pension Dates'!A370,'First Process Date'!$F$8<='Pension Dates'!B370),'First Process Date'!$C$8,FALSE)","v":false}]
["2028-10-29","2028-11-11","2028-10-28",{"$f":"IF(AND('First Process Date'!$F$2>='Pension Dates'!A371,'First Process Date'!$F$2<='Pension Dates'!B371),'First Process Date'!$C$2,FALSE)","v":false},{"$f":"IF(AND('First Process Date'!$F$8>='Pension Dates'!A371,'First Process Date'!$F$8<='Pension Dates'!B371),'First Process Date'!$C$8,FALSE)","v":false}]
["2028-11-12","2028-11-25","2028-11-11",{"$f":"IF(AND('First Process Date'!$F$2>='Pension Dates'!A372,'First Process Date'!$F$2<='Pension Dates'!B372),'First Process Date'!$C$2,FALSE)","v":false},{"$f":"IF(AND('First Process Date'!$F$8>='Pension Dates'!A372,'First Process Date'!$F$8<='Pension Dates'!B372),'First Process Date'!$C$8,FALSE)","v":false}]
["2028-11-26","2028-12-09","2028-11-25",{"$f":"IF(AND('First Process Date'!$F$2>='Pension Dates'!A373,'First Process Date'!$F$2<='Pension Dates'!B373),'First Process Date'!$C$2,FALSE)","v":false},{"$f":"IF(AND('First Process Date'!$F$8>='Pension Dates'!A373,'First Process Date'!$F$8<='Pension Dates'!B373),'First Process Date'!$C$8,FALSE)","v":false}]
["2028-12-10","2028-12-23","2028-12-09",{"$f":"IF(AND('First Process Date'!$F$2>='Pension Dates'!A374,'First Process Date'!$F$2<='Pension Dates'!B374),'First Process Date'!$C$2,FALSE)","v":false},{"$f":"IF(AND('First Process Date'!$F$8>='Pension Dates'!A374,'First Process Date'!$F$8<='Pension Dates'!B374),'First Process Date'!$C$8,FALSE)","v":false}]
["2028-12-24","2029-01-06","2028-12-23",{"$f":"IF(AND('First Process Date'!$F$2>='Pension Dates'!A375,'First Process Date'!$F$2<='Pension Dates'!B375),'First Process Date'!$C$2,FALSE)","v":false},{"$f":"IF(AND('First Process Date'!$F$8>='Pension Dates'!A375,'First Process Date'!$F$8<='Pension Dates'!B375),'First Process Date'!$C$8,FALSE)","v":false}]
["2029-01-07","2029-01-20","2029-01-06",{"$f":"IF(AND('First Process Date'!$F$2>='Pension Dates'!A376,'First Process Date'!$F$2<='Pension Dates'!B376),'First Process Date'!$C$2,FALSE)","v":false},{"$f":"IF(AND('First Process Date'!$F$8>='Pension Dates'!A376,'First Process Date'!$F$8<='Pension Dates'!B376),'First Process Date'!$C$8,FALSE)","v":false}]
["2029-01-21","2029-02-03","2029-01-20",{"$f":"IF(AND('First Process Date'!$F$2>='Pension Dates'!A377,'First Process Date'!$F$2<='Pension Dates'!B377),'First Process Date'!$C$2,FALSE)","v":false},{"$f":"IF(AND('First Process Date'!$F$8>='Pension Dates'!A377,'First Process Date'!$F$8<='Pension Dates'!B377),'First Process Date'!$C$8,FALSE)","v":false}]
["2029-02-04","2029-02-17","2029-02-03",{"$f":"IF(AND('First Process Date'!$F$2>='Pension Dates'!A378,'First Process Date'!$F$2<='Pension Dates'!B378),'First Process Date'!$C$2,FALSE)","v":false},{"$f":"IF(AND('First Process Date'!$F$8>='Pension Dates'!A378,'First Process Date'!$F$8<='Pension Dates'!B378),'First Process Date'!$C$8,FALSE)","v":false}]
["2029-02-18","2029-03-03","2029-02-17",{"$f":"IF(AND('First Process Date'!$F$2>='Pension Dates'!A379,'First Process Date'!$F$2<='Pension Dates'!B379),'First Process Date'!$C$2,FALSE)","v":false},{"$f":"IF(AND('First Process Date'!$F$8>='Pension Dates'!A379,'First Process Date'!$F$8<='Pension Dates'!B379),'First Process Date'!$C$8,FALSE)","v":false}]
["2029-03-04","2029-03-17","2029-03-03",{"$f":"IF(AND('First Process Date'!$F$2>='Pension Dates'!A380,'First Process Date'!$F$2<='Pension Dates'!B380),'First Process Date'!$C$2,FALSE)","v":false},{"$f":"IF(AND('First Process Date'!$F$8>='Pension Dates'!A380,'First Process Date'!$F$8<='Pension Dates'!B380),'First Process Date'!$C$8,FALSE)","v":false}]
["2029-03-18","2029-03-31","2029-03-17",{"$f":"IF(AND('First Process Date'!$F$2>='Pension Dates'!A381,'First Process Date'!$F$2<='Pension Dates'!B381),'First Process Date'!$C$2,FALSE)","v":false},{"$f":"IF(AND('First Process Date'!$F$8>='Pension Dates'!A381,'First Process Date'!$F$8<='Pension Dates'!B381),'First Process Date'!$C$8,FALSE)","v":false}]
["2029-04-01","2029-04-14","2029-03-31",{"$f":"IF(AND('First Process Date'!$F$2>='Pension Dates'!A382,'First Process Date'!$F$2<='Pension Dates'!B382),'First Process Date'!$C$2,FALSE)","v":false},{"$f":"IF(AND('First Process Date'!$F$8>='Pension Dates'!A382,'First Process Date'!$F$8<='Pension Dates'!B382),'First Process Date'!$C$8,FALSE)","v":false}]
["2029-04-15","2029-04-28","2029-04-14",{"$f":"IF(AND('First Process Date'!$F$2>='Pension Dates'!A383,'First Process Date'!$F$2<='Pension Dates'!B383),'First Process Date'!$C$2,FALSE)","v":false},{"$f":"IF(AND('First Process Date'!$F$8>='Pension Dates'!A383,'First Process Date'!$F$8<='Pension Dates'!B383),'First Process Date'!$C$8,FALSE)","v":false}]
["2029-04-29","2029-05-12","2029-04-28",{"$f":"IF(AND('First Process Date'!$F$2>='Pension Dates'!A384,'First Process Date'!$F$2<='Pension Dates'!B384),'First Process Date'!$C$2,FALSE)","v":false},{"$f":"IF(AND('First Process Date'!$F$8>='Pension Dates'!A384,'First Process Date'!$F$8<='Pension Dates'!B384),'First Process Date'!$C$8,FALSE)","v":false}]
["2029-05-13","2029-05-26","2029-05-12",{"$f":"IF(AND('First Process Date'!$F$2>='Pension Dates'!A385,'First Process Date'!$F$2<='Pension Dates'!B385),'First Process Date'!$C$2,FALSE)","v":false},{"$f":"IF(AND('First Process Date'!$F$8>='Pension Dates'!A385,'First Process Date'!$F$8<='Pension Dates'!B385),'First Process Date'!$C$8,FALSE)","v":false}]
["2029-05-27","2029-06-09","2029-05-26",{"$f":"IF(AND('First Process Date'!$F$2>='Pension Dates'!A386,'First Process Date'!$F$2<='Pension Dates'!B386),'First Process Date'!$C$2,FALSE)","v":false},{"$f":"IF(AND('First Process Date'!$F$8>='Pension Dates'!A386,'First Process Date'!$F$8<='Pension Dates'!B386),'First Process Date'!$C$8,FALSE)","v":false}]
["2029-06-10","2029-06-23","2029-06-09",{"$f":"IF(AND('First Process Date'!$F$2>='Pension Dates'!A387,'First Process Date'!$F$2<='Pension Dates'!B387),'First Process Date'!$C$2,FALSE)","v":false},{"$f":"IF(AND('First Process Date'!$F$8>='Pension Dates'!A387,'First Process Date'!$F$8<='Pension Dates'!B387),'First Process Date'!$C$8,FALSE)","v":false}]
["2029-06-24","2029-07-07","2029-06-23",{"$f":"IF(AND('First Process Date'!$F$2>='Pension Dates'!A388,'First Process Date'!$F$2<='Pension Dates'!B388),'First Process Date'!$C$2,FALSE)","v":false},{"$f":"IF(AND('First Process Date'!$F$8>='Pension Dates'!A388,'First Process Date'!$F$8<='Pension Dates'!B388),'First Process Date'!$C$8,FALSE)","v":false}]
["2029-07-08","2029-07-21","2029-07-07",{"$f":"IF(AND('First Process Date'!$F$2>='Pension Dates'!A389,'First Process Date'!$F$2<='Pension Dates'!B389),'First Process Date'!$C$2,FALSE)","v":false},{"$f":"IF(AND('First Process Date'!$F$8>='Pension Dates'!A389,'First Process Date'!$F$8<='Pension Dates'!B389),'First Process Date'!$C$8,FALSE)","v":false}]
["2029-07-22","2029-08-04","2029-07-21",{"$f":"IF(AND('First Process Date'!$F$2>='Pension Dates'!A390,'First Process Date'!$F$2<='Pension Dates'!B390),'First Process Date'!$C$2,FALSE)","v":false},{"$f":"IF(AND('First Process Date'!$F$8>='Pension Dates'!A390,'First Process Date'!$F$8<='Pension Dates'!B390),'First Process Date'!$C$8,FALSE)","v":false}]
["2029-08-05","2029-08-18","2029-08-04",{"$f":"IF(AND('First Process Date'!$F$2>='Pension Dates'!A391,'First Process Date'!$F$2<='Pension Dates'!B391),'First Process Date'!$C$2,FALSE)","v":false},{"$f":"IF(AND('First Process Date'!$F$8>='Pension Dates'!A391,'First Process Date'!$F$8<='Pension Dates'!B391),'First Process Date'!$C$8,FALSE)","v":false}]
["2029-08-19","2029-09-01","2029-08-18",{"$f":"IF(AND('First Process Date'!$F$2>='Pension Dates'!A392,'First Process Date'!$F$2<='Pension Dates'!B392),'First Process Date'!$C$2,FALSE)","v":false},{"$f":"IF(AND('First Process Date'!$F$8>='Pension Dates'!A392,'First Process Date'!$F$8<='Pension Dates'!B392),'First Process Date'!$C$8,FALSE)","v":false}]
["2029-09-02","2029-09-15","2029-09-01",{"$f":"IF(AND('First Process Date'!$F$2>='Pension Dates'!A393,'First Process Date'!$F$2<='Pension Dates'!B393),'First Process Date'!$C$2,FALSE)","v":false},{"$f":"IF(AND('First Process Date'!$F$8>='Pension Dates'!A393,'First Process Date'!$F$8<='Pension Dates'!B393),'First Process Date'!$C$8,FALSE)","v":false}]
["2029-09-16","2029-09-29","2029-09-15",{"$f":"IF(AND('First Process Date'!$F$2>='Pension Dates'!A394,'First Process Date'!$F$2<='Pension Dates'!B394),'First Process Date'!$C$2,FALSE)","v":false},{"$f":"IF(AND('First Process Date'!$F$8>='Pension Dates'!A394,'First Process Date'!$F$8<='Pension Dates'!B394),'First Process Date'!$C$8,FALSE)","v":false}]
["2029-09-30","2029-10-13","2029-09-29",{"$f":"IF(AND('First Process Date'!$F$2>='Pension Dates'!A395,'First Process Date'!$F$2<='Pension Dates'!B395),'First Process Date'!$C$2,FALSE)","v":false},{"$f":"IF(AND('First Process Date'!$F$8>='Pension Dates'!A395,'First Process Date'!$F$8<='Pension Dates'!B395),'First Process Date'!$C$8,FALSE)","v":false}]
["2029-10-14","2029-10-27","2029-10-13",{"$f":"IF(AND('First Process Date'!$F$2>='Pension Dates'!A396,'First Process Date'!$F$2<='Pension Dates'!B396),'First Process Date'!$C$2,FALSE)","v":false},{"$f":"IF(AND('First Process Date'!$F$8>='Pension Dates'!A396,'First Process Date'!$F$8<='Pension Dates'!B396),'First Process Date'!$C$8,FALSE)","v":false}]
["2029-10-28","2029-11-10","2029-10-27",{"$f":"IF(AND('First Process Date'!$F$2>='Pension Dates'!A397,'First Process Date'!$F$2<='Pension Dates'!B397),'First Process Date'!$C$2,FALSE)","v":false},{"$f":"IF(AND('First Process Date'!$F$8>='Pension Dates'!A397,'First Process Date'!$F$8<='Pension Dates'!B397),'First Process Date'!$C$8,FALSE)","v":false}]
["2029-11-11","2029-11-24","2029-11-10",{"$f":"IF(AND('First Process Date'!$F$2>='Pension Dates'!A398,'First Process Date'!$F$2<='Pension Dates'!B398),'First Process Date'!$C$2,FALSE)","v":false},{"$f":"IF(AND('First Process Date'!$F$8>='Pension Dates'!A398,'First Process Date'!$F$8<='Pension Dates'!B398),'First Process Date'!$C$8,FALSE)","v":false}]
["2029-11-25","2029-12-08","2029-11-24",{"$f":"IF(AND('First Process Date'!$F$2>='Pension Dates'!A399,'First Process Date'!$F$2<='Pension Dates'!B399),'First Process Date'!$C$2,FALSE)","v":false},{"$f":"IF(AND('First Process Date'!$F$8>='Pension Dates'!A399,'First Process Date'!$F$8<='Pension Dates'!B399),'First Process Date'!$C$8,FALSE)","v":false}]
["2029-12-09","2029-12-22","2029-12-08",{"$f":"IF(AND('First Process Date'!$F$2>='Pension Dates'!A400,'First Process Date'!$F$2<='Pension Dates'!B400),'First Process Date'!$C$2,FALSE)","v":false},{"$f":"IF(AND('First Process Date'!$F$8>='Pension Dates'!A400,'First Process Date'!$F$8<='Pension Dates'!B400),'First Process Date'!$C$8,FALSE)","v":false}]
["2029-12-23","2030-01-05","2029-12-22",{"$f":"IF(AND('First Process Date'!$F$2>='Pension Dates'!A401,'First Process Date'!$F$2<='Pension Dates'!B401),'First Process Date'!$C$2,FALSE)","v":false},{"$f":"IF(AND('First Process Date'!$F$8>='Pension Dates'!A401,'First Process Date'!$F$8<='Pension Dates'!B401),'First Process Date'!$C$8,FALSE)","v":false}]
["2030-01-06","2030-01-19","2030-01-05",{"$f":"IF(AND('First Process Date'!$F$2>='Pension Dates'!A402,'First Process Date'!$F$2<='Pension Dates'!B402),'First Process Date'!$C$2,FALSE)","v":false},{"$f":"IF(AND('First Process Date'!$F$8>='Pension Dates'!A402,'First Process Date'!$F$8<='Pension Dates'!B402),'First Process Date'!$C$8,FALSE)","v":false}]
["2030-01-20","2030-02-02","2030-01-19",{"$f":"IF(AND('First Process Date'!$F$2>='Pension Dates'!A403,'First Process Date'!$F$2<='Pension Dates'!B403),'First Process Date'!$C$2,FALSE)","v":false},{"$f":"IF(AND('First Process Date'!$F$8>='Pension Dates'!A403,'First Process Date'!$F$8<='Pension Dates'!B403),'First Process Date'!$C$8,FALSE)","v":false}]
["2030-02-03","2030-02-16","2030-02-02",{"$f":"IF(AND('First Process Date'!$F$2>='Pension Dates'!A404,'First Process Date'!$F$2<='Pension Dates'!B404),'First Process Date'!$C$2,FALSE)","v":false},{"$f":"IF(AND('First Process Date'!$F$8>='Pension Dates'!A404,'First Process Date'!$F$8<='Pension Dates'!B404),'First Process Date'!$C$8,FALSE)","v":false}]
["2030-02-17","2030-03-02","2030-02-16",{"$f":"IF(AND('First Process Date'!$F$2>='Pension Dates'!A405,'First Process Date'!$F$2<='Pension Dates'!B405),'First Process Date'!$C$2,FALSE)","v":false},{"$f":"IF(AND('First Process Date'!$F$8>='Pension Dates'!A405,'First Process Date'!$F$8<='Pension Dates'!B405),'First Process Date'!$C$8,FALSE)","v":false}]
["2030-03-03","2030-03-16","2030-03-02",{"$f":"IF(AND('First Process Date'!$F$2>='Pension Dates'!A406,'First Process Date'!$F$2<='Pension Dates'!B406),'First Process Date'!$C$2,FALSE)","v":false},{"$f":"IF(AND('First Process Date'!$F$8>='Pension Dates'!A406,'First Process Date'!$F$8<='Pension Dates'!B406),'First Process Date'!$C$8,FALSE)","v":false}]
["2030-03-17","2030-03-30","2030-03-16",{"$f":"IF(AND('First Process Date'!$F$2>='Pension Dates'!A407,'First Process Date'!$F$2<='Pension Dates'!B407),'First Process Date'!$C$2,FALSE)","v":false},{"$f":"IF(AND('First Process Date'!$F$8>='Pension Dates'!A407,'First Process Date'!$F$8<='Pension Dates'!B407),'First Process Date'!$C$8,FALSE)","v":false}]
["2030-03-31","2030-04-13","2030-03-30",{"$f":"IF(AND('First Process Date'!$F$2>='Pension Dates'!A408,'First Process Date'!$F$2<='Pension Dates'!B408),'First Process Date'!$C$2,FALSE)","v":false},{"$f":"IF(AND('First Process Date'!$F$8>='Pension Dates'!A408,'First Process Date'!$F$8<='Pension Dates'!B408),'First Process Date'!$C$8,FALSE)","v":false}]
["2030-04-14","2030-04-27","2030-04-13",{"$f":"IF(AND('First Process Date'!$F$2>='Pension Dates'!A409,'First Process Date'!$F$2<='Pension Dates'!B409),'First Process Date'!$C$2,FALSE)","v":false},{"$f":"IF(AND('First Process Date'!$F$8>='Pension Dates'!A409,'First Process Date'!$F$8<='Pension Dates'!B409),'First Process Date'!$C$8,FALSE)","v":false}]
["2030-04-28","2030-05-11","2030-04-27",{"$f":"IF(AND('First Process Date'!$F$2>='Pension Dates'!A410,'First Process Date'!$F$2<='Pension Dates'!B410),'First Process Date'!$C$2,FALSE)","v":false},{"$f":"IF(AND('First Process Date'!$F$8>='Pension Dates'!A410,'First Process Date'!$F$8<='Pension Dates'!B410),'First Process Date'!$C$8,FALSE)","v":false}]
["2030-05-12","2030-05-25","2030-05-11",{"$f":"IF(AND('First Process Date'!$F$2>='Pension Dates'!A411,'First Process Date'!$F$2<='Pension Dates'!B411),'First Process Date'!$C$2,FALSE)","v":false},{"$f":"IF(AND('First Process Date'!$F$8>='Pension Dates'!A411,'First Process Date'!$F$8<='Pension Dates'!B411),'First Process Date'!$C$8,FALSE)","v":false}]
["2030-05-26","2030-06-08","2030-05-25",{"$f":"IF(AND('First Process Date'!$F$2>='Pension Dates'!A412,'First Process Date'!$F$2<='Pension Dates'!B412),'First Process Date'!$C$2,FALSE)","v":false},{"$f":"IF(AND('First Process Date'!$F$8>='Pension Dates'!A412,'First Process Date'!$F$8<='Pension Dates'!B412),'First Process Date'!$C$8,FALSE)","v":false}]
["2030-06-09","2030-06-22","2030-06-08",{"$f":"IF(AND('First Process Date'!$F$2>='Pension Dates'!A413,'First Process Date'!$F$2<='Pension Dates'!B413),'First Process Date'!$C$2,FALSE)","v":false},{"$f":"IF(AND('First Process Date'!$F$8>='Pension Dates'!A413,'First Process Date'!$F$8<='Pension Dates'!B413),'First Process Date'!$C$8,FALSE)","v":false}]
["2030-06-23","2030-07-06","2030-06-22",{"$f":"IF(AND('First Process Date'!$F$2>='Pension Dates'!A414,'First Process Date'!$F$2<='Pension Dates'!B414),'First Process Date'!$C$2,FALSE)","v":false},{"$f":"IF(AND('First Process Date'!$F$8>='Pension Dates'!A414,'First Process Date'!$F$8<='Pension Dates'!B414),'First Process Date'!$C$8,FALSE)","v":false}]
["2030-07-07","2030-07-20","2030-07-06",{"$f":"IF(AND('First Process Date'!$F$2>='Pension Dates'!A415,'First Process Date'!$F$2<='Pension Dates'!B415),'First Process Date'!$C$2,FALSE)","v":false},{"$f":"IF(AND('First Process Date'!$F$8>='Pension Dates'!A415,'First Process Date'!$F$8<='Pension Dates'!B415),'First Process Date'!$C$8,FALSE)","v":false}]
["2030-07-21","2030-08-03","2030-07-20",{"$f":"IF(AND('First Process Date'!$F$2>='Pension Dates'!A416,'First Process Date'!$F$2<='Pension Dates'!B416),'First Process Date'!$C$2,FALSE)","v":false},{"$f":"IF(AND('First Process Date'!$F$8>='Pension Dates'!A416,'First Process Date'!$F$8<='Pension Dates'!B416),'First Process Date'!$C$8,FALSE)","v":false}]
["2030-08-04","2030-08-17","2030-08-03",{"$f":"IF(AND('First Process Date'!$F$2>='Pension Dates'!A417,'First Process Date'!$F$2<='Pension Dates'!B417),'First Process Date'!$C$2,FALSE)","v":false},{"$f":"IF(AND('First Process Date'!$F$8>='Pension Dates'!A417,'First Process Date'!$F$8<='Pension Dates'!B417),'First Process Date'!$C$8,FALSE)","v":false}]
["2030-08-18","2030-08-31","2030-08-17",{"$f":"IF(AND('First Process Date'!$F$2>='Pension Dates'!A418,'First Process Date'!$F$2<='Pension Dates'!B418),'First Process Date'!$C$2,FALSE)","v":false},{"$f":"IF(AND('First Process Date'!$F$8>='Pension Dates'!A418,'First Process Date'!$F$8<='Pension Dates'!B418),'First Process Date'!$C$8,FALSE)","v":false}]
["2030-09-01","2030-09-14","2030-08-31",{"$f":"IF(AND('First Process Date'!$F$2>='Pension Dates'!A419,'First Process Date'!$F$2<='Pension Dates'!B419),'First Process Date'!$C$2,FALSE)","v":false},{"$f":"IF(AND('First Process Date'!$F$8>='Pension Dates'!A419,'First Process Date'!$F$8<='Pension Dates'!B419),'First Process Date'!$C$8,FALSE)","v":false}]
["2030-09-15","2030-09-28","2030-09-14",{"$f":"IF(AND('First Process Date'!$F$2>='Pension Dates'!A420,'First Process Date'!$F$2<='Pension Dates'!B420),'First Process Date'!$C$2,FALSE)","v":false},{"$f":"IF(AND('First Process Date'!$F$8>='Pension Dates'!A420,'First Process Date'!$F$8<='Pension Dates'!B420),'First Process Date'!$C$8,FALSE)","v":false}]
["2030-09-29","2030-10-12","2030-09-28",{"$f":"IF(AND('First Process Date'!$F$2>='Pension Dates'!A421,'First Process Date'!$F$2<='Pension Dates'!B421),'First Process Date'!$C$2,FALSE)","v":false},{"$f":"IF(AND('First Process Date'!$F$8>='Pension Dates'!A421,'First Process Date'!$F$8<='Pension Dates'!B421),'First Process Date'!$C$8,FALSE)","v":false}]
["2030-10-13","2030-10-26","2030-10-12",{"$f":"IF(AND('First Process Date'!$F$2>='Pension Dates'!A422,'First Process Date'!$F$2<='Pension Dates'!B422),'First Process Date'!$C$2,FALSE)","v":false},{"$f":"IF(AND('First Process Date'!$F$8>='Pension Dates'!A422,'First Process Date'!$F$8<='Pension Dates'!B422),'First Process Date'!$C$8,FALSE)","v":false}]
["2030-10-27","2030-11-09","2030-10-26",{"$f":"IF(AND('First Process Date'!$F$2>='Pension Dates'!A423,'First Process Date'!$F$2<='Pension Dates'!B423),'First Process Date'!$C$2,FALSE)","v":false},{"$f":"IF(AND('First Process Date'!$F$8>='Pension Dates'!A423,'First Process Date'!$F$8<='Pension Dates'!B423),'First Process Date'!$C$8,FALSE)","v":false}]
["2030-11-10","2030-11-23","2030-11-09",{"$f":"IF(AND('First Process Date'!$F$2>='Pension Dates'!A424,'First Process Date'!$F$2<='Pension Dates'!B424),'First Process Date'!$C$2,FALSE)","v":false},{"$f":"IF(AND('First Process Date'!$F$8>='Pension Dates'!A424,'First Process Date'!$F$8<='Pension Dates'!B424),'First Process Date'!$C$8,FALSE)","v":false}]
["2030-11-24","2030-12-07","2030-11-23",{"$f":"IF(AND('First Process Date'!$F$2>='Pension Dates'!A425,'First Process Date'!$F$2<='Pension Dates'!B425),'First Process Date'!$C$2,FALSE)","v":false},{"$f":"IF(AND('First Process Date'!$F$8>='Pension Dates'!A425,'First Process Date'!$F$8<='Pension Dates'!B425),'First Process Date'!$C$8,FALSE)","v":false}]
["2030-12-08","2030-12-21","2030-12-07",{"$f":"IF(AND('First Process Date'!$F$2>='Pension Dates'!A426,'First Process Date'!$F$2<='Pension Dates'!B426),'First Process Date'!$C$2,FALSE)","v":false},{"$f":"IF(AND('First Process Date'!$F$8>='Pension Dates'!A426,'First Process Date'!$F$8<='Pension Dates'!B426),'First Process Date'!$C$8,FALSE)","v":false}]
["2030-12-22","2031-01-04","2030-12-21",{"$f":"IF(AND('First Process Date'!$F$2>='Pension Dates'!A427,'First Process Date'!$F$2<='Pension Dates'!B427),'First Process Date'!$C$2,FALSE)","v":false},{"$f":"IF(AND('First Process Date'!$F$8>='Pension Dates'!A427,'First Process Date'!$F$8<='Pension Dates'!B427),'First Process Date'!$C$8,FALSE)","v":false}]
["2031-01-05","2031-01-18","2031-01-04",{"$f":"IF(AND('First Process Date'!$F$2>='Pension Dates'!A428,'First Process Date'!$F$2<='Pension Dates'!B428),'First Process Date'!$C$2,FALSE)","v":false},{"$f":"IF(AND('First Process Date'!$F$8>='Pension Dates'!A428,'First Process Date'!$F$8<='Pension Dates'!B428),'First Process Date'!$C$8,FALSE)","v":false}]
["2031-01-19","2031-02-01","2031-01-18",{"$f":"IF(AND('First Process Date'!$F$2>='Pension Dates'!A429,'First Process Date'!$F$2<='Pension Dates'!B429),'First Process Date'!$C$2,FALSE)","v":false},{"$f":"IF(AND('First Process Date'!$F$8>='Pension Dates'!A429,'First Process Date'!$F$8<='Pension Dates'!B429),'First Process Date'!$C$8,FALSE)","v":false}]
["2031-02-02","2031-02-15","2031-02-01",{"$f":"IF(AND('First Process Date'!$F$2>='Pension Dates'!A430,'First Process Date'!$F$2<='Pension Dates'!B430),'First Process Date'!$C$2,FALSE)","v":false},{"$f":"IF(AND('First Process Date'!$F$8>='Pension Dates'!A430,'First Process Date'!$F$8<='Pension Dates'!B430),'First Process Date'!$C$8,FALSE)","v":false}]
["2031-02-16","2031-03-01","2031-02-15",{"$f":"IF(AND('First Process Date'!$F$2>='Pension Dates'!A431,'First Process Date'!$F$2<='Pension Dates'!B431),'First Process Date'!$C$2,FALSE)","v":false},{"$f":"IF(AND('First Process Date'!$F$8>='Pension Dates'!A431,'First Process Date'!$F$8<='Pension Dates'!B431),'First Process Date'!$C$8,FALSE)","v":false}]
["2031-03-02","2031-03-15","2031-03-01",{"$f":"IF(AND('First Process Date'!$F$2>='Pension Dates'!A432,'First Process Date'!$F$2<='Pension Dates'!B432),'First Process Date'!$C$2,FALSE)","v":false},{"$f":"IF(AND('First Process Date'!$F$8>='Pension Dates'!A432,'First Process Date'!$F$8<='Pension Dates'!B432),'First Process Date'!$C$8,FALSE)","v":false}]
["2031-03-16","2031-03-29","2031-03-15",{"$f":"IF(AND('First Process Date'!$F$2>='Pension Dates'!A433,'First Process Date'!$F$2<='Pension Dates'!B433),'First Process Date'!$C$2,FALSE)","v":false},{"$f":"IF(AND('First Process Date'!$F$8>='Pension Dates'!A433,'First Process Date'!$F$8<='Pension Dates'!B433),'First Process Date'!$C$8,FALSE)","v":false}]
["2031-03-30","2031-04-12","2031-03-29",{"$f":"IF(AND('First Process Date'!$F$2>='Pension Dates'!A434,'First Process Date'!$F$2<='Pension Dates'!B434),'First Process Date'!$C$2,FALSE)","v":false},{"$f":"IF(AND('First Process Date'!$F$8>='Pension Dates'!A434,'First Process Date'!$F$8<='Pension Dates'!B434),'First Process Date'!$C$8,FALSE)","v":false}]
["2031-04-13","2031-04-26","2031-04-12",{"$f":"IF(AND('First Process Date'!$F$2>='Pension Dates'!A435,'First Process Date'!$F$2<='Pension Dates'!B435),'First Process Date'!$C$2,FALSE)","v":false},{"$f":"IF(AND('First Process Date'!$F$8>='Pension Dates'!A435,'First Process Date'!$F$8<='Pension Dates'!B435),'First Process Date'!$C$8,FALSE)","v":false}]
["2031-04-27","2031-05-10","2031-04-26",{"$f":"IF(AND('First Process Date'!$F$2>='Pension Dates'!A436,'First Process Date'!$F$2<='Pension Dates'!B436),'First Process Date'!$C$2,FALSE)","v":false},{"$f":"IF(AND('First Process Date'!$F$8>='Pension Dates'!A436,'First Process Date'!$F$8<='Pension Dates'!B436),'First Process Date'!$C$8,FALSE)","v":false}]
["2031-05-11","2031-05-24","2031-05-10",{"$f":"IF(AND('First Process Date'!$F$2>='Pension Dates'!A437,'First Process Date'!$F$2<='Pension Dates'!B437),'First Process Date'!$C$2,FALSE)","v":false},{"$f":"IF(AND('First Process Date'!$F$8>='Pension Dates'!A437,'First Process Date'!$F$8<='Pension Dates'!B437),'First Process Date'!$C$8,FALSE)","v":false}]
["2031-05-25","2031-06-07","2031-05-24",{"$f":"IF(AND('First Process Date'!$F$2>='Pension Dates'!A438,'First Process Date'!$F$2<='Pension Dates'!B438),'First Process Date'!$C$2,FALSE)","v":false},{"$f":"IF(AND('First Process Date'!$F$8>='Pension Dates'!A438,'First Process Date'!$F$8<='Pension Dates'!B438),'First Process Date'!$C$8,FALSE)","v":false}]
["2031-06-08","2031-06-21","2031-06-07",{"$f":"IF(AND('First Process Date'!$F$2>='Pension Dates'!A439,'First Process Date'!$F$2<='Pension Dates'!B439),'First Process Date'!$C$2,FALSE)","v":false},{"$f":"IF(AND('First Process Date'!$F$8>='Pension Dates'!A439,'First Process Date'!$F$8<='Pension Dates'!B439),'First Process Date'!$C$8,FALSE)","v":false}]
["2031-06-22","2031-07-05","2031-06-21",{"$f":"IF(AND('First Process Date'!$F$2>='Pension Dates'!A440,'First Process Date'!$F$2<='Pension Dates'!B440),'First Process Date'!$C$2,FALSE)","v":false},{"$f":"IF(AND('First Process Date'!$F$8>='Pension Dates'!A440,'First Process Date'!$F$8<='Pension Dates'!B440),'First Process Date'!$C$8,FALSE)","v":false}]
["2031-07-06","2031-07-19","2031-07-05",{"$f":"IF(AND('First Process Date'!$F$2>='Pension Dates'!A441,'First Process Date'!$F$2<='Pension Dates'!B441),'First Process Date'!$C$2,FALSE)","v":false},{"$f":"IF(AND('First Process Date'!$F$8>='Pension Dates'!A441,'First Process Date'!$F$8<='Pension Dates'!B441),'First Process Date'!$C$8,FALSE)","v":false}]
["2031-07-20","2031-08-02","2031-07-19",{"$f":"IF(AND('First Process Date'!$F$2>='Pension Dates'!A442,'First Process Date'!$F$2<='Pension Dates'!B442),'First Process Date'!$C$2,FALSE)","v":false},{"$f":"IF(AND('First Process Date'!$F$8>='Pension Dates'!A442,'First Process Date'!$F$8<='Pension Dates'!B442),'First Process Date'!$C$8,FALSE)","v":false}]
["2031-08-03","2031-08-16","2031-08-02",{"$f":"IF(AND('First Process Date'!$F$2>='Pension Dates'!A443,'First Process Date'!$F$2<='Pension Dates'!B443),'First Process Date'!$C$2,FALSE)","v":false},{"$f":"IF(AND('First Process Date'!$F$8>='Pension Dates'!A443,'First Process Date'!$F$8<='Pension Dates'!B443),'First Process Date'!$C$8,FALSE)","v":false}]
["2031-08-17","2031-08-30","2031-08-16",{"$f":"IF(AND('First Process Date'!$F$2>='Pension Dates'!A444,'First Process Date'!$F$2<='Pension Dates'!B444),'First Process Date'!$C$2,FALSE)","v":false},{"$f":"IF(AND('First Process Date'!$F$8>='Pension Dates'!A444,'First Process Date'!$F$8<='Pension Dates'!B444),'First Process Date'!$C$8,FALSE)","v":false}]
["2031-08-31","2031-09-13","2031-08-30",{"$f":"IF(AND('First Process Date'!$F$2>='Pension Dates'!A445,'First Process Date'!$F$2<='Pension Dates'!B445),'First Process Date'!$C$2,FALSE)","v":false},{"$f":"IF(AND('First Process Date'!$F$8>='Pension Dates'!A445,'First Process Date'!$F$8<='Pension Dates'!B445),'First Process Date'!$C$8,FALSE)","v":false}]
["2031-09-14","2031-09-27","2031-09-13",{"$f":"IF(AND('First Process Date'!$F$2>='Pension Dates'!A446,'First Process Date'!$F$2<='Pension Dates'!B446),'First Process Date'!$C$2,FALSE)","v":false},{"$f":"IF(AND('First Process Date'!$F$8>='Pension Dates'!A446,'First Process Date'!$F$8<='Pension Dates'!B446),'First Process Date'!$C$8,FALSE)","v":false}]
["2031-09-28","2031-10-11","2031-09-27",{"$f":"IF(AND('First Process Date'!$F$2>='Pension Dates'!A447,'First Process Date'!$F$2<='Pension Dates'!B447),'First Process Date'!$C$2,FALSE)","v":false},{"$f":"IF(AND('First Process Date'!$F$8>='Pension Dates'!A447,'First Process Date'!$F$8<='Pension Dates'!B447),'First Process Date'!$C$8,FALSE)","v":false}]
["2031-10-12","2031-10-25","2031-10-11",{"$f":"IF(AND('First Process Date'!$F$2>='Pension Dates'!A448,'First Process Date'!$F$2<='Pension Dates'!B448),'First Process Date'!$C$2,FALSE)","v":false},{"$f":"IF(AND('First Process Date'!$F$8>='Pension Dates'!A448,'First Process Date'!$F$8<='Pension Dates'!B448),'First Process Date'!$C$8,FALSE)","v":false}]
["2031-10-26","2031-11-08","2031-10-25",{"$f":"IF(AND('First Process Date'!$F$2>='Pension Dates'!A449,'First Process Date'!$F$2<='Pension Dates'!B449),'First Process Date'!$C$2,FALSE)","v":false},{"$f":"IF(AND('First Process Date'!$F$8>='Pension Dates'!A449,'First Process Date'!$F$8<='Pension Dates'!B449),'First Process Date'!$C$8,FALSE)","v":false}]
["2031-11-09","2031-11-22","2031-11-08",{"$f":"IF(AND('First Process Date'!$F$2>='Pension Dates'!A450,'First Process Date'!$F$2<='Pension Dates'!B450),'First Process Date'!$C$2,FALSE)","v":false},{"$f":"IF(AND('First Process Date'!$F$8>='Pension Dates'!A450,'First Process Date'!$F$8<='Pension Dates'!B450),'First Process Date'!$C$8,FALSE)","v":false}]
["2031-11-23","2031-12-06","2031-11-22",{"$f":"IF(AND('First Process Date'!$F$2>='Pension Dates'!A451,'First Process Date'!$F$2<='Pension Dates'!B451),'First Process Date'!$C$2,FALSE)","v":false},{"$f":"IF(AND('First Process Date'!$F$8>='Pension Dates'!A451,'First Process Date'!$F$8<='Pension Dates'!B451),'First Process Date'!$C$8,FALSE)","v":false}]
["2031-12-07","2031-12-20","2031-12-06",{"$f":"IF(AND('First Process Date'!$F$2>='Pension Dates'!A452,'First Process Date'!$F$2<='Pension Dates'!B452),'First Process Date'!$C$2,FALSE)","v":false},{"$f":"IF(AND('First Process Date'!$F$8>='Pension Dates'!A452,'First Process Date'!$F$8<='Pension Dates'!B452),'First Process Date'!$C$8,FALSE)","v":false}]
["2031-12-21","2032-01-03","2031-12-20",{"$f":"IF(AND('First Process Date'!$F$2>='Pension Dates'!A453,'First Process Date'!$F$2<='Pension Dates'!B453),'First Process Date'!$C$2,FALSE)","v":false},{"$f":"IF(AND('First Process Date'!$F$8>='Pension Dates'!A453,'First Process Date'!$F$8<='Pension Dates'!B453),'First Process Date'!$C$8,FALSE)","v":false}]
["2032-01-04","2032-01-17","2032-01-03",{"$f":"IF(AND('First Process Date'!$F$2>='Pension Dates'!A454,'First Process Date'!$F$2<='Pension Dates'!B454),'First Process Date'!$C$2,FALSE)","v":false},{"$f":"IF(AND('First Process Date'!$F$8>='Pension Dates'!A454,'First Process Date'!$F$8<='Pension Dates'!B454),'First Process Date'!$C$8,FALSE)","v":false}]
["2032-01-18","2032-01-31","2032-01-17",{"$f":"IF(AND('First Process Date'!$F$2>='Pension Dates'!A455,'First Process Date'!$F$2<='Pension Dates'!B455),'First Process Date'!$C$2,FALSE)","v":false},{"$f":"IF(AND('First Process Date'!$F$8>='Pension Dates'!A455,'First Process Date'!$F$8<='Pension Dates'!B455),'First Process Date'!$C$8,FALSE)","v":false}]
["2032-02-01","2032-02-14","2032-01-31",{"$f":"IF(AND('First Process Date'!$F$2>='Pension Dates'!A456,'First Process Date'!$F$2<='Pension Dates'!B456),'First Process Date'!$C$2,FALSE)","v":false},{"$f":"IF(AND('First Process Date'!$F$8>='Pension Dates'!A456,'First Process Date'!$F$8<='Pension Dates'!B456),'First Process Date'!$C$8,FALSE)","v":false}]
["2032-02-15","2032-02-28","2032-02-14",{"$f":"IF(AND('First Process Date'!$F$2>='Pension Dates'!A457,'First Process Date'!$F$2<='Pension Dates'!B457),'First Process Date'!$C$2,FALSE)","v":false},{"$f":"IF(AND('First Process Date'!$F$8>='Pension Dates'!A457,'First Process Date'!$F$8<='Pension Dates'!B457),'First Process Date'!$C$8,FALSE)","v":false}]
["2032-02-29","2032-03-13","2032-02-28",{"$f":"IF(AND('First Process Date'!$F$2>='Pension Dates'!A458,'First Process Date'!$F$2<='Pension Dates'!B458),'First Process Date'!$C$2,FALSE)","v":false},{"$f":"IF(AND('First Process Date'!$F$8>='Pension Dates'!A458,'First Process Date'!$F$8<='Pension Dates'!B458),'First Process Date'!$C$8,FALSE)","v":false}]
["2032-03-14","2032-03-27","2032-03-13",{"$f":"IF(AND('First Process Date'!$F$2>='Pension Dates'!A459,'First Process Date'!$F$2<='Pension Dates'!B459),'First Process Date'!$C$2,FALSE)","v":false},{"$f":"IF(AND('First Process Date'!$F$8>='Pension Dates'!A459,'First Process Date'!$F$8<='Pension Dates'!B459),'First Process Date'!$C$8,FALSE)","v":false}]
["2032-03-28","2032-04-10","2032-03-27",{"$f":"IF(AND('First Process Date'!$F$2>='Pension Dates'!A460,'First Process Date'!$F$2<='Pension Dates'!B460),'First Process Date'!$C$2,FALSE)","v":false},{"$f":"IF(AND('First Process Date'!$F$8>='Pension Dates'!A460,'First Process Date'!$F$8<='Pension Dates'!B460),'First Process Date'!$C$8,FALSE)","v":false}]
["2032-04-11","2032-04-24","2032-04-10",{"$f":"IF(AND('First Process Date'!$F$2>='Pension Dates'!A461,'First Process Date'!$F$2<='Pension Dates'!B461),'First Process Date'!$C$2,FALSE)","v":false},{"$f":"IF(AND('First Process Date'!$F$8>='Pension Dates'!A461,'First Process Date'!$F$8<='Pension Dates'!B461),'First Process Date'!$C$8,FALSE)","v":false}]
["2032-04-25","2032-05-08","2032-04-24",{"$f":"IF(AND('First Process Date'!$F$2>='Pension Dates'!A462,'First Process Date'!$F$2<='Pension Dates'!B462),'First Process Date'!$C$2,FALSE)","v":false},{"$f":"IF(AND('First Process Date'!$F$8>='Pension Dates'!A462,'First Process Date'!$F$8<='Pension Dates'!B462),'First Process Date'!$C$8,FALSE)","v":false}]
["2032-05-09","2032-05-22","2032-05-08",{"$f":"IF(AND('First Process Date'!$F$2>='Pension Dates'!A463,'First Process Date'!$F$2<='Pension Dates'!B463),'First Process Date'!$C$2,FALSE)","v":false},{"$f":"IF(AND('First Process Date'!$F$8>='Pension Dates'!A463,'First Process Date'!$F$8<='Pension Dates'!B463),'First Process Date'!$C$8,FALSE)","v":false}]
["2032-05-23","2032-06-05","2032-05-22",{"$f":"IF(AND('First Process Date'!$F$2>='Pension Dates'!A464,'First Process Date'!$F$2<='Pension Dates'!B464),'First Process Date'!$C$2,FALSE)","v":false},{"$f":"IF(AND('First Process Date'!$F$8>='Pension Dates'!A464,'First Process Date'!$F$8<='Pension Dates'!B464),'First Process Date'!$C$8,FALSE)","v":false}]
["2032-06-06","2032-06-19","2032-06-05",{"$f":"IF(AND('First Process Date'!$F$2>='Pension Dates'!A465,'First Process Date'!$F$2<='Pension Dates'!B465),'First Process Date'!$C$2,FALSE)","v":false},{"$f":"IF(AND('First Process Date'!$F$8>='Pension Dates'!A465,'First Process Date'!$F$8<='Pension Dates'!B465),'First Process Date'!$C$8,FALSE)","v":false}]
["2032-06-20","2032-07-03","2032-06-19",{"$f":"IF(AND('First Process Date'!$F$2>='Pension Dates'!A466,'First Process Date'!$F$2<='Pension Dates'!B466),'First Process Date'!$C$2,FALSE)","v":false},{"$f":"IF(AND('First Process Date'!$F$8>='Pension Dates'!A466,'First Process Date'!$F$8<='Pension Dates'!B466),'First Process Date'!$C$8,FALSE)","v":false}]
["2032-07-04","2032-07-17","2032-07-03",{"$f":"IF(AND('First Process Date'!$F$2>='Pension Dates'!A467,'First Process Date'!$F$2<='Pension Dates'!B467),'First Process Date'!$C$2,FALSE)","v":false},{"$f":"IF(AND('First Process Date'!$F$8>='Pension Dates'!A467,'First Process Date'!$F$8<='Pension Dates'!B467),'First Process Date'!$C$8,FALSE)","v":false}]
["2032-07-18","2032-07-31","2032-07-17",{"$f":"IF(AND('First Process Date'!$F$2>='Pension Dates'!A468,'First Process Date'!$F$2<='Pension Dates'!B468),'First Process Date'!$C$2,FALSE)","v":false},{"$f":"IF(AND('First Process Date'!$F$8>='Pension Dates'!A468,'First Process Date'!$F$8<='Pension Dates'!B468),'First Process Date'!$C$8,FALSE)","v":false}]
["2032-08-01","2032-08-14","2032-07-31",{"$f":"IF(AND('First Process Date'!$F$2>='Pension Dates'!A469,'First Process Date'!$F$2<='Pension Dates'!B469),'First Process Date'!$C$2,FALSE)","v":false},{"$f":"IF(AND('First Process Date'!$F$8>='Pension Dates'!A469,'First Process Date'!$F$8<='Pension Dates'!B469),'First Process Date'!$C$8,FALSE)","v":false}]
["2032-08-15","2032-08-28","2032-08-14",{"$f":"IF(AND('First Process Date'!$F$2>='Pension Dates'!A470,'First Process Date'!$F$2<='Pension Dates'!B470),'First Process Date'!$C$2,FALSE)","v":false},{"$f":"IF(AND('First Process Date'!$F$8>='Pension Dates'!A470,'First Process Date'!$F$8<='Pension Dates'!B470),'First Process Date'!$C$8,FALSE)","v":false}]
["2032-08-29","2032-09-11","2032-08-28",{"$f":"IF(AND('First Process Date'!$F$2>='Pension Dates'!A471,'First Process Date'!$F$2<='Pension Dates'!B471),'First Process Date'!$C$2,FALSE)","v":false},{"$f":"IF(AND('First Process Date'!$F$8>='Pension Dates'!A471,'First Process Date'!$F$8<='Pension Dates'!B471),'First Process Date'!$C$8,FALSE)","v":false}]
["2032-09-12","2032-09-25","2032-09-11",{"$f":"IF(AND('First Process Date'!$F$2>='Pension Dates'!A472,'First Process Date'!$F$2<='Pension Dates'!B472),'First Process Date'!$C$2,FALSE)","v":false},{"$f":"IF(AND('First Process Date'!$F$8>='Pension Dates'!A472,'First Process Date'!$F$8<='Pension Dates'!B472),'First Process Date'!$C$8,FALSE)","v":false}]
["2032-09-26","2032-10-09","2032-09-25",{"$f":"IF(AND('First Process Date'!$F$2>='Pension Dates'!A473,'First Process Date'!$F$2<='Pension Dates'!B473),'First Process Date'!$C$2,FALSE)","v":false},{"$f":"IF(AND('First Process Date'!$F$8>='Pension Dates'!A473,'First Process Date'!$F$8<='Pension Dates'!B473),'First Process Date'!$C$8,FALSE)","v":false}]
["2032-10-10","2032-10-23","2032-10-09",{"$f":"IF(AND('First Process Date'!$F$2>='Pension Dates'!A474,'First Process Date'!$F$2<='Pension Dates'!B474),'First Process Date'!$C$2,FALSE)","v":false},{"$f":"IF(AND('First Process Date'!$F$8>='Pension Dates'!A474,'First Process Date'!$F$8<='Pension Dates'!B474),'First Process Date'!$C$8,FALSE)","v":false}]
["2032-10-24","2032-11-06","2032-10-23",{"$f":"IF(AND('First Process Date'!$F$2>='Pension Dates'!A475,'First Process Date'!$F$2<='Pension Dates'!B475),'First Process Date'!$C$2,FALSE)","v":false},{"$f":"IF(AND('First Process Date'!$F$8>='Pension Dates'!A475,'First Process Date'!$F$8<='Pension Dates'!B475),'First Process Date'!$C$8,FALSE)","v":false}]
["2032-11-07","2032-11-20","2032-11-06",{"$f":"IF(AND('First Process Date'!$F$2>='Pension Dates'!A476,'First Process Date'!$F$2<='Pension Dates'!B476),'First Process Date'!$C$2,FALSE)","v":false},{"$f":"IF(AND('First Process Date'!$F$8>='Pension Dates'!A476,'First Process Date'!$F$8<='Pension Dates'!B476),'First Process Date'!$C$8,FALSE)","v":false}]
["2032-11-21","2032-12-04","2032-11-20",{"$f":"IF(AND('First Process Date'!$F$2>='Pension Dates'!A477,'First Process Date'!$F$2<='Pension Dates'!B477),'First Process Date'!$C$2,FALSE)","v":false},{"$f":"IF(AND('First Process Date'!$F$8>='Pension Dates'!A477,'First Process Date'!$F$8<='Pension Dates'!B477),'First Process Date'!$C$8,FALSE)","v":false}]
["2032-12-05","2032-12-18","2032-12-04",{"$f":"IF(AND('First Process Date'!$F$2>='Pension Dates'!A478,'First Process Date'!$F$2<='Pension Dates'!B478),'First Process Date'!$C$2,FALSE)","v":false},{"$f":"IF(AND('First Process Date'!$F$8>='Pension Dates'!A478,'First Process Date'!$F$8<='Pension Dates'!B478),'First Process Date'!$C$8,FALSE)","v":false}]
["2032-12-19","2033-01-01","2032-12-18",{"$f":"IF(AND('First Process Date'!$F$2>='Pension Dates'!A479,'First Process Date'!$F$2<='Pension Dates'!B479),'First Process Date'!$C$2,FALSE)","v":false},{"$f":"IF(AND('First Process Date'!$F$8>='Pension Dates'!A479,'First Process Date'!$F$8<='Pension Dates'!B479),'First Process Date'!$C$8,FALSE)","v":false}]
["2033-01-02","2033-01-15","2033-01-01",{"$f":"IF(AND('First Process Date'!$F$2>='Pension Dates'!A480,'First Process Date'!$F$2<='Pension Dates'!B480),'First Process Date'!$C$2,FALSE)","v":false},{"$f":"IF(AND('First Process Date'!$F$8>='Pension Dates'!A480,'First Process Date'!$F$8<='Pension Dates'!B480),'First Process Date'!$C$8,FALSE)","v":false}]
["2033-01-16","2033-01-29","2033-01-15",{"$f":"IF(AND('First Process Date'!$F$2>='Pension Dates'!A481,'First Process Date'!$F$2<='Pension Dates'!B481),'First Process Date'!$C$2,FALSE)","v":false},{"$f":"IF(AND('First Process Date'!$F$8>='Pension Dates'!A481,'First Process Date'!$F$8<='Pension Dates'!B481),'First Process Date'!$C$8,FALSE)","v":false}]
["2033-01-30","2033-02-12","2033-01-29",{"$f":"IF(AND('First Process Date'!$F$2>='Pension Dates'!A482,'First Process Date'!$F$2<='Pension Dates'!B482),'First Process Date'!$C$2,FALSE)","v":false},{"$f":"IF(AND('First Process Date'!$F$8>='Pension Dates'!A482,'First Process Date'!$F$8<='Pension Dates'!B482),'First Process Date'!$C$8,FALSE)","v":false}]
["2033-02-13","2033-02-26","2033-02-12",{"$f":"IF(AND('First Process Date'!$F$2>='Pension Dates'!A483,'First Process Date'!$F$2<='Pension Dates'!B483),'First Process Date'!$C$2,FALSE)","v":false},{"$f":"IF(AND('First Process Date'!$F$8>='Pension Dates'!A483,'First Process Date'!$F$8<='Pension Dates'!B483),'First Process Date'!$C$8,FALSE)","v":false}]
["2033-02-27","2033-03-12","2033-02-26",{"$f":"IF(AND('First Process Date'!$F$2>='Pension Dates'!A484,'First Process Date'!$F$2<='Pension Dates'!B484),'First Process Date'!$C$2,FALSE)","v":false},{"$f":"IF(AND('First Process Date'!$F$8>='Pension Dates'!A484,'First Process Date'!$F$8<='Pension Dates'!B484),'First Process Date'!$C$8,FALSE)","v":false}]
["2033-03-13","2033-03-26","2033-03-12",{"$f":"IF(AND('First Process Date'!$F$2>='Pension Dates'!A485,'First Process Date'!$F$2<='Pension Dates'!B485),'First Process Date'!$C$2,FALSE)","v":false},{"$f":"IF(AND('First Process Date'!$F$8>='Pension Dates'!A485,'First Process Date'!$F$8<='Pension Dates'!B485),'First Process Date'!$C$8,FALSE)","v":false}]
["2033-03-27","2033-04-09","2033-03-26",{"$f":"IF(AND('First Process Date'!$F$2>='Pension Dates'!A486,'First Process Date'!$F$2<='Pension Dates'!B486),'First Process Date'!$C$2,FALSE)","v":false},{"$f":"IF(AND('First Process Date'!$F$8>='Pension Dates'!A486,'First Process Date'!$F$8<='Pension Dates'!B486),'First Process Date'!$C$8,FALSE)","v":false}]
["2033-04-10","2033-04-23","2033-04-09",{"$f":"IF(AND('First Process Date'!$F$2>='Pension Dates'!A487,'First Process Date'!$F$2<='Pension Dates'!B487),'First Process Date'!$C$2,FALSE)","v":false},{"$f":"IF(AND('First Process Date'!$F$8>='Pension Dates'!A487,'First Process Date'!$F$8<='Pension Dates'!B487),'First Process Date'!$C$8,FALSE)","v":false}]
["2033-04-24","2033-05-07","2033-04-23",{"$f":"IF(AND('First Process Date'!$F$2>='Pension Dates'!A488,'First Process Date'!$F$2<='Pension Dates'!B488),'First Process Date'!$C$2,FALSE)","v":false},{"$f":"IF(AND('First Process Date'!$F$8>='Pension Dates'!A488,'First Process Date'!$F$8<='Pension Dates'!B488),'First Process Date'!$C$8,FALSE)","v":false}]
["2033-05-08","2033-05-21","2033-05-07",{"$f":"IF(AND('First Process Date'!$F$2>='Pension Dates'!A489,'First Process Date'!$F$2<='Pension Dates'!B489),'First Process Date'!$C$2,FALSE)","v":false},{"$f":"IF(AND('First Process Date'!$F$8>='Pension Dates'!A489,'First Process Date'!$F$8<='Pension Dates'!B489),'First Process Date'!$C$8,FALSE)","v":false}]
["2033-05-22","2033-06-04","2033-05-21",{"$f":"IF(AND('First Process Date'!$F$2>='Pension Dates'!A490,'First Process Date'!$F$2<='Pension Dates'!B490),'First Process Date'!$C$2,FALSE)","v":false},{"$f":"IF(AND('First Process Date'!$F$8>='Pension Dates'!A490,'First Process Date'!$F$8<='Pension Dates'!B490),'First Process Date'!$C$8,FALSE)","v":false}]
["2033-06-05","2033-06-18","2033-06-04",{"$f":"IF(AND('First Process Date'!$F$2>='Pension Dates'!A491,'First Process Date'!$F$2<='Pension Dates'!B491),'First Process Date'!$C$2,FALSE)","v":false},{"$f":"IF(AND('First Process Date'!$F$8>='Pension Dates'!A491,'First Process Date'!$F$8<='Pension Dates'!B491),'First Process Date'!$C$8,FALSE)","v":false}]
["2033-06-19","2033-07-02","2033-06-18",{"$f":"IF(AND('First Process Date'!$F$2>='Pension Dates'!A492,'First Process Date'!$F$2<='Pension Dates'!B492),'First Process Date'!$C$2,FALSE)","v":false},{"$f":"IF(AND('First Process Date'!$F$8>='Pension Dates'!A492,'First Process Date'!$F$8<='Pension Dates'!B492),'First Process Date'!$C$8,FALSE)","v":false}]
["2033-07-03","2033-07-16","2033-07-02",{"$f":"IF(AND('First Process Date'!$F$2>='Pension Dates'!A493,'First Process Date'!$F$2<='Pension Dates'!B493),'First Process Date'!$C$2,FALSE)","v":false},{"$f":"IF(AND('First Process Date'!$F$8>='Pension Dates'!A493,'First Process Date'!$F$8<='Pension Dates'!B493),'First Process Date'!$C$8,FALSE)","v":false}]
["2033-07-17","2033-07-30","2033-07-16",{"$f":"IF(AND('First Process Date'!$F$2>='Pension Dates'!A494,'First Process Date'!$F$2<='Pension Dates'!B494),'First Process Date'!$C$2,FALSE)","v":false},{"$f":"IF(AND('First Process Date'!$F$8>='Pension Dates'!A494,'First Process Date'!$F$8<='Pension Dates'!B494),'First Process Date'!$C$8,FALSE)","v":false}]
["2033-07-31","2033-08-13","2033-07-30",{"$f":"IF(AND('First Process Date'!$F$2>='Pension Dates'!A495,'First Process Date'!$F$2<='Pension Dates'!B495),'First Process Date'!$C$2,FALSE)","v":false},{"$f":"IF(AND('First Process Date'!$F$8>='Pension Dates'!A495,'First Process Date'!$F$8<='Pension Dates'!B495),'First Process Date'!$C$8,FALSE)","v":false}]
["2033-08-14","2033-08-27","2033-08-13",{"$f":"IF(AND('First Process Date'!$F$2>='Pension Dates'!A496,'First Process Date'!$F$2<='Pension Dates'!B496),'First Process Date'!$C$2,FALSE)","v":false},{"$f":"IF(AND('First Process Date'!$F$8>='Pension Dates'!A496,'First Process Date'!$F$8<='Pension Dates'!B496),'First Process Date'!$C$8,FALSE)","v":false}]
["2033-08-28","2033-09-10","2033-08-27",{"$f":"IF(AND('First Process Date'!$F$2>='Pension Dates'!A497,'First Process Date'!$F$2<='Pension Dates'!B497),'First Process Date'!$C$2,FALSE)","v":false},{"$f":"IF(AND('First Process Date'!$F$8>='Pension Dates'!A497,'First Process Date'!$F$8<='Pension Dates'!B497),'First Process Date'!$C$8,FALSE)","v":false}]
["2033-09-11","2033-09-24","2033-09-10",{"$f":"IF(AND('First Process Date'!$F$2>='Pension Dates'!A498,'First Process Date'!$F$2<='Pension Dates'!B498),'First Process Date'!$C$2,FALSE)","v":false},{"$f":"IF(AND('First Process Date'!$F$8>='Pension Dates'!A498,'First Process Date'!$F$8<='Pension Dates'!B498),'First Process Date'!$C$8,FALSE)","v":false}]
["2033-09-25","2033-10-08","2033-09-24",{"$f":"IF(AND('First Process Date'!$F$2>='Pension Dates'!A499,'First Process Date'!$F$2<='Pension Dates'!B499),'First Process Date'!$C$2,FALSE)","v":false},{"$f":"IF(AND('First Process Date'!$F$8>='Pension Dates'!A499,'First Process Date'!$F$8<='Pension Dates'!B499),'First Process Date'!$C$8,FALSE)","v":false}]
["2033-10-09","2033-10-22","2033-10-08",{"$f":"IF(AND('First Process Date'!$F$2>='Pension Dates'!A500,'First Process Date'!$F$2<='Pension Dates'!B500),'First Process Date'!$C$2,FALSE)","v":false},{"$f":"IF(AND('First Process Date'!$F$8>='Pension Dates'!A500,'First Process Date'!$F$8<='Pension Dates'!B500),'First Process Date'!$C$8,FALSE)","v":false}]
["2033-10-23","2033-11-05","2033-10-22",{"$f":"IF(AND('First Process Date'!$F$2>='Pension Dates'!A501,'First Process Date'!$F$2<='Pension Dates'!B501),'First Process Date'!$C$2,FALSE)","v":false},{"$f":"IF(AND('First Process Date'!$F$8>='Pension Dates'!A501,'First Process Date'!$F$8<='Pension Dates'!B501),'First Process Date'!$C$8,FALSE)","v":false}]
["2033-11-06","2033-11-19","2033-11-05",{"$f":"IF(AND('First Process Date'!$F$2>='Pension Dates'!A502,'First Process Date'!$F$2<='Pension Dates'!B502),'First Process Date'!$C$2,FALSE)","v":false},{"$f":"IF(AND('First Process Date'!$F$8>='Pension Dates'!A502,'First Process Date'!$F$8<='Pension Dates'!B502),'First Process Date'!$C$8,FALSE)","v":false}]
["2033-11-20","2033-12-03","2033-11-19",{"$f":"IF(AND('First Process Date'!$F$2>='Pension Dates'!A503,'First Process Date'!$F$2<='Pension Dates'!B503),'First Process Date'!$C$2,FALSE)","v":false},{"$f":"IF(AND('First Process Date'!$F$8>='Pension Dates'!A503,'First Process Date'!$F$8<='Pension Dates'!B503),'First Process Date'!$C$8,FALSE)","v":false}]
["2033-12-04","2033-12-17","2033-12-03",{"$f":"IF(AND('First Process Date'!$F$2>='Pension Dates'!A504,'First Process Date'!$F$2<='Pension Dates'!B504),'First Process Date'!$C$2,FALSE)","v":false},{"$f":"IF(AND('First Process Date'!$F$8>='Pension Dates'!A504,'First Process Date'!$F$8<='Pension Dates'!B504),'First Process Date'!$C$8,FALSE)","v":false}]
["2033-12-18","2033-12-31","2033-12-17",{"$f":"IF(AND('First Process Date'!$F$2>='Pension Dates'!A505,'First Process Date'!$F$2<='Pension Dates'!B505),'First Process Date'!$C$2,FALSE)","v":false},{"$f":"IF(AND('First Process Date'!$F$8>='Pension Dates'!A505,'First Process Date'!$F$8<='Pension Dates'!B505),'First Process Date'!$C$8,FALSE)","v":false}]
["2034-01-01","2034-01-14","2033-12-31",{"$f":"IF(AND('First Process Date'!$F$2>='Pension Dates'!A506,'First Process Date'!$F$2<='Pension Dates'!B506),'First Process Date'!$C$2,FALSE)","v":false},{"$f":"IF(AND('First Process Date'!$F$8>='Pension Dates'!A506,'First Process Date'!$F$8<='Pension Dates'!B506),'First Process Date'!$C$8,FALSE)","v":false}]
["2034-01-15","2034-01-28","2034-01-14",{"$f":"IF(AND('First Process Date'!$F$2>='Pension Dates'!A507,'First Process Date'!$F$2<='Pension Dates'!B507),'First Process Date'!$C$2,FALSE)","v":false},{"$f":"IF(AND('First Process Date'!$F$8>='Pension Dates'!A507,'First Process Date'!$F$8<='Pension Dates'!B507),'First Process Date'!$C$8,FALSE)","v":false}]
["2034-01-29","2034-02-11","2034-01-28",{"$f":"IF(AND('First Process Date'!$F$2>='Pension Dates'!A508,'First Process Date'!$F$2<='Pension Dates'!B508),'First Process Date'!$C$2,FALSE)","v":false},{"$f":"IF(AND('First Process Date'!$F$8>='Pension Dates'!A508,'First Process Date'!$F$8<='Pension Dates'!B508),'First Process Date'!$C$8,FALSE)","v":false}]
["2034-02-12","2034-02-25","2034-02-11",{"$f":"IF(AND('First Process Date'!$F$2>='Pension Dates'!A509,'First Process Date'!$F$2<='Pension Dates'!B509),'First Process Date'!$C$2,FALSE)","v":false},{"$f":"IF(AND('First Process Date'!$F$8>='Pension Dates'!A509,'First Process Date'!$F$8<='Pension Dates'!B509),'First Process Date'!$C$8,FALSE)","v":false}]
["2034-02-26","2034-03-11","2034-02-25",{"$f":"IF(AND('First Process Date'!$F$2>='Pension Dates'!A510,'First Process Date'!$F$2<='Pension Dates'!B510),'First Process Date'!$C$2,FALSE)","v":false},{"$f":"IF(AND('First Process Date'!$F$8>='Pension Dates'!A510,'First Process Date'!$F$8<='Pension Dates'!B510),'First Process Date'!$C$8,FALSE)","v":false}]
["2034-03-12","2034-03-25","2034-03-11",{"$f":"IF(AND('First Process Date'!$F$2>='Pension Dates'!A511,'First Process Date'!$F$2<='Pension Dates'!B511),'First Process Date'!$C$2,FALSE)","v":false},{"$f":"IF(AND('First Process Date'!$F$8>='Pension Dates'!A511,'First Process Date'!$F$8<='Pension Dates'!B511),'First Process Date'!$C$8,FALSE)","v":false}]
["2034-03-26","2034-04-08","2034-03-25",{"$f":"IF(AND('First Process Date'!$F$2>='Pension Dates'!A512,'First Process Date'!$F$2<='Pension Dates'!B512),'First Process Date'!$C$2,FALSE)","v":false},{"$f":"IF(AND('First Process Date'!$F$8>='Pension Dates'!A512,'First Process Date'!$F$8<='Pension Dates'!B512),'First Process Date'!$C$8,FALSE)","v":false}]
["2034-04-09","2034-04-22","2034-04-08",{"$f":"IF(AND('First Process Date'!$F$2>='Pension Dates'!A513,'First Process Date'!$F$2<='Pension Dates'!B513),'First Process Date'!$C$2,FALSE)","v":false},{"$f":"IF(AND('First Process Date'!$F$8>='Pension Dates'!A513,'First Process Date'!$F$8<='Pension Dates'!B513),'First Process Date'!$C$8,FALSE)","v":false}]
["2034-04-23","2034-05-06","2034-04-22",{"$f":"IF(AND('First Process Date'!$F$2>='Pension Dates'!A514,'First Process Date'!$F$2<='Pension Dates'!B514),'First Process Date'!$C$2,FALSE)","v":false},{"$f":"IF(AND('First Process Date'!$F$8>='Pension Dates'!A514,'First Process Date'!$F$8<='Pension Dates'!B514),'First Process Date'!$C$8,FALSE)","v":false}]
["2034-05-07","2034-05-20","2034-05-06",{"$f":"IF(AND('First Process Date'!$F$2>='Pension Dates'!A515,'First Process Date'!$F$2<='Pension Dates'!B515),'First Process Date'!$C$2,FALSE)","v":false},{"$f":"IF(AND('First Process Date'!$F$8>='Pension Dates'!A515,'First Process Date'!$F$8<='Pension Dates'!B515),'First Process Date'!$C$8,FALSE)","v":false}]
["2034-05-21","2034-06-03","2034-05-20",{"$f":"IF(AND('First Process Date'!$F$2>='Pension Dates'!A516,'First Process Date'!$F$2<='Pension Dates'!B516),'First Process Date'!$C$2,FALSE)","v":false},{"$f":"IF(AND('First Process Date'!$F$8>='Pension Dates'!A516,'First Process Date'!$F$8<='Pension Dates'!B516),'First Process Date'!$C$8,FALSE)","v":false}]
["2034-06-04","2034-06-17","2034-06-03",{"$f":"IF(AND('First Process Date'!$F$2>='Pension Dates'!A517,'First Process Date'!$F$2<='Pension Dates'!B517),'First Process Date'!$C$2,FALSE)","v":false},{"$f":"IF(AND('First Process Date'!$F$8>='Pension Dates'!A517,'First Process Date'!$F$8<='Pension Dates'!B517),'First Process Date'!$C$8,FALSE)","v":false}]
["2034-06-18","2034-07-01","2034-06-17",{"$f":"IF(AND('First Process Date'!$F$2>='Pension Dates'!A518,'First Process Date'!$F$2<='Pension Dates'!B518),'First Process Date'!$C$2,FALSE)","v":false},{"$f":"IF(AND('First Process Date'!$F$8>='Pension Dates'!A518,'First Process Date'!$F$8<='Pension Dates'!B518),'First Process Date'!$C$8,FALSE)","v":false}]
["2034-07-02","2034-07-15","2034-07-01",{"$f":"IF(AND('First Process Date'!$F$2>='Pension Dates'!A519,'First Process Date'!$F$2<='Pension Dates'!B519),'First Process Date'!$C$2,FALSE)","v":false},{"$f":"IF(AND('First Process Date'!$F$8>='Pension Dates'!A519,'First Process Date'!$F$8<='Pension Dates'!B519),'First Process Date'!$C$8,FALSE)","v":false}]
["2034-07-16","2034-07-29","2034-07-15",{"$f":"IF(AND('First Process Date'!$F$2>='Pension Dates'!A520,'First Process Date'!$F$2<='Pension Dates'!B520),'First Process Date'!$C$2,FALSE)","v":false},{"$f":"IF(AND('First Process Date'!$F$8>='Pension Dates'!A520,'First Process Date'!$F$8<='Pension Dates'!B520),'First Process Date'!$C$8,FALSE)","v":false}]
["2034-07-30","2034-08-12","2034-07-29",{"$f":"IF(AND('First Process Date'!$F$2>='Pension Dates'!A521,'First Process Date'!$F$2<='Pension Dates'!B521),'First Process Date'!$C$2,FALSE)","v":false},{"$f":"IF(AND('First Process Date'!$F$8>='Pension Dates'!A521,'First Process Date'!$F$8<='Pension Dates'!B521),'First Process Date'!$C$8,FALSE)","v":false}]
["2034-08-13","2034-08-26","2034-08-12",{"$f":"IF(AND('First Process Date'!$F$2>='Pension Dates'!A522,'First Process Date'!$F$2<='Pension Dates'!B522),'First Process Date'!$C$2,FALSE)","v":false},{"$f":"IF(AND('First Process Date'!$F$8>='Pension Dates'!A522,'First Process Date'!$F$8<='Pension Dates'!B522),'First Process Date'!$C$8,FALSE)","v":false}]
["2034-08-27","2034-09-09","2034-08-26",{"$f":"IF(AND('First Process Date'!$F$2>='Pension Dates'!A523,'First Process Date'!$F$2<='Pension Dates'!B523),'First Process Date'!$C$2,FALSE)","v":false},{"$f":"IF(AND('First Process Date'!$F$8>='Pension Dates'!A523,'First Process Date'!$F$8<='Pension Dates'!B523),'First Process Date'!$C$8,FALSE)","v":false}]
["2034-09-10","2034-09-23","2034-09-09",{"$f":"IF(AND('First Process Date'!$F$2>='Pension Dates'!A524,'First Process Date'!$F$2<='Pension Dates'!B524),'First Process Date'!$C$2,FALSE)","v":false},{"$f":"IF(AND('First Process Date'!$F$8>='Pension Dates'!A524,'First Process Date'!$F$8<='Pension Dates'!B524),'First Process Date'!$C$8,FALSE)","v":false}]
["2034-09-24","2034-10-07","2034-09-23",{"$f":"IF(AND('First Process Date'!$F$2>='Pension Dates'!A525,'First Process Date'!$F$2<='Pension Dates'!B525),'First Process Date'!$C$2,FALSE)","v":false},{"$f":"IF(AND('First Process Date'!$F$8>='Pension Dates'!A525,'First Process Date'!$F$8<='Pension Dates'!B525),'First Process Date'!$C$8,FALSE)","v":false}]
["2034-10-08","2034-10-21","2034-10-07",{"$f":"IF(AND('First Process Date'!$F$2>='Pension Dates'!A526,'First Process Date'!$F$2<='Pension Dates'!B526),'First Process Date'!$C$2,FALSE)","v":false},{"$f":"IF(AND('First Process Date'!$F$8>='Pension Dates'!A526,'First Process Date'!$F$8<='Pension Dates'!B526),'First Process Date'!$C$8,FALSE)","v":false}]
["2034-10-22","2034-11-04","2034-10-21",{"$f":"IF(AND('First Process Date'!$F$2>='Pension Dates'!A527,'First Process Date'!$F$2<='Pension Dates'!B527),'First Process Date'!$C$2,FALSE)","v":false},{"$f":"IF(AND('First Process Date'!$F$8>='Pension Dates'!A527,'First Process Date'!$F$8<='Pension Dates'!B527),'First Process Date'!$C$8,FALSE)","v":false}]
["2034-11-05","2034-11-18","2034-11-04",{"$f":"IF(AND('First Process Date'!$F$2>='Pension Dates'!A528,'First Process Date'!$F$2<='Pension Dates'!B528),'First Process Date'!$C$2,FALSE)","v":false},{"$f":"IF(AND('First Process Date'!$F$8>='Pension Dates'!A528,'First Process Date'!$F$8<='Pension Dates'!B528),'First Process Date'!$C$8,FALSE)","v":false}]
["2034-11-19","2034-12-02","2034-11-18",{"$f":"IF(AND('First Process Date'!$F$2>='Pension Dates'!A529,'First Process Date'!$F$2<='Pension Dates'!B529),'First Process Date'!$C$2,FALSE)","v":false},{"$f":"IF(AND('First Process Date'!$F$8>='Pension Dates'!A529,'First Process Date'!$F$8<='Pension Dates'!B529),'First Process Date'!$C$8,FALSE)","v":false}]
["2034-12-03","2034-12-16","2034-12-02",{"$f":"IF(AND('First Process Date'!$F$2>='Pension Dates'!A530,'First Process Date'!$F$2<='Pension Dates'!B530),'First Process Date'!$C$2,FALSE)","v":false},{"$f":"IF(AND('First Process Date'!$F$8>='Pension Dates'!A530,'First Process Date'!$F$8<='Pension Dates'!B530),'First Process Date'!$C$8,FALSE)","v":false}]
["2034-12-17","2034-12-30","2034-12-16",{"$f":"IF(AND('First Process Date'!$F$2>='Pension Dates'!A531,'First Process Date'!$F$2<='Pension Dates'!B531),'First Process Date'!$C$2,FALSE)","v":false},{"$f":"IF(AND('First Process Date'!$F$8>='Pension Dates'!A531,'First Process Date'!$F$8<='Pension Dates'!B531),'First Process Date'!$C$8,FALSE)","v":false}]
["2034-12-31","2035-01-13","2034-12-30",{"$f":"IF(AND('First Process Date'!$F$2>='Pension Dates'!A532,'First Process Date'!$F$2<='Pension Dates'!B532),'First Process Date'!$C$2,FALSE)","v":false},{"$f":"IF(AND('First Process Date'!$F$8>='Pension Dates'!A532,'First Process Date'!$F$8<='Pension Dates'!B532),'First Process Date'!$C$8,FALSE)","v":false}]
["2035-01-14","2035-01-27","2035-01-13",{"$f":"IF(AND('First Process Date'!$F$2>='Pension Dates'!A533,'First Process Date'!$F$2<='Pension Dates'!B533),'First Process Date'!$C$2,FALSE)","v":false},{"$f":"IF(AND('First Process Date'!$F$8>='Pension Dates'!A533,'First Process Date'!$F$8<='Pension Dates'!B533),'First Process Date'!$C$8,FALSE)","v":false}]
["2035-01-28","2035-02-10","2035-01-27",{"$f":"IF(AND('First Process Date'!$F$2>='Pension Dates'!A534,'First Process Date'!$F$2<='Pension Dates'!B534),'First Process Date'!$C$2,FALSE)","v":false},{"$f":"IF(AND('First Process Date'!$F$8>='Pension Dates'!A534,'First Process Date'!$F$8<='Pension Dates'!B534),'First Process Date'!$C$8,FALSE)","v":false}]
["2035-02-11","2035-02-24","2035-02-10",{"$f":"IF(AND('First Process Date'!$F$2>='Pension Dates'!A535,'First Process Date'!$F$2<='Pension Dates'!B535),'First Process Date'!$C$2,FALSE)","v":false},{"$f":"IF(AND('First Process Date'!$F$8>='Pension Dates'!A535,'First Process Date'!$F$8<='Pension Dates'!B535),'First Process Date'!$C$8,FALSE)","v":false}]
["2035-02-25","2035-03-10","2035-02-24",{"$f":"IF(AND('First Process Date'!$F$2>='Pension Dates'!A536,'First Process Date'!$F$2<='Pension Dates'!B536),'First Process Date'!$C$2,FALSE)","v":false},{"$f":"IF(AND('First Process Date'!$F$8>='Pension Dates'!A536,'First Process Date'!$F$8<='Pension Dates'!B536),'First Process Date'!$C$8,FALSE)","v":false}]
["2035-03-11","2035-03-24","2035-03-10",{"$f":"IF(AND('First Process Date'!$F$2>='Pension Dates'!A537,'First Process Date'!$F$2<='Pension Dates'!B537),'First Process Date'!$C$2,FALSE)","v":false},{"$f":"IF(AND('First Process Date'!$F$8>='Pension Dates'!A537,'First Process Date'!$F$8<='Pension Dates'!B537),'First Process Date'!$C$8,FALSE)","v":false}]
["2035-03-25","2035-04-07","2035-03-24",{"$f":"IF(AND('First Process Date'!$F$2>='Pension Dates'!A538,'First Process Date'!$F$2<='Pension Dates'!B538),'First Process Date'!$C$2,FALSE)","v":false},{"$f":"IF(AND('First Process Date'!$F$8>='Pension Dates'!A538,'First Process Date'!$F$8<='Pension Dates'!B538),'First Process Date'!$C$8,FALSE)","v":false}]
["2035-04-08","2035-04-21","2035-04-07",{"$f":"IF(AND('First Process Date'!$F$2>='Pension Dates'!A539,'First Process Date'!$F$2<='Pension Dates'!B539),'First Process Date'!$C$2,FALSE)","v":false},{"$f":"IF(AND('First Process Date'!$F$8>='Pension Dates'!A539,'First Process Date'!$F$8<='Pension Dates'!B539),'First Process Date'!$C$8,FALSE)","v":false}]
["2035-04-22","2035-05-05","2035-04-21",{"$f":"IF(AND('First Process Date'!$F$2>='Pension Dates'!A540,'First Process Date'!$F$2<='Pension Dates'!B540),'First Process Date'!$C$2,FALSE)","v":false},{"$f":"IF(AND('First Process Date'!$F$8>='Pension Dates'!A540,'First Process Date'!$F$8<='Pension Dates'!B540),'First Process Date'!$C$8,FALSE)","v":false}]
["2035-05-06","2035-05-19","2035-05-05",{"$f":"IF(AND('First Process Date'!$F$2>='Pension Dates'!A541,'First Process Date'!$F$2<='Pension Dates'!B541),'First Process Date'!$C$2,FALSE)","v":false},{"$f":"IF(AND('First Process Date'!$F$8>='Pension Dates'!A541,'First Process Date'!$F$8<='Pension Dates'!B541),'First Process Date'!$C$8,FALSE)","v":false}]
["2035-05-20","2035-06-02","2035-05-19",{"$f":"IF(AND('First Process Date'!$F$2>='Pension Dates'!A542,'First Process Date'!$F$2<='Pension Dates'!B542),'First Process Date'!$C$2,FALSE)","v":false},{"$f":"IF(AND('First Process Date'!$F$8>='Pension Dates'!A542,'First Process Date'!$F$8<='Pension Dates'!B542),'First Process Date'!$C$8,FALSE)","v":false}]
["2035-06-03","2035-06-16","2035-06-02",{"$f":"IF(AND('First Process Date'!$F$2>='Pension Dates'!A543,'First Process Date'!$F$2<='Pension Dates'!B543),'First Process Date'!$C$2,FALSE)","v":false},{"$f":"IF(AND('First Process Date'!$F$8>='Pension Dates'!A543,'First Process Date'!$F$8<='Pension Dates'!B543),'First Process Date'!$C$8,FALSE)","v":false}]
["2035-06-17","2035-06-30","2035-06-16",{"$f":"IF(AND('First Process Date'!$F$2>='Pension Dates'!A544,'First Process Date'!$F$2<='Pension Dates'!B544),'First Process Date'!$C$2,FALSE)","v":false},{"$f":"IF(AND('First Process Date'!$F$8>='Pension Dates'!A544,'First Process Date'!$F$8<='Pension Dates'!B544),'First Process Date'!$C$8,FALSE)","v":false}]
["2035-07-01","2035-07-14","2035-06-30",{"$f":"IF(AND('First Process Date'!$F$2>='Pension Dates'!A545,'First Process Date'!$F$2<='Pension Dates'!B545),'First Process Date'!$C$2,FALSE)","v":false},{"$f":"IF(AND('First Process Date'!$F$8>='Pension Dates'!A545,'First Process Date'!$F$8<='Pension Dates'!B545),'First Process Date'!$C$8,FALSE)","v":false}]
["2035-07-15","2035-07-28","2035-07-14",{"$f":"IF(AND('First Process Date'!$F$2>='Pension Dates'!A546,'First Process Date'!$F$2<='Pension Dates'!B546),'First Process Date'!$C$2,FALSE)","v":false},{"$f":"IF(AND('First Process Date'!$F$8>='Pension Dates'!A546,'First Process Date'!$F$8<='Pension Dates'!B546),'First Process Date'!$C$8,FALSE)","v":false}]
["2035-07-29","2035-08-11","2035-07-28",{"$f":"IF(AND('First Process Date'!$F$2>='Pension Dates'!A547,'First Process Date'!$F$2<='Pension Dates'!B547),'First Process Date'!$C$2,FALSE)","v":false},{"$f":"IF(AND('First Process Date'!$F$8>='Pension Dates'!A547,'First Process Date'!$F$8<='Pension Dates'!B547),'First Process Date'!$C$8,FALSE)","v":false}]
["2035-08-12","2035-08-25","2035-08-11",{"$f":"IF(AND('First Process Date'!$F$2>='Pension Dates'!A548,'First Process Date'!$F$2<='Pension Dates'!B548),'First Process Date'!$C$2,FALSE)","v":false},{"$f":"IF(AND('First Process Date'!$F$8>='Pension Dates'!A548,'First Process Date'!$F$8<='Pension Dates'!B548),'First Process Date'!$C$8,FALSE)","v":false}]
["2035-08-26","2035-09-08","2035-08-25",{"$f":"IF(AND('First Process Date'!$F$2>='Pension Dates'!A549,'First Process Date'!$F$2<='Pension Dates'!B549),'First Process Date'!$C$2,FALSE)","v":false},{"$f":"IF(AND('First Process Date'!$F$8>='Pension Dates'!A549,'First Process Date'!$F$8<='Pension Dates'!B549),'First Process Date'!$C$8,FALSE)","v":false}]
["2035-09-09","2035-09-22","2035-09-08",{"$f":"IF(AND('First Process Date'!$F$2>='Pension Dates'!A550,'First Process Date'!$F$2<='Pension Dates'!B550),'First Process Date'!$C$2,FALSE)","v":false},{"$f":"IF(AND('First Process Date'!$F$8>='Pension Dates'!A550,'First Process Date'!$F$8<='Pension Dates'!B550),'First Process Date'!$C$8,FALSE)","v":false}]
["2035-09-23","2035-10-06","2035-09-22",{"$f":"IF(AND('First Process Date'!$F$2>='Pension Dates'!A551,'First Process Date'!$F$2<='Pension Dates'!B551),'First Process Date'!$C$2,FALSE)","v":false},{"$f":"IF(AND('First Process Date'!$F$8>='Pension Dates'!A551,'First Process Date'!$F$8<='Pension Dates'!B551),'First Process Date'!$C$8,FALSE)","v":false}]
["2035-10-07","2035-10-20","2035-10-06",{"$f":"IF(AND('First Process Date'!$F$2>='Pension Dates'!A552,'First Process Date'!$F$2<='Pension Dates'!B552),'First Process Date'!$C$2,FALSE)","v":false},{"$f":"IF(AND('First Process Date'!$F$8>='Pension Dates'!A552,'First Process Date'!$F$8<='Pension Dates'!B552),'First Process Date'!$C$8,FALSE)","v":false}]
["2035-10-21","2035-11-03","2035-10-20",{"$f":"IF(AND('First Process Date'!$F$2>='Pension Dates'!A553,'First Process Date'!$F$2<='Pension Dates'!B553),'First Process Date'!$C$2,FALSE)","v":false},{"$f":"IF(AND('First Process Date'!$F$8>='Pension Dates'!A553,'First Process Date'!$F$8<='Pension Dates'!B553),'First Process Date'!$C$8,FALSE)","v":false}]
["2035-11-04","2035-11-17","2035-11-03",{"$f":"IF(AND('First Process Date'!$F$2>='Pension Dates'!A554,'First Process Date'!$F$2<='Pension Dates'!B554),'First Process Date'!$C$2,FALSE)","v":false},{"$f":"IF(AND('First Process Date'!$F$8>='Pension Dates'!A554,'First Process Date'!$F$8<='Pension Dates'!B554),'First Process Date'!$C$8,FALSE)","v":false}]
["2035-11-18","2035-12-01","2035-11-17",{"$f":"IF(AND('First Process Date'!$F$2>='Pension Dates'!A555,'First Process Date'!$F$2<='Pension Dates'!B555),'First Process Date'!$C$2,FALSE)","v":false},{"$f":"IF(AND('First Process Date'!$F$8>='Pension Dates'!A555,'First Process Date'!$F$8<='Pension Dates'!B555),'First Process Date'!$C$8,FALSE)","v":false}]
["2035-12-02","2035-12-15","2035-12-01",{"$f":"IF(AND('First Process Date'!$F$2>='Pension Dates'!A556,'First Process Date'!$F$2<='Pension Dates'!B556),'First Process Date'!$C$2,FALSE)","v":false},{"$f":"IF(AND('First Process Date'!$F$8>='Pension Dates'!A556,'First Process Date'!$F$8<='Pension Dates'!B556),'First Process Date'!$C$8,FALSE)","v":false}]
["2035-12-16","2035-12-29","2035-12-15",{"$f":"IF(AND('First Process Date'!$F$2>='Pension Dates'!A557,'First Process Date'!$F$2<='Pension Dates'!B557),'First Process Date'!$C$2,FALSE)","v":false},{"$f":"IF(AND('First Process Date'!$F$8>='Pension Dates'!A557,'First Process Date'!$F$8<='Pension Dates'!B557),'First Process Date'!$C$8,FALSE)","v":false}]
["2035-12-30","2036-01-12","2035-12-29",{"$f":"IF(AND('First Process Date'!$F$2>='Pension Dates'!A558,'First Process Date'!$F$2<='Pension Dates'!B558),'First Process Date'!$C$2,FALSE)","v":false},{"$f":"IF(AND('First Process Date'!$F$8>='Pension Dates'!A558,'First Process Date'!$F$8<='Pension Dates'!B558),'First Process Date'!$C$8,FALSE)","v":false}]
["2036-01-13","2036-01-26","2036-01-12",{"$f":"IF(AND('First Process Date'!$F$2>='Pension Dates'!A559,'First Process Date'!$F$2<='Pension Dates'!B559),'First Process Date'!$C$2,FALSE)","v":false},{"$f":"IF(AND('First Process Date'!$F$8>='Pension Dates'!A559,'First Process Date'!$F$8<='Pension Dates'!B559),'First Process Date'!$C$8,FALSE)","v":false}]
["2036-01-27","2036-02-09","2036-01-26",{"$f":"IF(AND('First Process Date'!$F$2>='Pension Dates'!A560,'First Process Date'!$F$2<='Pension Dates'!B560),'First Process Date'!$C$2,FALSE)","v":false},{"$f":"IF(AND('First Process Date'!$F$8>='Pension Dates'!A560,'First Process Date'!$F$8<='Pension Dates'!B560),'First Process Date'!$C$8,FALSE)","v":false}]
["2036-02-10","2036-02-23","2036-02-09",{"$f":"IF(AND('First Process Date'!$F$2>='Pension Dates'!A561,'First Process Date'!$F$2<='Pension Dates'!B561),'First Process Date'!$C$2,FALSE)","v":false},{"$f":"IF(AND('First Process Date'!$F$8>='Pension Dates'!A561,'First Process Date'!$F$8<='Pension Dates'!B561),'First Process Date'!$C$8,FALSE)","v":false}]
["2036-02-24","2036-03-08","2036-02-23",{"$f":"IF(AND('First Process Date'!$F$2>='Pension Dates'!A562,'First Process Date'!$F$2<='Pension Dates'!B562),'First Process Date'!$C$2,FALSE)","v":false},{"$f":"IF(AND('First Process Date'!$F$8>='Pension Dates'!A562,'First Process Date'!$F$8<='Pension Dates'!B562),'First Process Date'!$C$8,FALSE)","v":false}]
["2036-03-09","2036-03-22","2036-03-08",{"$f":"IF(AND('First Process Date'!$F$2>='Pension Dates'!A563,'First Process Date'!$F$2<='Pension Dates'!B563),'First Process Date'!$C$2,FALSE)","v":false},{"$f":"IF(AND('First Process Date'!$F$8>='Pension Dates'!A563,'First Process Date'!$F$8<='Pension Dates'!B563),'First Process Date'!$C$8,FALSE)","v":false}]
["2036-03-23","2036-04-05","2036-03-22",{"$f":"IF(AND('First Process Date'!$F$2>='Pension Dates'!A564,'First Process Date'!$F$2<='Pension Dates'!B564),'First Process Date'!$C$2,FALSE)","v":false},{"$f":"IF(AND('First Process Date'!$F$8>='Pension Dates'!A564,'First Process Date'!$F$8<='Pension Dates'!B564),'First Process Date'!$C$8,FALSE)","v":false}]
["2036-04-06","2036-04-19","2036-04-05",{"$f":"IF(AND('First Process Date'!$F$2>='Pension Dates'!A565,'First Process Date'!$F$2<='Pension Dates'!B565),'First Process Date'!$C$2,FALSE)","v":false},{"$f":"IF(AND('First Process Date'!$F$8>='Pension Dates'!A565,'First Process Date'!$F$8<='Pension Dates'!B565),'First Process Date'!$C$8,FALSE)","v":false}]
["2036-04-20","2036-05-03","2036-04-19",{"$f":"IF(AND('First Process Date'!$F$2>='Pension Dates'!A566,'First Process Date'!$F$2<='Pension Dates'!B566),'First Process Date'!$C$2,FALSE)","v":false},{"$f":"IF(AND('First Process Date'!$F$8>='Pension Dates'!A566,'First Process Date'!$F$8<='Pension Dates'!B566),'First Process Date'!$C$8,FALSE)","v":false}]
["2036-05-04","2036-05-17","2036-05-03",{"$f":"IF(AND('First Process Date'!$F$2>='Pension Dates'!A567,'First Process Date'!$F$2<='Pension Dates'!B567),'First Process Date'!$C$2,FALSE)","v":false},{"$f":"IF(AND('First Process Date'!$F$8>='Pension Dates'!A567,'First Process Date'!$F$8<='Pension Dates'!B567),'First Process Date'!$C$8,FALSE)","v":false}]
["2036-05-18","2036-05-31","2036-05-17",{"$f":"IF(AND('First Process Date'!$F$2>='Pension Dates'!A568,'First Process Date'!$F$2<='Pension Dates'!B568),'First Process Date'!$C$2,FALSE)","v":false},{"$f":"IF(AND('First Process Date'!$F$8>='Pension Dates'!A568,'First Process Date'!$F$8<='Pension Dates'!B568),'First Process Date'!$C$8,FALSE)","v":false}]
["2036-06-01","2036-06-14","2036-05-31",{"$f":"IF(AND('First Process Date'!$F$2>='Pension Dates'!A569,'First Process Date'!$F$2<='Pension Dates'!B569),'First Process Date'!$C$2,FALSE)","v":false},{"$f":"IF(AND('First Process Date'!$F$8>='Pension Dates'!A569,'First Process Date'!$F$8<='Pension Dates'!B569),'First Process Date'!$C$8,FALSE)","v":false}]
["2036-06-15","2036-06-28","2036-06-14",{"$f":"IF(AND('First Process Date'!$F$2>='Pension Dates'!A570,'First Process Date'!$F$2<='Pension Dates'!B570),'First Process Date'!$C$2,FALSE)","v":false},{"$f":"IF(AND('First Process Date'!$F$8>='Pension Dates'!A570,'First Process Date'!$F$8<='Pension Dates'!B570),'First Process Date'!$C$8,FALSE)","v":false}]
["2036-06-29","2036-07-12","2036-06-28",{"$f":"IF(AND('First Process Date'!$F$2>='Pension Dates'!A571,'First Process Date'!$F$2<='Pension Dates'!B571),'First Process Date'!$C$2,FALSE)","v":false},{"$f":"IF(AND('First Process Date'!$F$8>='Pension Dates'!A571,'First Process Date'!$F$8<='Pension Dates'!B571),'First Process Date'!$C$8,FALSE)","v":false}]
["2036-07-13","2036-07-26","2036-07-12",{"$f":"IF(AND('First Process Date'!$F$2>='Pension Dates'!A572,'First Process Date'!$F$2<='Pension Dates'!B572),'First Process Date'!$C$2,FALSE)","v":false},{"$f":"IF(AND('First Process Date'!$F$8>='Pension Dates'!A572,'First Process Date'!$F$8<='Pension Dates'!B572),'First Process Date'!$C$8,FALSE)","v":false}]
["2036-07-27","2036-08-09","2036-07-26",{"$f":"IF(AND('First Process Date'!$F$2>='Pension Dates'!A573,'First Process Date'!$F$2<='Pension Dates'!B573),'First Process Date'!$C$2,FALSE)","v":false},{"$f":"IF(AND('First Process Date'!$F$8>='Pension Dates'!A573,'First Process Date'!$F$8<='Pension Dates'!B573),'First Process Date'!$C$8,FALSE)","v":false}]
["2036-08-10","2036-08-23","2036-08-09",{"$f":"IF(AND('First Process Date'!$F$2>='Pension Dates'!A574,'First Process Date'!$F$2<='Pension Dates'!B574),'First Process Date'!$C$2,FALSE)","v":false},{"$f":"IF(AND('First Process Date'!$F$8>='Pension Dates'!A574,'First Process Date'!$F$8<='Pension Dates'!B574),'First Process Date'!$C$8,FALSE)","v":false}]
["2036-08-24","2036-09-06","2036-08-23",{"$f":"IF(AND('First Process Date'!$F$2>='Pension Dates'!A575,'First Process Date'!$F$2<='Pension Dates'!B575),'First Process Date'!$C$2,FALSE)","v":false},{"$f":"IF(AND('First Process Date'!$F$8>='Pension Dates'!A575,'First Process Date'!$F$8<='Pension Dates'!B575),'First Process Date'!$C$8,FALSE)","v":false}]
["2036-09-07","2036-09-20","2036-09-06",{"$f":"IF(AND('First Process Date'!$F$2>='Pension Dates'!A576,'First Process Date'!$F$2<='Pension Dates'!B576),'First Process Date'!$C$2,FALSE)","v":false},{"$f":"IF(AND('First Process Date'!$F$8>='Pension Dates'!A576,'First Process Date'!$F$8<='Pension Dates'!B576),'First Process Date'!$C$8,FALSE)","v":false}]
["2036-09-21","2036-10-04","2036-09-20",{"$f":"IF(AND('First Process Date'!$F$2>='Pension Dates'!A577,'First Process Date'!$F$2<='Pension Dates'!B577),'First Process Date'!$C$2,FALSE)","v":false},{"$f":"IF(AND('First Process Date'!$F$8>='Pension Dates'!A577,'First Process Date'!$F$8<='Pension Dates'!B577),'First Process Date'!$C$8,FALSE)","v":false}]
["2036-10-05","2036-10-18","2036-10-04",{"$f":"IF(AND('First Process Date'!$F$2>='Pension Dates'!A578,'First Process Date'!$F$2<='Pension Dates'!B578),'First Process Date'!$C$2,FALSE)","v":false},{"$f":"IF(AND('First Process Date'!$F$8>='Pension Dates'!A578,'First Process Date'!$F$8<='Pension Dates'!B578),'First Process Date'!$C$8,FALSE)","v":false}]
["2036-10-19","2036-11-01","2036-10-18",{"$f":"IF(AND('First Process Date'!$F$2>='Pension Dates'!A579,'First Process Date'!$F$2<='Pension Dates'!B579),'First Process Date'!$C$2,FALSE)","v":false},{"$f":"IF(AND('First Process Date'!$F$8>='Pension Dates'!A579,'First Process Date'!$F$8<='Pension Dates'!B579),'First Process Date'!$C$8,FALSE)","v":false}]
["2036-11-02","2036-11-15","2036-11-01",{"$f":"IF(AND('First Process Date'!$F$2>='Pension Dates'!A580,'First Process Date'!$F$2<='Pension Dates'!B580),'First Process Date'!$C$2,FALSE)","v":false},{"$f":"IF(AND('First Process Date'!$F$8>='Pension Dates'!A580,'First Process Date'!$F$8<='Pension Dates'!B580),'First Process Date'!$C$8,FALSE)","v":false}]
["2036-11-16","2036-11-29","2036-11-15",{"$f":"IF(AND('First Process Date'!$F$2>='Pension Dates'!A581,'First Process Date'!$F$2<='Pension Dates'!B581),'First Process Date'!$C$2,FALSE)","v":false},{"$f":"IF(AND('First Process Date'!$F$8>='Pension Dates'!A581,'First Process Date'!$F$8<='Pension Dates'!B581),'First Process Date'!$C$8,FALSE)","v":false}]
["2036-11-30","2036-12-13","2036-11-29",{"$f":"IF(AND('First Process Date'!$F$2>='Pension Dates'!A582,'First Process Date'!$F$2<='Pension Dates'!B582),'First Process Date'!$C$2,FALSE)","v":false},{"$f":"IF(AND('First Process Date'!$F$8>='Pension Dates'!A582,'First Process Date'!$F$8<='Pension Dates'!B582),'First Process Date'!$C$8,FALSE)","v":false}]
["2036-12-14","2036-12-27","2036-12-13",{"$f":"IF(AND('First Process Date'!$F$2>='Pension Dates'!A583,'First Process Date'!$F$2<='Pension Dates'!B583),'First Process Date'!$C$2,FALSE)","v":false},{"$f":"IF(AND('First Process Date'!$F$8>='Pension Dates'!A583,'First Process Date'!$F$8<='Pension Dates'!B583),'First Process Date'!$C$8,FALSE)","v":false}]
["2036-12-28","2037-01-10","2036-12-27",{"$f":"IF(AND('First Process Date'!$F$2>='Pension Dates'!A584,'First Process Date'!$F$2<='Pension Dates'!B584),'First Process Date'!$C$2,FALSE)","v":false},{"$f":"IF(AND('First Process Date'!$F$8>='Pension Dates'!A584,'First Process Date'!$F$8<='Pension Dates'!B584),'First Process Date'!$C$8,FALSE)","v":false}]
["2037-01-11","2037-01-24","2037-01-10",{"$f":"IF(AND('First Process Date'!$F$2>='Pension Dates'!A585,'First Process Date'!$F$2<='Pension Dates'!B585),'First Process Date'!$C$2,FALSE)","v":false},{"$f":"IF(AND('First Process Date'!$F$8>='Pension Dates'!A585,'First Process Date'!$F$8<='Pension Dates'!B585),'First Process Date'!$C$8,FALSE)","v":false}]
["2037-01-25","2037-02-07","2037-01-24",{"$f":"IF(AND('First Process Date'!$F$2>='Pension Dates'!A586,'First Process Date'!$F$2<='Pension Dates'!B586),'First Process Date'!$C$2,FALSE)","v":false},{"$f":"IF(AND('First Process Date'!$F$8>='Pension Dates'!A586,'First Process Date'!$F$8<='Pension Dates'!B586),'First Process Date'!$C$8,FALSE)","v":false}]
["2037-02-08","2037-02-21","2037-02-07",{"$f":"IF(AND('First Process Date'!$F$2>='Pension Dates'!A587,'First Process Date'!$F$2<='Pension Dates'!B587),'First Process Date'!$C$2,FALSE)","v":false},{"$f":"IF(AND('First Process Date'!$F$8>='Pension Dates'!A587,'First Process Date'!$F$8<='Pension Dates'!B587),'First Process Date'!$C$8,FALSE)","v":false}]
["2037-02-22","2037-03-07","2037-02-21",{"$f":"IF(AND('First Process Date'!$F$2>='Pension Dates'!A588,'First Process Date'!$F$2<='Pension Dates'!B588),'First Process Date'!$C$2,FALSE)","v":false},{"$f":"IF(AND('First Process Date'!$F$8>='Pension Dates'!A588,'First Process Date'!$F$8<='Pension Dates'!B588),'First Process Date'!$C$8,FALSE)","v":false}]
["2037-03-08","2037-03-21","2037-03-07",{"$f":"IF(AND('First Process Date'!$F$2>='Pension Dates'!A589,'First Process Date'!$F$2<='Pension Dates'!B589),'First Process Date'!$C$2,FALSE)","v":false},{"$f":"IF(AND('First Process Date'!$F$8>='Pension Dates'!A589,'First Process Date'!$F$8<='Pension Dates'!B589),'First Process Date'!$C$8,FALSE)","v":false}]
["2037-03-22","2037-04-04","2037-03-21",{"$f":"IF(AND('First Process Date'!$F$2>='Pension Dates'!A590,'First Process Date'!$F$2<='Pension Dates'!B590),'First Process Date'!$C$2,FALSE)","v":false},{"$f":"IF(AND('First Process Date'!$F$8>='Pension Dates'!A590,'First Process Date'!$F$8<='Pension Dates'!B590),'First Process Date'!$C$8,FALSE)","v":false}]
["2037-04-05","2037-04-18","2037-04-04",{"$f":"IF(AND('First Process Date'!$F$2>='Pension Dates'!A591,'First Process Date'!$F$2<='Pension Dates'!B591),'First Process Date'!$C$2,FALSE)","v":false},{"$f":"IF(AND('First Process Date'!$F$8>='Pension Dates'!A591,'First Process Date'!$F$8<='Pension Dates'!B591),'First Process Date'!$C$8,FALSE)","v":false}]
["2037-04-19","2037-05-02","2037-04-18",{"$f":"IF(AND('First Process Date'!$F$2>='Pension Dates'!A592,'First Process Date'!$F$2<='Pension Dates'!B592),'First Process Date'!$C$2,FALSE)","v":false},{"$f":"IF(AND('First Process Date'!$F$8>='Pension Dates'!A592,'First Process Date'!$F$8<='Pension Dates'!B592),'First Process Date'!$C$8,FALSE)","v":false}]
["2037-05-03","2037-05-16","2037-05-02",{"$f":"IF(AND('First Process Date'!$F$2>='Pension Dates'!A593,'First Process Date'!$F$2<='Pension Dates'!B593),'First Process Date'!$C$2,FALSE)","v":false},{"$f":"IF(AND('First Process Date'!$F$8>='Pension Dates'!A593,'First Process Date'!$F$8<='Pension Dates'!B593),'First Process Date'!$C$8,FALSE)","v":false}]
["2037-05-17","2037-05-30","2037-05-16",{"$f":"IF(AND('First Process Date'!$F$2>='Pension Dates'!A594,'First Process Date'!$F$2<='Pension Dates'!B594),'First Process Date'!$C$2,FALSE)","v":false},{"$f":"IF(AND('First Process Date'!$F$8>='Pension Dates'!A594,'First Process Date'!$F$8<='Pension Dates'!B594),'First Process Date'!$C$8,FALSE)","v":false}]
["2037-05-31","2037-06-13","2037-05-30",{"$f":"IF(AND('First Process Date'!$F$2>='Pension Dates'!A595,'First Process Date'!$F$2<='Pension Dates'!B595),'First Process Date'!$C$2,FALSE)","v":false},{"$f":"IF(AND('First Process Date'!$F$8>='Pension Dates'!A595,'First Process Date'!$F$8<='Pension Dates'!B595),'First Process Date'!$C$8,FALSE)","v":false}]
["2037-06-14","2037-06-27","2037-06-13",{"$f":"IF(AND('First Process Date'!$F$2>='Pension Dates'!A596,'First Process Date'!$F$2<='Pension Dates'!B596),'First Process Date'!$C$2,FALSE)","v":false},{"$f":"IF(AND('First Process Date'!$F$8>='Pension Dates'!A596,'First Process Date'!$F$8<='Pension Dates'!B596),'First Process Date'!$C$8,FALSE)","v":false}]
["2037-06-28","2037-07-11","2037-06-27",{"$f":"IF(AND('First Process Date'!$F$2>='Pension Dates'!A597,'First Process Date'!$F$2<='Pension Dates'!B597),'First Process Date'!$C$2,FALSE)","v":false},{"$f":"IF(AND('First Process Date'!$F$8>='Pension Dates'!A597,'First Process Date'!$F$8<='Pension Dates'!B597),'First Process Date'!$C$8,FALSE)","v":false}]
["2037-07-12","2037-07-25","2037-07-11",{"$f":"IF(AND('First Process Date'!$F$2>='Pension Dates'!A598,'First Process Date'!$F$2<='Pension Dates'!B598),'First Process Date'!$C$2,FALSE)","v":false},{"$f":"IF(AND('First Process Date'!$F$8>='Pension Dates'!A598,'First Process Date'!$F$8<='Pension Dates'!B598),'First Process Date'!$C$8,FALSE)","v":false}]
["2037-07-26","2037-08-08","2037-07-25",{"$f":"IF(AND('First Process Date'!$F$2>='Pension Dates'!A599,'First Process Date'!$F$2<='Pension Dates'!B599),'First Process Date'!$C$2,FALSE)","v":false},{"$f":"IF(AND('First Process Date'!$F$8>='Pension Dates'!A599,'First Process Date'!$F$8<='Pension Dates'!B599),'First Process Date'!$C$8,FALSE)","v":false}]
["2037-08-09","2037-08-22","2037-08-08",{"$f":"IF(AND('First Process Date'!$F$2>='Pension Dates'!A600,'First Process Date'!$F$2<='Pension Dates'!B600),'First Process Date'!$C$2,FALSE)","v":false},{"$f":"IF(AND('First Process Date'!$F$8>='Pension Dates'!A600,'First Process Date'!$F$8<='Pension Dates'!B600),'First Process Date'!$C$8,FALSE)","v":false}]
["2037-08-23","2037-09-05","2037-08-22",{"$f":"IF(AND('First Process Date'!$F$2>='Pension Dates'!A601,'First Process Date'!$F$2<='Pension Dates'!B601),'First Process Date'!$C$2,FALSE)","v":false},{"$f":"IF(AND('First Process Date'!$F$8>='Pension Dates'!A601,'First Process Date'!$F$8<='Pension Dates'!B601),'First Process Date'!$C$8,FALSE)","v":false}]
["2037-09-06","2037-09-19","2037-09-05",{"$f":"IF(AND('First Process Date'!$F$2>='Pension Dates'!A602,'First Process Date'!$F$2<='Pension Dates'!B602),'First Process Date'!$C$2,FALSE)","v":false},{"$f":"IF(AND('First Process Date'!$F$8>='Pension Dates'!A602,'First Process Date'!$F$8<='Pension Dates'!B602),'First Process Date'!$C$8,FALSE)","v":false}]
["2037-09-20","2037-10-03","2037-09-19",{"$f":"IF(AND('First Process Date'!$F$2>='Pension Dates'!A603,'First Process Date'!$F$2<='Pension Dates'!B603),'First Process Date'!$C$2,FALSE)","v":false},{"$f":"IF(AND('First Process Date'!$F$8>='Pension Dates'!A603,'First Process Date'!$F$8<='Pension Dates'!B603),'First Process Date'!$C$8,FALSE)","v":false}]
["2037-10-04","2037-10-17","2037-10-03",{"$f":"IF(AND('First Process Date'!$F$2>='Pension Dates'!A604,'First Process Date'!$F$2<='Pension Dates'!B604),'First Process Date'!$C$2,FALSE)","v":false},{"$f":"IF(AND('First Process Date'!$F$8>='Pension Dates'!A604,'First Process Date'!$F$8<='Pension Dates'!B604),'First Process Date'!$C$8,FALSE)","v":false}]
["2037-10-18","2037-10-31","2037-10-17",{"$f":"IF(AND('First Process Date'!$F$2>='Pension Dates'!A605,'First Process Date'!$F$2<='Pension Dates'!B605),'First Process Date'!$C$2,FALSE)","v":false},{"$f":"IF(AND('First Process Date'!$F$8>='Pension Dates'!A605,'First Process Date'!$F$8<='Pension Dates'!B605),'First Process Date'!$C$8,FALSE)","v":false}]
["2037-11-01","2037-11-14","2037-10-31",{"$f":"IF(AND('First Process Date'!$F$2>='Pension Dates'!A606,'First Process Date'!$F$2<='Pension Dates'!B606),'First Process Date'!$C$2,FALSE)","v":false},{"$f":"IF(AND('First Process Date'!$F$8>='Pension Dates'!A606,'First Process Date'!$F$8<='Pension Dates'!B606),'First Process Date'!$C$8,FALSE)","v":false}]
["2037-11-15","2037-11-28","2037-11-14",{"$f":"IF(AND('First Process Date'!$F$2>='Pension Dates'!A607,'First Process Date'!$F$2<='Pension Dates'!B607),'First Process Date'!$C$2,FALSE)","v":false},{"$f":"IF(AND('First Process Date'!$F$8>='Pension Dates'!A607,'First Process Date'!$F$8<='Pension Dates'!B607),'First Process Date'!$C$8,FALSE)","v":false}]
["2037-11-29","2037-12-12","2037-11-28",{"$f":"IF(AND('First Process Date'!$F$2>='Pension Dates'!A608,'First Process Date'!$F$2<='Pension Dates'!B608),'First Process Date'!$C$2,FALSE)","v":false},{"$f":"IF(AND('First Process Date'!$F$8>='Pension Dates'!A608,'First Process Date'!$F$8<='Pension Dates'!B608),'First Process Date'!$C$8,FALSE)","v":false}]
["2037-12-13","2037-12-26","2037-12-12",{"$f":"IF(AND('First Process Date'!$F$2>='Pension Dates'!A609,'First Process Date'!$F$2<='Pension Dates'!B609),'First Process Date'!$C$2,FALSE)","v":false},{"$f":"IF(AND('First Process Date'!$F$8>='Pension Dates'!A609,'First Process Date'!$F$8<='Pension Dates'!B609),'First Process Date'!$C$8,FALSE)","v":false}]
["2037-12-27","2038-01-09","2037-12-26",{"$f":"IF(AND('First Process Date'!$F$2>='Pension Dates'!A610,'First Process Date'!$F$2<='Pension Dates'!B610),'First Process Date'!$C$2,FALSE)","v":false},{"$f":"IF(AND('First Process Date'!$F$8>='Pension Dates'!A610,'First Process Date'!$F$8<='Pension Dates'!B610),'First Process Date'!$C$8,FALSE)","v":false}]
["2038-01-10","2038-01-23","2038-01-09",{"$f":"IF(AND('First Process Date'!$F$2>='Pension Dates'!A611,'First Process Date'!$F$2<='Pension Dates'!B611),'First Process Date'!$C$2,FALSE)","v":false},{"$f":"IF(AND('First Process Date'!$F$8>='Pension Dates'!A611,'First Process Date'!$F$8<='Pension Dates'!B611),'First Process Date'!$C$8,FALSE)","v":false}]
["2038-01-24","2038-02-06","2038-01-23",{"$f":"IF(AND('First Process Date'!$F$2>='Pension Dates'!A612,'First Process Date'!$F$2<='Pension Dates'!B612),'First Process Date'!$C$2,FALSE)","v":false},{"$f":"IF(AND('First Process Date'!$F$8>='Pension Dates'!A612,'First Process Date'!$F$8<='Pension Dates'!B612),'First Process Date'!$C$8,FALSE)","v":false}]
["2038-02-07","2038-02-20","2038-02-06",{"$f":"IF(AND('First Process Date'!$F$2>='Pension Dates'!A613,'First Process Date'!$F$2<='Pension Dates'!B613),'First Process Date'!$C$2,FALSE)","v":false},{"$f":"IF(AND('First Process Date'!$F$8>='Pension Dates'!A613,'First Process Date'!$F$8<='Pension Dates'!B613),'First Process Date'!$C$8,FALSE)","v":false}]
["2038-02-21","2038-03-06","2038-02-20",{"$f":"IF(AND('First Process Date'!$F$2>='Pension Dates'!A614,'First Process Date'!$F$2<='Pension Dates'!B614),'First Process Date'!$C$2,FALSE)","v":false},{"$f":"IF(AND('First Process Date'!$F$8>='Pension Dates'!A614,'First Process Date'!$F$8<='Pension Dates'!B614),'First Process Date'!$C$8,FALSE)","v":false}]
["2038-03-07","2038-03-20","2038-03-06",{"$f":"IF(AND('First Process Date'!$F$2>='Pension Dates'!A615,'First Process Date'!$F$2<='Pension Dates'!B615),'First Process Date'!$C$2,FALSE)","v":false},{"$f":"IF(AND('First Process Date'!$F$8>='Pension Dates'!A615,'First Process Date'!$F$8<='Pension Dates'!B615),'First Process Date'!$C$8,FALSE)","v":false}]
["2038-03-21","2038-04-03","2038-03-20",{"$f":"IF(AND('First Process Date'!$F$2>='Pension Dates'!A616,'First Process Date'!$F$2<='Pension Dates'!B616),'First Process Date'!$C$2,FALSE)","v":false},{"$f":"IF(AND('First Process Date'!$F$8>='Pension Dates'!A616,'First Process Date'!$F$8<='Pension Dates'!B616),'First Process Date'!$C$8,FALSE)","v":false}]
["2038-04-04","2038-04-17","2038-04-03",{"$f":"IF(AND('First Process Date'!$F$2>='Pension Dates'!A617,'First Process Date'!$F$2<='Pension Dates'!B617),'First Process Date'!$C$2,FALSE)","v":false},{"$f":"IF(AND('First Process Date'!$F$8>='Pension Dates'!A617,'First Process Date'!$F$8<='Pension Dates'!B617),'First Process Date'!$C$8,FALSE)","v":false}]
["2038-04-18","2038-05-01","2038-04-17",{"$f":"IF(AND('First Process Date'!$F$2>='Pension Dates'!A618,'First Process Date'!$F$2<='Pension Dates'!B618),'First Process Date'!$C$2,FALSE)","v":false},{"$f":"IF(AND('First Process Date'!$F$8>='Pension Dates'!A618,'First Process Date'!$F$8<='Pension Dates'!B618),'First Process Date'!$C$8,FALSE)","v":false}]
["2038-05-02","2038-05-15","2038-05-01",{"$f":"IF(AND('First Process Date'!$F$2>='Pension Dates'!A619,'First Process Date'!$F$2<='Pension Dates'!B619),'First Process Date'!$C$2,FALSE)","v":false},{"$f":"IF(AND('First Process Date'!$F$8>='Pension Dates'!A619,'First Process Date'!$F$8<='Pension Dates'!B619),'First Process Date'!$C$8,FALSE)","v":false}]
["2038-05-16","2038-05-29","2038-05-15",{"$f":"IF(AND('First Process Date'!$F$2>='Pension Dates'!A620,'First Process Date'!$F$2<='Pension Dates'!B620),'First Process Date'!$C$2,FALSE)","v":false},{"$f":"IF(AND('First Process Date'!$F$8>='Pension Dates'!A620,'First Process Date'!$F$8<='Pension Dates'!B620),'First Process Date'!$C$8,FALSE)","v":false}]
["2038-05-30","2038-06-12","2038-05-29",{"$f":"IF(AND('First Process Date'!$F$2>='Pension Dates'!A621,'First Process Date'!$F$2<='Pension Dates'!B621),'First Process Date'!$C$2,FALSE)","v":false},{"$f":"IF(AND('First Process Date'!$F$8>='Pension Dates'!A621,'First Process Date'!$F$8<='Pension Dates'!B621),'First Process Date'!$C$8,FALSE)","v":false}]
["2038-06-13","2038-06-26","2038-06-12",{"$f":"IF(AND('First Process Date'!$F$2>='Pension Dates'!A622,'First Process Date'!$F$2<='Pension Dates'!B622),'First Process Date'!$C$2,FALSE)","v":false},{"$f":"IF(AND('First Process Date'!$F$8>='Pension Dates'!A622,'First Process Date'!$F$8<='Pension Dates'!B622),'First Process Date'!$C$8,FALSE)","v":false}]
["2038-06-27","2038-07-10","2038-06-26",{"$f":"IF(AND('First Process Date'!$F$2>='Pension Dates'!A623,'First Process Date'!$F$2<='Pension Dates'!B623),'First Process Date'!$C$2,FALSE)","v":false},{"$f":"IF(AND('First Process Date'!$F$8>='Pension Dates'!A623,'First Process Date'!$F$8<='Pension Dates'!B623),'First Process Date'!$C$8,FALSE)","v":false}]
["2038-07-11","2038-07-24","2038-07-10",{"$f":"IF(AND('First Process Date'!$F$2>='Pension Dates'!A624,'First Process Date'!$F$2<='Pension Dates'!B624),'First Process Date'!$C$2,FALSE)","v":false},{"$f":"IF(AND('First Process Date'!$F$8>='Pension Dates'!A624,'First Process Date'!$F$8<='Pension Dates'!B624),'First Process Date'!$C$8,FALSE)","v":false}]
["2038-07-25","2038-08-07","2038-07-24",{"$f":"IF(AND('First Process Date'!$F$2>='Pension Dates'!A625,'First Process Date'!$F$2<='Pension Dates'!B625),'First Process Date'!$C$2,FALSE)","v":false},{"$f":"IF(AND('First Process Date'!$F$8>='Pension Dates'!A625,'First Process Date'!$F$8<='Pension Dates'!B625),'First Process Date'!$C$8,FALSE)","v":false}]
["2038-08-08","2038-08-21","2038-08-07",{"$f":"IF(AND('First Process Date'!$F$2>='Pension Dates'!A626,'First Process Date'!$F$2<='Pension Dates'!B626),'First Process Date'!$C$2,FALSE)","v":false},{"$f":"IF(AND('First Process Date'!$F$8>='Pension Dates'!A626,'First Process Date'!$F$8<='Pension Dates'!B626),'First Process Date'!$C$8,FALSE)","v":false}]
["2038-08-22","2038-09-04","2038-08-21",{"$f":"IF(AND('First Process Date'!$F$2>='Pension Dates'!A627,'First Process Date'!$F$2<='Pension Dates'!B627),'First Process Date'!$C$2,FALSE)","v":false},{"$f":"IF(AND('First Process Date'!$F$8>='Pension Dates'!A627,'First Process Date'!$F$8<='Pension Dates'!B627),'First Process Date'!$C$8,FALSE)","v":false}]
["2038-09-05","2038-09-18","2038-09-04",{"$f":"IF(AND('First Process Date'!$F$2>='Pension Dates'!A628,'First Process Date'!$F$2<='Pension Dates'!B628),'First Process Date'!$C$2,FALSE)","v":false},{"$f":"IF(AND('First Process Date'!$F$8>='Pension Dates'!A628,'First Process Date'!$F$8<='Pension Dates'!B628),'First Process Date'!$C$8,FALSE)","v":false}]
["2038-09-19","2038-10-02","2038-09-18",{"$f":"IF(AND('First Process Date'!$F$2>='Pension Dates'!A629,'First Process Date'!$F$2<='Pension Dates'!B629),'First Process Date'!$C$2,FALSE)","v":false},{"$f":"IF(AND('First Process Date'!$F$8>='Pension Dates'!A629,'First Process Date'!$F$8<='Pension Dates'!B629),'First Process Date'!$C$8,FALSE)","v":false}]
["2038-10-03","2038-10-16","2038-10-02",{"$f":"IF(AND('First Process Date'!$F$2>='Pension Dates'!A630,'First Process Date'!$F$2<='Pension Dates'!B630),'First Process Date'!$C$2,FALSE)","v":false},{"$f":"IF(AND('First Process Date'!$F$8>='Pension Dates'!A630,'First Process Date'!$F$8<='Pension Dates'!B630),'First Process Date'!$C$8,FALSE)","v":false}]
["2038-10-17","2038-10-30","2038-10-16",{"$f":"IF(AND('First Process Date'!$F$2>='Pension Dates'!A631,'First Process Date'!$F$2<='Pension Dates'!B631),'First Process Date'!$C$2,FALSE)","v":false},{"$f":"IF(AND('First Process Date'!$F$8>='Pension Dates'!A631,'First Process Date'!$F$8<='Pension Dates'!B631),'First Process Date'!$C$8,FALSE)","v":false}]
["2038-10-31","2038-11-13","2038-10-30",{"$f":"IF(AND('First Process Date'!$F$2>='Pension Dates'!A632,'First Process Date'!$F$2<='Pension Dates'!B632),'First Process Date'!$C$2,FALSE)","v":false},{"$f":"IF(AND('First Process Date'!$F$8>='Pension Dates'!A632,'First Process Date'!$F$8<='Pension Dates'!B632),'First Process Date'!$C$8,FALSE)","v":false}]
["2038-11-14","2038-11-27","2038-11-13",{"$f":"IF(AND('First Process Date'!$F$2>='Pension Dates'!A633,'First Process Date'!$F$2<='Pension Dates'!B633),'First Process Date'!$C$2,FALSE)","v":false},{"$f":"IF(AND('First Process Date'!$F$8>='Pension Dates'!A633,'First Process Date'!$F$8<='Pension Dates'!B633),'First Process Date'!$C$8,FALSE)","v":false}]
["2038-11-28","2038-12-11","2038-11-27",{"$f":"IF(AND('First Process Date'!$F$2>='Pension Dates'!A634,'First Process Date'!$F$2<='Pension Dates'!B634),'First Process Date'!$C$2,FALSE)","v":false},{"$f":"IF(AND('First Process Date'!$F$8>='Pension Dates'!A634,'First Process Date'!$F$8<='Pension Dates'!B634),'First Process Date'!$C$8,FALSE)","v":false}]
["2038-12-12","2038-12-25","2038-12-11",{"$f":"IF(AND('First Process Date'!$F$2>='Pension Dates'!A635,'First Process Date'!$F$2<='Pension Dates'!B635),'First Process Date'!$C$2,FALSE)","v":false},{"$f":"IF(AND('First Process Date'!$F$8>='Pension Dates'!A635,'First Process Date'!$F$8<='Pension Dates'!B635),'First Process Date'!$C$8,FALSE)","v":false}]
["2038-12-26","2039-01-08","2038-12-25",{"$f":"IF(AND('First Process Date'!$F$2>='Pension Dates'!A636,'First Process Date'!$F$2<='Pension Dates'!B636),'First Process Date'!$C$2,FALSE)","v":false},{"$f":"IF(AND('First Process Date'!$F$8>='Pension Dates'!A636,'First Process Date'!$F$8<='Pension Dates'!B636),'First Process Date'!$C$8,FALSE)","v":false}]
["2039-01-09","2039-01-22","2039-01-08",{"$f":"IF(AND('First Process Date'!$F$2>='Pension Dates'!A637,'First Process Date'!$F$2<='Pension Dates'!B637),'First Process Date'!$C$2,FALSE)","v":false},{"$f":"IF(AND('First Process Date'!$F$8>='Pension Dates'!A637,'First Process Date'!$F$8<='Pension Dates'!B637),'First Process Date'!$C$8,FALSE)","v":false}]
["2039-01-23","2039-02-05","2039-01-22",{"$f":"IF(AND('First Process Date'!$F$2>='Pension Dates'!A638,'First Process Date'!$F$2<='Pension Dates'!B638),'First Process Date'!$C$2,FALSE)","v":false},{"$f":"IF(AND('First Process Date'!$F$8>='Pension Dates'!A638,'First Process Date'!$F$8<='Pension Dates'!B638),'First Process Date'!$C$8,FALSE)","v":false}]
["2039-02-06","2039-02-19","2039-02-05",{"$f":"IF(AND('First Process Date'!$F$2>='Pension Dates'!A639,'First Process Date'!$F$2<='Pension Dates'!B639),'First Process Date'!$C$2,FALSE)","v":false},{"$f":"IF(AND('First Process Date'!$F$8>='Pension Dates'!A639,'First Process Date'!$F$8<='Pension Dates'!B639),'First Process Date'!$C$8,FALSE)","v":false}]
["2039-02-20","2039-03-05","2039-02-19",{"$f":"IF(AND('First Process Date'!$F$2>='Pension Dates'!A640,'First Process Date'!$F$2<='Pension Dates'!B640),'First Process Date'!$C$2,FALSE)","v":false},{"$f":"IF(AND('First Process Date'!$F$8>='Pension Dates'!A640,'First Process Date'!$F$8<='Pension Dates'!B640),'First Process Date'!$C$8,FALSE)","v":false}]
["2039-03-06","2039-03-19","2039-03-05",{"$f":"IF(AND('First Process Date'!$F$2>='Pension Dates'!A641,'First Process Date'!$F$2<='Pension Dates'!B641),'First Process Date'!$C$2,FALSE)","v":false},{"$f":"IF(AND('First Process Date'!$F$8>='Pension Dates'!A641,'First Process Date'!$F$8<='Pension Dates'!B641),'First Process Date'!$C$8,FALSE)","v":false}]
["2039-03-20","2039-04-02","2039-03-19",{"$f":"IF(AND('First Process Date'!$F$2>='Pension Dates'!A642,'First Process Date'!$F$2<='Pension Dates'!B642),'First Process Date'!$C$2,FALSE)","v":false},{"$f":"IF(AND('First Process Date'!$F$8>='Pension Dates'!A642,'First Process Date'!$F$8<='Pension Dates'!B642),'First Process Date'!$C$8,FALSE)","v":false}]
["2039-04-03","2039-04-16","2039-04-02",{"$f":"IF(AND('First Process Date'!$F$2>='Pension Dates'!A643,'First Process Date'!$F$2<='Pension Dates'!B643),'First Process Date'!$C$2,FALSE)","v":false},{"$f":"IF(AND('First Process Date'!$F$8>='Pension Dates'!A643,'First Process Date'!$F$8<='Pension Dates'!B643),'First Process Date'!$C$8,FALSE)","v":false}]
["2039-04-17","2039-04-30","2039-04-16",{"$f":"IF(AND('First Process Date'!$F$2>='Pension Dates'!A644,'First Process Date'!$F$2<='Pension Dates'!B644),'First Process Date'!$C$2,FALSE)","v":false},{"$f":"IF(AND('First Process Date'!$F$8>='Pension Dates'!A644,'First Process Date'!$F$8<='Pension Dates'!B644),'First Process Date'!$C$8,FALSE)","v":false}]
["2039-05-01","2039-05-14","2039-04-30",{"$f":"IF(AND('First Process Date'!$F$2>='Pension Dates'!A645,'First Process Date'!$F$2<='Pension Dates'!B645),'First Process Date'!$C$2,FALSE)","v":false},{"$f":"IF(AND('First Process Date'!$F$8>='Pension Dates'!A645,'First Process Date'!$F$8<='Pension Dates'!B645),'First Process Date'!$C$8,FALSE)","v":false}]
["2039-05-15","2039-05-28","2039-05-14",{"$f":"IF(AND('First Process Date'!$F$2>='Pension Dates'!A646,'First Process Date'!$F$2<='Pension Dates'!B646),'First Process Date'!$C$2,FALSE)","v":false},{"$f":"IF(AND('First Process Date'!$F$8>='Pension Dates'!A646,'First Process Date'!$F$8<='Pension Dates'!B646),'First Process Date'!$C$8,FALSE)","v":false}]
["2039-05-29","2039-06-11","2039-05-28",{"$f":"IF(AND('First Process Date'!$F$2>='Pension Dates'!A647,'First Process Date'!$F$2<='Pension Dates'!B647),'First Process Date'!$C$2,FALSE)","v":false},{"$f":"IF(AND('First Process Date'!$F$8>='Pension Dates'!A647,'First Process Date'!$F$8<='Pension Dates'!B647),'First Process Date'!$C$8,FALSE)","v":false}]
["2039-06-12","2039-06-25","2039-06-11",{"$f":"IF(AND('First Process Date'!$F$2>='Pension Dates'!A648,'First Process Date'!$F$2<='Pension Dates'!B648),'First Process Date'!$C$2,FALSE)","v":false},{"$f":"IF(AND('First Process Date'!$F$8>='Pension Dates'!A648,'First Process Date'!$F$8<='Pension Dates'!B648),'First Process Date'!$C$8,FALSE)","v":false}]
["2039-06-26","2039-07-09","2039-06-25",{"$f":"IF(AND('First Process Date'!$F$2>='Pension Dates'!A649,'First Process Date'!$F$2<='Pension Dates'!B649),'First Process Date'!$C$2,FALSE)","v":false},{"$f":"IF(AND('First Process Date'!$F$8>='Pension Dates'!A649,'First Process Date'!$F$8<='Pension Dates'!B649),'First Process Date'!$C$8,FALSE)","v":false}]
["2039-07-10","2039-07-23","2039-07-09",{"$f":"IF(AND('First Process Date'!$F$2>='Pension Dates'!A650,'First Process Date'!$F$2<='Pension Dates'!B650),'First Process Date'!$C$2,FALSE)","v":false},{"$f":"IF(AND('First Process Date'!$F$8>='Pension Dates'!A650,'First Process Date'!$F$8<='Pension Dates'!B650),'First Process Date'!$C$8,FALSE)","v":false}]
["2039-07-24","2039-08-06","2039-07-23",{"$f":"IF(AND('First Process Date'!$F$2>='Pension Dates'!A651,'First Process Date'!$F$2<='Pension Dates'!B651),'First Process Date'!$C$2,FALSE)","v":false},{"$f":"IF(AND('First Process Date'!$F$8>='Pension Dates'!A651,'First Process Date'!$F$8<='Pension Dates'!B651),'First Process Date'!$C$8,FALSE)","v":false}]
["2039-08-07","2039-08-20","2039-08-06",{"$f":"IF(AND('First Process Date'!$F$2>='Pension Dates'!A652,'First Process Date'!$F$2<='Pension Dates'!B652),'First Process Date'!$C$2,FALSE)","v":false},{"$f":"IF(AND('First Process Date'!$F$8>='Pension Dates'!A652,'First Process Date'!$F$8<='Pension Dates'!B652),'First Process Date'!$C$8,FALSE)","v":false}]
["2039-08-21","2039-09-03","2039-08-20",{"$f":"IF(AND('First Process Date'!$F$2>='Pension Dates'!A653,'First Process Date'!$F$2<='Pension Dates'!B653),'First Process Date'!$C$2,FALSE)","v":false},{"$f":"IF(AND('First Process Date'!$F$8>='Pension Dates'!A653,'First Process Date'!$F$8<='Pension Dates'!B653),'First Process Date'!$C$8,FALSE)","v":false}]
["2039-09-04","2039-09-17","2039-09-03",{"$f":"IF(AND('First Process Date'!$F$2>='Pension Dates'!A654,'First Process Date'!$F$2<='Pension Dates'!B654),'First Process Date'!$C$2,FALSE)","v":false},{"$f":"IF(AND('First Process Date'!$F$8>='Pension Dates'!A654,'First Process Date'!$F$8<='Pension Dates'!B654),'First Process Date'!$C$8,FALSE)","v":false}]
["2039-09-18","2039-10-01","2039-09-17",{"$f":"IF(AND('First Process Date'!$F$2>='Pension Dates'!A655,'First Process Date'!$F$2<='Pension Dates'!B655),'First Process Date'!$C$2,FALSE)","v":false},{"$f":"IF(AND('First Process Date'!$F$8>='Pension Dates'!A655,'First Process Date'!$F$8<='Pension Dates'!B655),'First Process Date'!$C$8,FALSE)","v":false}]
["2039-10-02","2039-10-15","2039-10-01",{"$f":"IF(AND('First Process Date'!$F$2>='Pension Dates'!A656,'First Process Date'!$F$2<='Pension Dates'!B656),'First Process Date'!$C$2,FALSE)","v":false},{"$f":"IF(AND('First Process Date'!$F$8>='Pension Dates'!A656,'First Process Date'!$F$8<='Pension Dates'!B656),'First Process Date'!$C$8,FALSE)","v":false}]
["2039-10-16","2039-10-29","2039-10-15",{"$f":"IF(AND('First Process Date'!$F$2>='Pension Dates'!A657,'First Process Date'!$F$2<='Pension Dates'!B657),'First Process Date'!$C$2,FALSE)","v":false},{"$f":"IF(AND('First Process Date'!$F$8>='Pension Dates'!A657,'First Process Date'!$F$8<='Pension Dates'!B657),'First Process Date'!$C$8,FALSE)","v":false}]
["2039-10-30","2039-11-12","2039-10-29",{"$f":"IF(AND('First Process Date'!$F$2>='Pension Dates'!A658,'First Process Date'!$F$2<='Pension Dates'!B658),'First Process Date'!$C$2,FALSE)","v":false},{"$f":"IF(AND('First Process Date'!$F$8>='Pension Dates'!A658,'First Process Date'!$F$8<='Pension Dates'!B658),'First Process Date'!$C$8,FALSE)","v":false}]
["2039-11-13","2039-11-26","2039-11-12",{"$f":"IF(AND('First Process Date'!$F$2>='Pension Dates'!A659,'First Process Date'!$F$2<='Pension Dates'!B659),'First Process Date'!$C$2,FALSE)","v":false},{"$f":"IF(AND('First Process Date'!$F$8>='Pension Dates'!A659,'First Process Date'!$F$8<='Pension Dates'!B659),'First Process Date'!$C$8,FALSE)","v":false}]
["2039-11-27","2039-12-10","2039-11-26",{"$f":"IF(AND('First Process Date'!$F$2>='Pension Dates'!A660,'First Process Date'!$F$2<='Pension Dates'!B660),'First Process Date'!$C$2,FALSE)","v":false},{"$f":"IF(AND('First Process Date'!$F$8>='Pension Dates'!A660,'First Process Date'!$F$8<='Pension Dates'!B660),'First Process Date'!$C$8,FALSE)","v":false}]
["2039-12-11","2039-12-24","2039-12-10",{"$f":"IF(AND('First Process Date'!$F$2>='Pension Dates'!A661,'First Process Date'!$F$2<='Pension Dates'!B661),'First Process Date'!$C$2,FALSE)","v":false},{"$f":"IF(AND('First Process Date'!$F$8>='Pension Dates'!A661,'First Process Date'!$F$8<='Pension Dates'!B661),'First Process Date'!$C$8,FALSE)","v":false}]
["2039-12-25","2040-01-07","2039-12-24",{"$f":"IF(AND('First Process Date'!$F$2>='Pension Dates'!A662,'First Process Date'!$F$2<='Pension Dates'!B662),'First Process Date'!$C$2,FALSE)","v":false},{"$f":"IF(AND('First Process Date'!$F$8>='Pension Dates'!A662,'First Process Date'!$F$8<='Pension Dates'!B662),'First Process Date'!$C$8,FALSE)","v":false}]
["2040-01-08","2040-01-21","2040-01-07",{"$f":"IF(AND('First Process Date'!$F$2>='Pension Dates'!A663,'First Process Date'!$F$2<='Pension Dates'!B663),'First Process Date'!$C$2,FALSE)","v":false},{"$f":"IF(AND('First Process Date'!$F$8>='Pension Dates'!A663,'First Process Date'!$F$8<='Pension Dates'!B663),'First Process Date'!$C$8,FALSE)","v":false}]
["2040-01-22","2040-02-04","2040-01-21",{"$f":"IF(AND('First Process Date'!$F$2>='Pension Dates'!A664,'First Process Date'!$F$2<='Pension Dates'!B664),'First Process Date'!$C$2,FALSE)","v":false},{"$f":"IF(AND('First Process Date'!$F$8>='Pension Dates'!A664,'First Process Date'!$F$8<='Pension Dates'!B664),'First Process Date'!$C$8,FALSE)","v":false}]
["2040-02-05","2040-02-18","2040-02-04",{"$f":"IF(AND('First Process Date'!$F$2>='Pension Dates'!A665,'First Process Date'!$F$2<='Pension Dates'!B665),'First Process Date'!$C$2,FALSE)","v":false},{"$f":"IF(AND('First Process Date'!$F$8>='Pension Dates'!A665,'First Process Date'!$F$8<='Pension Dates'!B665),'First Process Date'!$C$8,FALSE)","v":false}]
["2040-02-19","2040-03-03","2040-02-18",{"$f":"IF(AND('First Process Date'!$F$2>='Pension Dates'!A666,'First Process Date'!$F$2<='Pension Dates'!B666),'First Process Date'!$C$2,FALSE)","v":false},{"$f":"IF(AND('First Process Date'!$F$8>='Pension Dates'!A666,'First Process Date'!$F$8<='Pension Dates'!B666),'First Process Date'!$C$8,FALSE)","v":false}]
["2040-03-04","2040-03-17","2040-03-03",{"$f":"IF(AND('First Process Date'!$F$2>='Pension Dates'!A667,'First Process Date'!$F$2<='Pension Dates'!B667),'First Process Date'!$C$2,FALSE)","v":false},{"$f":"IF(AND('First Process Date'!$F$8>='Pension Dates'!A667,'First Process Date'!$F$8<='Pension Dates'!B667),'First Process Date'!$C$8,FALSE)","v":false}]
["2040-03-18","2040-03-31","2040-03-17",{"$f":"IF(AND('First Process Date'!$F$2>='Pension Dates'!A668,'First Process Date'!$F$2<='Pension Dates'!B668),'First Process Date'!$C$2,FALSE)","v":false},{"$f":"IF(AND('First Process Date'!$F$8>='Pension Dates'!A668,'First Process Date'!$F$8<='Pension Dates'!B668),'First Process Date'!$C$8,FALSE)","v":false}]
["2040-04-01","2040-04-14","2040-03-31",{"$f":"IF(AND('First Process Date'!$F$2>='Pension Dates'!A669,'First Process Date'!$F$2<='Pension Dates'!B669),'First Process Date'!$C$2,FALSE)","v":false},{"$f":"IF(AND('First Process Date'!$F$8>='Pension Dates'!A669,'First Process Date'!$F$8<='Pension Dates'!B669),'First Process Date'!$C$8,FALSE)","v":false}]
["2040-04-15","2040-04-28","2040-04-14",{"$f":"IF(AND('First Process Date'!$F$2>='Pension Dates'!A670,'First Process Date'!$F$2<='Pension Dates'!B670),'First Process Date'!$C$2,FALSE)","v":false},{"$f":"IF(AND('First Process Date'!$F$8>='Pension Dates'!A670,'First Process Date'!$F$8<='Pension Dates'!B670),'First Process Date'!$C$8,FALSE)","v":false}]
["2040-04-29","2040-05-12","2040-04-28",{"$f":"IF(AND('First Process Date'!$F$2>='Pension Dates'!A671,'First Process Date'!$F$2<='Pension Dates'!B671),'First Process Date'!$C$2,FALSE)","v":false},{"$f":"IF(AND('First Process Date'!$F$8>='Pension Dates'!A671,'First Process Date'!$F$8<='Pension Dates'!B671),'First Process Date'!$C$8,FALSE)","v":false}]
["2040-05-13","2040-05-26","2040-05-12",{"$f":"IF(AND('First Process Date'!$F$2>='Pension Dates'!A672,'First Process Date'!$F$2<='Pension Dates'!B672),'First Process Date'!$C$2,FALSE)","v":false},{"$f":"IF(AND('First Process Date'!$F$8>='Pension Dates'!A672,'First Process Date'!$F$8<='Pension Dates'!B672),'First Process Date'!$C$8,FALSE)","v":false}]
["2040-05-27","2040-06-09","2040-05-26",{"$f":"IF(AND('First Process Date'!$F$2>='Pension Dates'!A673,'First Process Date'!$F$2<='Pension Dates'!B673),'First Process Date'!$C$2,FALSE)","v":false},{"$f":"IF(AND('First Process Date'!$F$8>='Pension Dates'!A673,'First Process Date'!$F$8<='Pension Dates'!B673),'First Process Date'!$C$8,FALSE)","v":false}]
["2040-06-10","2040-06-23","2040-06-09",{"$f":"IF(AND('First Process Date'!$F$2>='Pension Dates'!A674,'First Process Date'!$F$2<='Pension Dates'!B674),'First Process Date'!$C$2,FALSE)","v":false},{"$f":"IF(AND('First Process Date'!$F$8>='Pension Dates'!A674,'First Process Date'!$F$8<='Pension Dates'!B674),'First Process Date'!$C$8,FALSE)","v":false}]
["2040-06-24","2040-07-07","2040-06-23",{"$f":"IF(AND('First Process Date'!$F$2>='Pension Dates'!A675,'First Process Date'!$F$2<='Pension Dates'!B675),'First Process Date'!$C$2,FALSE)","v":false},{"$f":"IF(AND('First Process Date'!$F$8>='Pension Dates'!A675,'First Process Date'!$F$8<='Pension Dates'!B675),'First Process Date'!$C$8,FALSE)","v":false}]
["2040-07-08","2040-07-21","2040-07-07",{"$f":"IF(AND('First Process Date'!$F$2>='Pension Dates'!A676,'First Process Date'!$F$2<='Pension Dates'!B676),'First Process Date'!$C$2,FALSE)","v":false},{"$f":"IF(AND('First Process Date'!$F$8>='Pension Dates'!A676,'First Process Date'!$F$8<='Pension Dates'!B676),'First Process Date'!$C$8,FALSE)","v":false}]
["2040-07-22","2040-08-04","2040-07-21",{"$f":"IF(AND('First Process Date'!$F$2>='Pension Dates'!A677,'First Process Date'!$F$2<='Pension Dates'!B677),'First Process Date'!$C$2,FALSE)","v":false},{"$f":"IF(AND('First Process Date'!$F$8>='Pension Dates'!A677,'First Process Date'!$F$8<='Pension Dates'!B677),'First Process Date'!$C$8,FALSE)","v":false}]
["2040-08-05","2040-08-18","2040-08-04",{"$f":"IF(AND('First Process Date'!$F$2>='Pension Dates'!A678,'First Process Date'!$F$2<='Pension Dates'!B678),'First Process Date'!$C$2,FALSE)","v":false},{"$f":"IF(AND('First Process Date'!$F$8>='Pension Dates'!A678,'First Process Date'!$F$8<='Pension Dates'!B678),'First Process Date'!$C$8,FALSE)","v":false}]
["2040-08-19","2040-09-01","2040-08-18",{"$f":"IF(AND('First Process Date'!$F$2>='Pension Dates'!A679,'First Process Date'!$F$2<='Pension Dates'!B679),'First Process Date'!$C$2,FALSE)","v":false},{"$f":"IF(AND('First Process Date'!$F$8>='Pension Dates'!A679,'First Process Date'!$F$8<='Pension Dates'!B679),'First Process Date'!$C$8,FALSE)","v":false}]
["2040-09-02","2040-09-15","2040-09-01",{"$f":"IF(AND('First Process Date'!$F$2>='Pension Dates'!A680,'First Process Date'!$F$2<='Pension Dates'!B680),'First Process Date'!$C$2,FALSE)","v":false},{"$f":"IF(AND('First Process Date'!$F$8>='Pension Dates'!A680,'First Process Date'!$F$8<='Pension Dates'!B680),'First Process Date'!$C$8,FALSE)","v":false}]
["2040-09-16","2040-09-29","2040-09-15",{"$f":"IF(AND('First Process Date'!$F$2>='Pension Dates'!A681,'First Process Date'!$F$2<='Pension Dates'!B681),'First Process Date'!$C$2,FALSE)","v":false},{"$f":"IF(AND('First Process Date'!$F$8>='Pension Dates'!A681,'First Process Date'!$F$8<='Pension Dates'!B681),'First Process Date'!$C$8,FALSE)","v":false}]
["2040-09-30","2040-10-13","2040-09-29",{"$f":"IF(AND('First Process Date'!$F$2>='Pension Dates'!A682,'First Process Date'!$F$2<='Pension Dates'!B682),'First Process Date'!$C$2,FALSE)","v":false},{"$f":"IF(AND('First Process Date'!$F$8>='Pension Dates'!A682,'First Process Date'!$F$8<='Pension Dates'!B682),'First Process Date'!$C$8,FALSE)","v":false}]
["2040-10-14","2040-10-27","2040-10-13",{"$f":"IF(AND('First Process Date'!$F$2>='Pension Dates'!A683,'First Process Date'!$F$2<='Pension Dates'!B683),'First Process Date'!$C$2,FALSE)","v":false},{"$f":"IF(AND('First Process Date'!$F$8>='Pension Dates'!A683,'First Process Date'!$F$8<='Pension Dates'!B683),'First Process Date'!$C$8,FALSE)","v":false}]
["2040-10-28","2040-11-10","2040-10-27",{"$f":"IF(AND('First Process Date'!$F$2>='Pension Dates'!A684,'First Process Date'!$F$2<='Pension Dates'!B684),'First Process Date'!$C$2,FALSE)","v":false},{"$f":"IF(AND('First Process Date'!$F$8>='Pension Dates'!A684,'First Process Date'!$F$8<='Pension Dates'!B684),'First Process Date'!$C$8,FALSE)","v":false}]
["2040-11-11","2040-11-24","2040-11-10",{"$f":"IF(AND('First Process Date'!$F$2>='Pension Dates'!A685,'First Process Date'!$F$2<='Pension Dates'!B685),'First Process Date'!$C$2,FALSE)","v":false},{"$f":"IF(AND('First Process Date'!$F$8>='Pension Dates'!A685,'First Process Date'!$F$8<='Pension Dates'!B685),'First Process Date'!$C$8,FALSE)","v":false}]
["2040-11-25","2040-12-08","2040-11-24",{"$f":"IF(AND('First Process Date'!$F$2>='Pension Dates'!A686,'First Process Date'!$F$2<='Pension Dates'!B686),'First Process Date'!$C$2,FALSE)","v":false},{"$f":"IF(AND('First Process Date'!$F$8>='Pension Dates'!A686,'First Process Date'!$F$8<='Pension Dates'!B686),'First Process Date'!$C$8,FALSE)","v":false}]
["2040-12-09","2040-12-22","2040-12-08",{"$f":"IF(AND('First Process Date'!$F$2>='Pension Dates'!A687,'First Process Date'!$F$2<='Pension Dates'!B687),'First Process Date'!$C$2,FALSE)","v":false},{"$f":"IF(AND('First Process Date'!$F$8>='Pension Dates'!A687,'First Process Date'!$F$8<='Pension Dates'!B687),'First Process Date'!$C$8,FALSE)","v":false}]
[null,null,"2040-12-22"]

{"sheet":"First Process Date","index":6,"n_rows":10,"n_cols":6,"rows_kept":10,"cut":false,"hidden":false,"merged":[[9,0,10,1],[9,2,10,4],[1,0,2,1],[1,2,2,4],[3,0,4,1],[3,2,4,4],[7,0,8,1],[7,2,8,4]]}
[]
["NEW AWARD \nCREATION DATE",null,{"$f":"TODAY()","v":"2024-02-27"},null,null,{"$f":"C2","v":45349}]
[]
["FIRST PROCESS DATE",null,{"$f":"INDEX('Pension Dates'!$C$1:$C$748,MATCH($F$2,'Pension Dates'!$D$1:$D$748,0))","v":"2024-02-24"}]
[]
[]
[]
["ADJUSTED AWARD \nBEGIN DATE",null,null,null,null,{"$f":"C8","v":0}]
[]
["FIRST PROCESS DATE",null,{"$f":"INDEX('Pension Dates'!$C$1:$C$748,MATCH($F$8,'Pension Dates'!$E$1:$E$748,0))+14","v":{"$error":"#N/A"}}]

{"sheet":"Retirement Date","index":7,"n_rows":14,"n_cols":19,"rows_kept":14,"cut":false,"hidden":false,"merged":[[3,3,4,4],[3,0,4,1],[3,2,4,2],[3,5,4,7]]}
[]
[null,null,null,null,null,null,null,null,null,null,null,null,"1900-01-01","1937-12-31",{"$f":"IF(AND($C$6>=M2,$C$6<=N2),$C$6,FALSE)","v":false},65,23741,null,65]
[null,null,null,null,null,null,null,null,null,null,null,null,"1938-01-01",{"$f":"M4-1","v":"1938-12-31"},{"$f":"IF(AND($C$6>=M3,$C$6<=N3),$C$6,FALSE)","v":false},65.166666666666671,23803,null,"65 and 2 months"]
["Claimant DOB",null,null,"Full Retirement Date",null,{"$f":"CONCATENATE(E7,\"/\",\"01\",\"/\",F7)","v":{"$error":"#N/A"}},null,null,null,null,null,null,"1939-01-01",{"$f":"M5-1","v":"1939-12-31"},false,65.333333333333329,23861,null,"65 and 4 months"]
[null,null,null,null,null,null,null,null,null,null,null,null,"1940-01-01","1940-12-31",false,65.5,23921,null,"65 and 6 months"]
[null,null,{"$f":"C4","v":0},{"$f":"INDEX($Q$2:$Q$14,MATCH($C$6,$O$2:$O$14,0))","v":{"$error":"#N/A"}},{"$f":"C4+D6","v":{"$error":"#N/A"}},null,null,null,null,null,null,null,"1941-01-01","1941-12-31",false,65.666666666666671,23981,null,"65 and 8 months"]
[{"$f":"MONTH(C4)","v":1},null,{"$f":"YEAR(C4)","v":1900},null,{"$f":"MONTH(E6)","v":{"$error":"#N/A"}},{"$f":"YEAR(E6)","v":{"$error":"#N/A"}},null,null,null,null,null,null,"1942-01-01","1942-12-31",false,65.833333333333329,24041,null,"65 and 10 months"]
[null,null,null,null,null,null,null,null,null,null,null,null,"1943-01-01","1954-12-31",false,66,24106,null,66]
[null,null,null,null,null,null,null,null,null,null,null,null,"1955-01-01","1955-12-31",false,66.166666666666671,24168,null,"66 and 2 months"]
[null,null,null,null,null,null,null,null,null,null,null,null,"1956-01-01","1956-12-31",false,66.333333333333329,24226,null,"66 and 4 months"]
[null,null,null,null,null,null,null,null,null,null,null,null,"1957-01-01","1957-12-31",false,66.5,24286,null,"66 and 6 months"]
[null,null,null,null,null,null,null,null,null,null,null,null,"1958-01-01","1958-12-31",false,66.666666666666671,24346,null,"66 and 8 months"]
[null,null,null,null,null,null,null,null,null,null,null,null,"1959-01-01","1959-12-31",false,66.833333333333329,24406,null,"66 and 10 months"]
[null,null,null,null,null,null,null,null,null,null,null,null,"1960-01-01","2040-12-31",false,67,24471,null,67]

{"sheet":"LSA at 25%","index":8,"n_rows":9,"n_cols":2,"rows_kept":9,"cut":false,"hidden":false,"merged":[]}
[]
[]
[]
[]
["LSA Amount granted against PTD"]
[]
["Customer Overpayment Balance"]
[]
["Amount to enter in Claim Overpayment Recovery with LSA Indemnity Type",{"$f":"IF(B7>B5*0.25,B5*0.25,B7)","v":0}]

{"sheet":"PTD%PP Offset","index":9,"n_rows":17,"n_cols":9,"rows_kept":17,"cut":false,"hidden":false,"merged":[[0,4,1,4]]}
[null,null,null,null,"Calculated Daily Rate"]
[null,"From","Through","Wkly Rate",null,"# Days","Amount"]
["PTD Award Dates",null,null,null,{"$f":"D3/7","v":0},{"$f":"C3-B3+1","v":1},{"$f":"E3*F3","v":0}]
["Overlapping %PP Award",null,null,null,{"$f":"D4/7","v":0},{"$f":"C4-B4+1","v":1},{"$f":"E4*F4","v":0}]
[]
[]
[]
[]
[null,null,"Effective Date","Expiration Date",null,"Weekly Offset Amt Entry","Calculated Payment made to claimant"]
[null,"Full Rate Offset",{"$f":"B3","v":"00:00:00"},{"$f":"E10+C10","v":{"$error":"#DIV/0!"}},{"$f":"I10","v":{"$error":"#DIV/0!"}},{"$f":"D3","v":0},{"$f":"E10*E3","v":{"$error":"#DIV/0!"}},{"$f":"G4/E3","v":{"$error":"#DIV/0!"}},{"$f":"ROUNDDOWN(H10,0)","v":{"$error":"#DIV/0!"}}]
[null,"Partial Rate Offset",{"$f":"D10+1","v":{"$error":"#DIV/0!"}},{"$f":"C11","v":{"$error":"#DIV/0!"}},{"$f":"H10-I10","v":{"$error":"#DIV/0!"}},{"$f":"$D$3*(1-E11)","v":{"$error":"#DIV/0!"}},{"$f":"E11*E3","v":{"$error":"#DIV/0!"}}]
[null,null,null,"Total Recouped after offset entries",null,null,{"$f":"SUM(G10:G11)","v":{"$error":"#DIV/0!"}}]
[]
[null,null,null,null,null,"Difference",{"$f":"G4-G12","v":{"$error":"#DIV/0!"}}]
[]
[null,"Entries made in worksheet for new award and any previous awards applied toward this amount"]
[null,"Entries made in PowerSuite in Adjustment Screen as offset(s)"]